Service Area,Service Division,Expense Type,Expense Code,Detailed Expense Type,Payment Date,Transaction Number,Amount Exc VAT,Supplier Name
Children and Young Peoples Services,Head of Education and Skills,Transport,230007,Contract Hire,02/08/2021,3897384-72101,"1,274.00",24/7 TAXI SERVICES (PETERLEE) LTD.
Children and Young Peoples Services,Head of Education and Skills,Transport,230034,Contract Hire,02/08/2021,3897384-72102,894.30,24/7 TAXI SERVICES (PETERLEE) LTD.
Children and Young Peoples Services,Head of Education and Skills,Transport,230008,Contract Hire,02/08/2021,3897384-72112,"1,582.44",24/7 TAXI SERVICES (PETERLEE) LTD.
Children and Young Peoples Services,Head of Education and Skills,Transport,230034,Contract Hire,02/08/2021,3897384-72114,"1,572.00",24/7 TAXI SERVICES (PETERLEE) LTD.
Children and Young Peoples Services,Head of Education and Skills,Transport,230008,Contract Hire,02/08/2021,3897384-72115,"1,464.00",24/7 TAXI SERVICES (PETERLEE) LTD.
Children and Young Peoples Services,Head of Education and Skills,Transport,230008,Contract Hire,02/08/2021,3897384-72116,"1,212.00",24/7 TAXI SERVICES (PETERLEE) LTD.
Children and Young Peoples Services,Head of Education and Skills,Transport,230008,Contract Hire,02/08/2021,3897384-72117,"1,104.00",24/7 TAXI SERVICES (PETERLEE) LTD.
Children and Young Peoples Services,Head of Education and Skills,Transport,230012,Contract Hire,02/08/2021,3897384-72122,"1,452.00",24/7 TAXI SERVICES (PETERLEE) LTD.
Children and Young Peoples Services,Head of Education and Skills,Transport,230008,Contract Hire,02/08/2021,3897384-72108-2,728.90,24/7 TAXI SERVICES (PETERLEE) LTD.
Children and Young Peoples Services,Head of Education and Skills,Transport,230006,Contract Hire,02/08/2021,3897384-72109,707.00,24/7 TAXI SERVICES (PETERLEE) LTD.
Children and Young Peoples Services,Head of Education and Skills,Transport,230034,Contract Hire,02/08/2021,3897384-72105,"1,080.00",24/7 TAXI SERVICES (PETERLEE) LTD.
Children and Young Peoples Services,Head of Education and Skills,Transport,230008,Contract Hire,02/08/2021,3897383-72111,"1,760.00",24/7 TAXI SERVICES (PETERLEE) LTD.
Children and Young Peoples Services,Head of Education and Skills,Transport,230008,Contract Hire,02/08/2021,3897384-72106,"1,584.00",24/7 TAXI SERVICES (PETERLEE) LTD.
Children and Young Peoples Services,Head of Education and Skills,Transport,230008,Contract Hire,02/08/2021,3897384-72108-1,880.32,24/7 TAXI SERVICES (PETERLEE) LTD.
Children and Young Peoples Services,Head of Education and Skills,Transport,230008,Contract Hire,02/08/2021,3897383-62123,"3,060.00",24/7 TAXI SERVICES (PETERLEE) LTD.
Children and Young Peoples Services,Head of Education and Skills,Transport,230008,Contract Hire,02/08/2021,3897383-72113,"2,114.40",24/7 TAXI SERVICES (PETERLEE) LTD.
Children and Young Peoples Services,Head of Education and Skills,Transport,230008,Contract Hire,02/08/2021,3897384-72121,"2,160.00",24/7 TAXI SERVICES (PETERLEE) LTD.
Children and Young Peoples Services,Head of Education and Skills,Transport,230008,Contract Hire,02/08/2021,3897385-11173,"1,117.30",24X7LTD.
Children and Young Peoples Services,Head of Education and Skills,Transport,230012,Contract Hire,02/08/2021,3897388-1/07/21,915.12,ABA TAXIS.
Children and Young Peoples Services,Head of Education and Skills,Transport,230012,Contract Hire,02/08/2021,3897389-O517,992.95,ABC & OUSTON CABS.
Children and Young Peoples Services,Head of Education and Skills,Transport,230008,Contract Hire,02/08/2021,3897389-O518,"1,528.10",ABC & OUSTON CABS.
Children and Young Peoples Services,Head of Education and Skills,Transport,230008,Contract Hire,02/08/2021,3897389-O520,"1,510.32",ABC & OUSTON CABS.
"Regeneration, Economy and Growth",Corporate Property and Land,Third Party Payments,430100,Rendered by Private Contractors,02/08/2021,3897392-IN8618,"2,032.00",ACROL AIR CONDITIONING CO LTD.
"Regeneration, Economy and Growth",Culture Sport and Tourism,Supplies and Services,384199,Miscellaneous Expenses,02/08/2021,3897387-4166,"3,200.00",A-HA! DISTRIBUTION LTD.
Children and Young Peoples Services,Head of Childrens Social Care,Supplies and Services,338044,Services,02/08/2021,3897394-528098,620.00,ALPHA BIOLABORATORIES LTD.
Children and Young Peoples Services,Head of Education and Skills,Transport,230008,Contract Hire,02/08/2021,3897400-DCC10JULY21M001,"2,424.00",ATLAS TAXIS BISHOP AUCKLAND.
Children and Young Peoples Services,Head of Education and Skills,Transport,230008,Contract Hire,02/08/2021,3897400-DCC9JULY21W090,"1,288.80",ATLAS TAXIS BISHOP AUCKLAND.
Children and Young Peoples Services,Head of Education and Skills,Transport,230008,Contract Hire,02/08/2021,3897399-DCC11JULY21S010,"1,831.84",ATLAS TAXIS BISHOP AUCKLAND.
Children and Young Peoples Services,Head of Education and Skills,Transport,230008,Contract Hire,02/08/2021,3897399-DCC16JULY21,"2,184.00",ATLAS TAXIS BISHOP AUCKLAND.
Children and Young Peoples Services,Head of Education and Skills,Transport,230008,Contract Hire,02/08/2021,3897400-DCC03JULY21,"1,584.00",ATLAS TAXIS BISHOP AUCKLAND.
Children and Young Peoples Services,Head of Education and Skills,Transport,230008,Contract Hire,02/08/2021,3897400-DCC7JULY21W027,"2,106.75",ATLAS TAXIS BISHOP AUCKLAND.
Children and Young Peoples Services,Head of Education and Skills,Transport,230008,Contract Hire,02/08/2021,3897400-DCC8JULY21W037,"2,114.64",ATLAS TAXIS BISHOP AUCKLAND.
Children and Young Peoples Services,Head of Education and Skills,Transport,230008,Contract Hire,02/08/2021,3897400-DCC04JULY21S012,"1,664.00",ATLAS TAXIS BISHOP AUCKLAND.
Children and Young Peoples Services,Head of Education and Skills,Transport,230003,Contract Hire,02/08/2021,3897403-STJOHNS803072021,"2,044.00",BELL BROTHERS TRAVEL.
Children and Young Peoples Services,Head of Education and Skills,Transport,230008,Contract Hire,02/08/2021,3897407-081,830.00,BL CARS.
Adult and Health Services,Head of Adults,Transport,230005,Contract Hire,02/08/2021,3897408-8083-26/7/21,875.50,BOBBY DOVE PRIVATE HIRE.
"Regeneration, Economy and Growth",Corporate Property and Land,Third Party Payments,430100,Rendered by Private Contractors,02/08/2021,3897410-15930,"2,382.00",BROWN & ILLINGWORTH LTD.
Children and Young Peoples Services,Head of Early Help Inclusion & Vulnerable Children.,Supplies and Services,342051,Computers and Communications,02/08/2021,3897411-ES11833,"14,200.00",CACI LTD.
"Regeneration, Economy and Growth",Corporate Property and Land,Third Party Payments,430100,Rendered by Private Contractors,02/08/2021,3897414-8255,877.92,CATHEDRAL LOCK & SAFE SERVICES LTD.
Children and Young Peoples Services,Head of Education and Skills,Transport,230012,Contract Hire,02/08/2021,3897415-065,"1,224.00",CHANNER`S CABS.
"Regeneration, Economy and Growth",Culture Sport and Tourism,Supplies and Services,338047,Services,02/08/2021,3897417-JAKSMI28320,"1,000.00",CHRIS DAVIS MANAGEMENT LTD.
Neighbourhoods and Climate Change,Technical Services CM0300,Stock A926,926004,Stock,02/08/2021,3897420-400034589,"16,905.70",CLEVELAND POTASH LTD T/A ICL FERTILIZERS.
Neighbourhoods and Climate Change,Technical Services CM0300,Stock A926,926004,Stock,02/08/2021,3897420-400034626,"5,045.60",CLEVELAND POTASH LTD T/A ICL FERTILIZERS.
Neighbourhoods and Climate Change,Technical Services CM0300,Stock A926,926004,Stock,02/08/2021,3897420-400034627,"15,964.90",CLEVELAND POTASH LTD T/A ICL FERTILIZERS.
Resources BK0010,Corporate Finance & Commercial Services,Supplies and Services,342051,Computers and Communications,02/08/2021,3897422-INV00005503,"14,241.04",COHORT SOFTWARE LTD.
Neighbourhoods and Climate Change,Technical Services CM0300,Third Party Payments,430100,Rendered by Private Contractors,02/08/2021,3897423-I21D0104,"73,592.64",COLAS LTD.
Children and Young Peoples Services,Head of Education and Skills,Transport,230008,Contract Hire,02/08/2021,3897425-N010/40,"1,067.64",COLIN STEWART T/A STEWART`S TAXIS.
Adult and Health Services,Public Health CC0450,Third Party Payments,460802,Contract Payments,02/08/2021,3897428-3910018953,"379,167.00",COUNTY DURHAM & DARLINGTON NHS FOUNDATION TRUST (CDDFT).
Adult and Health Services,Public Health CC0450,Third Party Payments,460802,Contract Payments,02/08/2021,3897428-3910018960,"8,598.00",COUNTY DURHAM & DARLINGTON NHS FOUNDATION TRUST (CDDFT).
Adult and Health Services,Public Health CC0450,Third Party Payments,460803,Contract Payments,02/08/2021,3897428-3910018973,"4,596.00",COUNTY DURHAM & DARLINGTON NHS FOUNDATION TRUST (CDDFT).
Adult and Health Services,Public Health CC0450,Third Party Payments,460803,Contract Payments,02/08/2021,3897428-3910018954,"180,879.00",COUNTY DURHAM & DARLINGTON NHS FOUNDATION TRUST (CDDFT).
Adult and Health Services,Public Health CC0450,Third Party Payments,460803,Contract Payments,02/08/2021,3897428-3910018955,"25,996.00",COUNTY DURHAM & DARLINGTON NHS FOUNDATION TRUST (CDDFT).
"Regeneration, Economy and Growth",Corporate Property and Land,Third Party Payments,430100,Rendered by Private Contractors,02/08/2021,3897433-NE21136,"1,152.00",DELTA WIRING SOLUTIONS LTD.
Adult and Health Services,Head of Adults,Supplies and Services,338042,Services,02/08/2021,3897434-363049/INVSRG175,531.25,DERE STREET BARRISTERS.
Neighbourhoods and Climate Change,Partnerships & Community Engagement Div.,Cap Exp on Grants & Other Financial Assistance (REFCUS),918004,Contributions to other bodies 918004,02/08/2021,3897436-VOUCHER20NB-DCTY007,"1,000.00",DURHAM UNIVERSITY & COMMUNITY BOXING CLUB.
Children and Young Peoples Services,Head of Education and Skills,Transport,230008,Contract Hire,02/08/2021,3897438-1143,"1,260.34",EAST DURHAM TAXIS.
Children and Young Peoples Services,Head of Education and Skills,Transport,230008,Contract Hire,02/08/2021,3897438-1146,"2,040.00",EAST DURHAM TAXIS.
Children and Young Peoples Services,Head of Education and Skills,Transport,230008,Contract Hire,02/08/2021,3897437-1150,"2,044.00",EAST DURHAM TAXIS.
Children and Young Peoples Services,Head of Education and Skills,Transport,230008,Contract Hire,02/08/2021,3897438-1142,"2,200.80",EAST DURHAM TAXIS.
Children and Young Peoples Services,Head of Education and Skills,Transport,230006,Contract Hire,02/08/2021,3897438-1147,"2,160.00",EAST DURHAM TAXIS.
Children and Young Peoples Services,Head of Education and Skills,Transport,230008,Contract Hire,02/08/2021,3897438-1138,"1,856.68",EAST DURHAM TAXIS.
Children and Young Peoples Services,Head of Education and Skills,Transport,230012,Contract Hire,02/08/2021,3897437-1145,"1,368.00",EAST DURHAM TAXIS.
Children and Young Peoples Services,Head of Education and Skills,Transport,230005,Contract Hire,02/08/2021,3897438-1149,"1,042.00",EAST DURHAM TAXIS.
Children and Young Peoples Services,Head of Education and Skills,Transport,230008,Contract Hire,02/08/2021,3897437-1136,"1,088.00",EAST DURHAM TAXIS.
Children and Young Peoples Services,Head of Education and Skills,Transport,230008,Contract Hire,02/08/2021,3897438-1151,"1,632.00",EAST DURHAM TAXIS.
Children and Young Peoples Services,Head of Education and Skills,Transport,230007,Contract Hire,02/08/2021,3897438-1144,"1,560.00",EAST DURHAM TAXIS.
Adult and Health Services,Head of Adults,Transport,230005,Contract Hire,02/08/2021,3897438-1148,550.00,EAST DURHAM TAXIS.
Children and Young Peoples Services,Head of Education and Skills,Transport,230006,Contract Hire,02/08/2021,3897438-1141,"1,478.00",EAST DURHAM TAXIS.
Children and Young Peoples Services,Head of Education and Skills,Transport,230008,Contract Hire,02/08/2021,3897438-1140,"1,904.00",EAST DURHAM TAXIS.
"Regeneration, Economy and Growth",Corporate Property and Land,Supplies and Services,304221,Equipment and Materials,02/08/2021,3897440-059-284379,"4,529.59",EDMUNDSON ELECTRICAL LTD.
"Regeneration, Economy and Growth",Corporate Property and Land,Supplies and Services,304221,Equipment and Materials,02/08/2021,3897440-059-284517,"3,291.96",EDMUNDSON ELECTRICAL LTD.
"Regeneration, Economy and Growth",Corporate Property and Land,Supplies and Services,304221,Equipment and Materials,02/08/2021,3897440-059-284965,"1,033.02",EDMUNDSON ELECTRICAL LTD.
"Regeneration, Economy and Growth",Corporate Property and Land,Supplies and Services,304221,Equipment and Materials,02/08/2021,3897440-059-284972,"2,369.29",EDMUNDSON ELECTRICAL LTD.
"Regeneration, Economy and Growth",Corporate Property and Land,Supplies and Services,304221,Equipment and Materials,02/08/2021,3897440-059-284990,548.00,EDMUNDSON ELECTRICAL LTD.
"Regeneration, Economy and Growth",Corporate Property and Land,Supplies and Services,304221,Equipment and Materials,02/08/2021,3897440-059-285225,814.11,EDMUNDSON ELECTRICAL LTD.
Neighbourhoods and Climate Change,Technical Services CM0300,Stock A926,926900,Stock in hand-Inventory system,02/08/2021,3897442-78SI/75640,"1,120.00",ENCON INSULATION LTD.
"Regeneration, Economy and Growth",Corporate Property and Land,Supplies and Services,304221,Equipment and Materials,02/08/2021,3897443-SIN019210,"4,546.57",ENERGY CONSERVATION SOLUTIONS LTD (ECSL).
Children and Young Peoples Services,Head of Education and Skills,Transport,230008,Contract Hire,02/08/2021,3897446-JULY21-N090,"1,320.00",FAIR FARE TRAVEL (TAXIS).
Children and Young Peoples Services,Head of Education and Skills,Transport,230007,Contract Hire,02/08/2021,3897448-1539,610.84,FMR SILVA PITA.
Children and Young Peoples Services,Head of Education and Skills,Transport,230008,Contract Hire,02/08/2021,3897448-1537,"1,112.88",FMR SILVA PITA.
Children and Young Peoples Services,Head of Education and Skills,Transport,230007,Contract Hire,02/08/2021,3897448-1538,902.23,FMR SILVA PITA.
"Regeneration, Economy and Growth",Corporate Property and Land,Supplies and Services,304221,Equipment and Materials,02/08/2021,3897450-DRM/321196,"2,470.00",FRED WILLIAMSON & SONS LTD.*
Dedicated Schools Grant BG0015,DSG High Needs Block,Transport,230009,Contract Hire,02/08/2021,3897453-35,847.03,GARY BRUNTON`S TAXI.
Children and Young Peoples Services,Head of Education and Skills,Transport,230007,Contract Hire,02/08/2021,3897454-ST030,886.56,GARY JACKSON PRIVATE HIRE.
Children and Young Peoples Services,Head of Education and Skills,Transport,230003,Contract Hire,02/08/2021,3897455-5715,"2,149.20",GEM TRAVEL.
Children and Young Peoples Services,Head of Education and Skills,Transport,230003,Contract Hire,02/08/2021,3897455-5716,"2,239.20",GEM TRAVEL.
"Regeneration, Economy and Growth",Corporate Property and Land,Third Party Payments,430100,Rendered by Private Contractors,02/08/2021,3897456-INV-0660,"1,495.00",GLENFIELD ENERGY SOLUTIONS LTD.
Children and Young Peoples Services,Head of Education and Skills,Transport,230008,Contract Hire,02/08/2021,3897457-018-JULY21,"1,327.20",GMC TAXIS NORTH EAST.
Children and Young Peoples Services,Head of Education and Skills,Transport,230008,Contract Hire,02/08/2021,3897459-79,"1,326.00",GP TAXIS.
Children and Young Peoples Services,Head of Education and Skills,Third Party Payments,440999,Other third party payments E440,02/08/2021,3897461-0000013987,"3,660.75",GROUNDWORK NORTH EAST.
Children and Young Peoples Services,Head of Education and Skills,Transport,230006,Contract Hire,02/08/2021,3897462-0011-JULY21,696.00,GUY`S TAXIS.
Neighbourhoods and Climate Change,Partnerships & Community Engagement Div.,Supplies and Services,384086,Miscellaneous Expenses,02/08/2021,3897465-VOUCHERWATA02-21,750.00,HARROGATE & DISTRICT NHS FOUNDATION TRUST.
Neighbourhoods and Climate Change,Partnerships & Community Engagement Div.,Supplies and Services,384086,Miscellaneous Expenses,02/08/2021,3897466-VOUCHERSIMM03-21,999.00,HAWTHORN HOUSE.
Children and Young Peoples Services,Head of Education and Skills,Transport,230007,Contract Hire,02/08/2021,3897469-18804,"1,582.00",HODGSONS COACH OPERATORS LTD.
Children and Young Peoples Services,Head of Education and Skills,Transport,230007,Contract Hire,02/08/2021,3897469-18789,"1,620.00",HODGSONS COACH OPERATORS LTD.
Children and Young Peoples Services,Head of Education and Skills,Transport,230007,Contract Hire,02/08/2021,3897469-18775,"2,471.16",HODGSONS COACH OPERATORS LTD.
Children and Young Peoples Services,Head of Education and Skills,Transport,230007,Contract Hire,02/08/2021,3897469-18787,"1,494.00",HODGSONS COACH OPERATORS LTD.
Children and Young Peoples Services,Head of Education and Skills,Transport,230007,Contract Hire,02/08/2021,3897469-18806,"2,597.42",HODGSONS COACH OPERATORS LTD.
Children and Young Peoples Services,Head of Education and Skills,Transport,230007,Contract Hire,02/08/2021,3897469-18808-3042,"2,108.40",HODGSONS COACH OPERATORS LTD.
Children and Young Peoples Services,Head of Education and Skills,Transport,230007,Contract Hire,02/08/2021,3897469-18808-3044,"1,994.76",HODGSONS COACH OPERATORS LTD.
Children and Young Peoples Services,Head of Education and Skills,Transport,230006,Contract Hire,02/08/2021,3897470-5081,589.00,HORNDALE TAXIS LTD.
Adult and Health Services,Head of Adults,Transport,230005,Contract Hire,02/08/2021,3897475-IR2107003,"1,666.00",I & R EXECUTIVE TRAVEL.
Children and Young Peoples Services,Head of Education and Skills,Transport,230016,Contract Hire,02/08/2021,3897475-IR2107001,"1,438.92",I & R EXECUTIVE TRAVEL.
Neighbourhoods and Climate Change,Environmental Services,Supplies and Services,304221,Equipment and Materials,02/08/2021,3897477-8164,500.00,IBA FABRICATIONS LTD.
Neighbourhoods and Climate Change,Technical Services CM0300,Supplies and Services,352001,Conference Expenses,02/08/2021,3897478-200001199,"7,000.00",INSTITUTE OF HIGHWAY ENGINEERS (IHE).
Neighbourhoods and Climate Change,Technical Services CM0300,Construction work A908,908105,Construction work,02/08/2021,3897479-25413,"1,689.57",JACK COUPE & SONS LTD T/A COUPE LINE.
Children and Young Peoples Services,Head of Education and Skills,Transport,230008,Contract Hire,02/08/2021,3897480-052AC,"1,759.44",JACKIES TAXIS.
Children and Young Peoples Services,Head of Education and Skills,Transport,230008,Contract Hire,02/08/2021,3897482-0817,"1,122.00",JACKSON`S TAXI.
Children and Young Peoples Services,Head of Education and Skills,Transport,230008,Contract Hire,02/08/2021,3897482-0818,"1,153.80",JACKSON`S TAXI.
Children and Young Peoples Services,Head of Education and Skills,Transport,230008,Contract Hire,02/08/2021,3897481-0815,"1,919.26",JACKSON`S TAXI.
Children and Young Peoples Services,Head of Education and Skills,Transport,230007,Contract Hire,02/08/2021,3897485-31405,"2,292.00",JIM HUGHES COACHES LTD.
Children and Young Peoples Services,Head of Education and Skills,Transport,230003,Contract Hire,02/08/2021,3897485-31406,"2,760.00",JIM HUGHES COACHES LTD.
Adult and Health Services,Head of Adults,Transport,230005,Contract Hire,02/08/2021,3897486-56-JULY21,630.00,JOHN CRAKE & SONS MINI BUSES LTD.
"Regeneration, Economy and Growth",Corporate Property and Land,Supplies and Services,304221,Equipment and Materials,02/08/2021,3897489-0101/00419401,"2,549.00",JT DOVE LTD.
"Regeneration, Economy and Growth",Corporate Property and Land,Supplies and Services,304221,Equipment and Materials,02/08/2021,3897489-0101/00423983,"2,416.06",JT DOVE LTD.
"Regeneration, Economy and Growth",Corporate Property and Land,Supplies and Services,304221,Equipment and Materials,02/08/2021,3897489-0113/00411769,"3,196.80",JT DOVE LTD.
"Regeneration, Economy and Growth",Corporate Property and Land,Supplies and Services,304221,Equipment and Materials,02/08/2021,3897489-0213/00413749,"1,726.42",JT DOVE LTD.
Children and Young Peoples Services,Head of Education and Skills,Transport,230008,Contract Hire,02/08/2021,3897491-11-JULY21,"2,349.76",KD TAXIS.
Children and Young Peoples Services,Head of Education and Skills,Transport,230010,Contract Hire,02/08/2021,3897498-1935,888.00,LD TAXIS.
Children and Young Peoples Services,Head of Education and Skills,Transport,230006,Contract Hire,02/08/2021,3897497-1934,572.00,LD TAXIS.
Children and Young Peoples Services,Head of Education and Skills,Transport,230008,Contract Hire,02/08/2021,3897497-1939,"1,074.00",LD TAXIS.
Adult and Health Services,Head of Adults,Transport,230005,Contract Hire,02/08/2021,3897497-1938,"1,636.36",LD TAXIS.
Children and Young Peoples Services,Head of Education and Skills,Transport,230008,Contract Hire,02/08/2021,3897497-1940,"1,144.00",LD TAXIS.
Adult and Health Services,Head of Adults,Transport,230005,Contract Hire,02/08/2021,3897500-PEACO011-JULY,828.18,LETS TRAVEL.
Children and Young Peoples Services,Head of Education and Skills,Transport,230007,Contract Hire,02/08/2021,3897501-004-JULY21,702.50,LIMASEC LTD T/A LIMA TRANSPORT.
Children and Young Peoples Services,Head of Education and Skills,Transport,230008,Contract Hire,02/08/2021,3897501-002-JULY21,"1,512.00",LIMASEC LTD T/A LIMA TRANSPORT.
"Regeneration, Economy and Growth",Corporate Property and Land,Supplies and Services,304221,Equipment and Materials,02/08/2021,3897502-INV-6307495,616.93,LINDAB LTD.
Neighbourhoods and Climate Change,Partnerships & Community Engagement Div.,Cap Exp on Grants & Other Financial Assistance (REFCUS),918004,Contributions to other bodies 918004,02/08/2021,3897503-VOUCHER20AB-4TOG014,"8,438.90",LIVIN HOUSING LTD.
Children and Young Peoples Services,Head of Education and Skills,Transport,230008,Contract Hire,02/08/2021,3897505-54,"1,524.00",M&C`S CABS LTD.
Dedicated Schools Grant BG0015,DSG High Needs Block,Central Support and Other Recharges,689988,Unclassified E690,02/08/2021,3897510-JULY2021TOP-UP,"4,727.00",MELROSE LEARNING TRUST.
Children and Young Peoples Services,Head of Childrens Social Care,Third Party Payments,486046,Service level agreements E486,02/08/2021,3897524-52456,"8,360.75",NATIONAL YOUTH ADVOCACY SERVICE.
Neighbourhoods and Climate Change,Technical Services CM0300,Construction work A908,908110,Capital - Reconstruction,02/08/2021,3897526-37344183,575.85,NEWSQUEST (YORKSHIRE & NORTH EAST) LTD.
Children and Young Peoples Services,Head of Education and Skills,Transport,230007,Contract Hire,02/08/2021,3897529-INV-6801,"1,441.00",NORTH EAST COACHWAYS LTD.
Children and Young Peoples Services,Head of Education and Skills,Transport,230007,Contract Hire,02/08/2021,3897530-INV-6795,"2,091.21",NORTH EAST COACHWAYS LTD.
Children and Young Peoples Services,Head of Education and Skills,Transport,230003,Contract Hire,02/08/2021,3897530-INV-6799,"2,232.00",NORTH EAST COACHWAYS LTD.
Children and Young Peoples Services,Head of Education and Skills,Transport,230007,Contract Hire,02/08/2021,3897530-INV-6800,"1,616.88",NORTH EAST COACHWAYS LTD.
Children and Young Peoples Services,Head of Education and Skills,Transport,230007,Contract Hire,02/08/2021,3897530-INV-6797,"1,392.00",NORTH EAST COACHWAYS LTD.
Children and Young Peoples Services,Head of Education and Skills,Transport,230007,Contract Hire,02/08/2021,3897530-INV6798,"1,572.00",NORTH EAST COACHWAYS LTD.
Children and Young Peoples Services,Head of Education and Skills,Transport,230007,Contract Hire,02/08/2021,3897530-INV-6802,"1,632.00",NORTH EAST COACHWAYS LTD.
Neighbourhoods and Climate Change,Technical Services CM0300,Supplies and Services,304999,Equipment and Materials,02/08/2021,3897531-21145,"1,660.00",NORTH EAST TRAFFIC DATA COLLECTION LTD.
"Regeneration, Economy and Growth",Transport and Contracted Services,Third Party Payments,430108,Rendered by Private Contractors,02/08/2021,3897531-21165,"1,100.00",NORTH EAST TRAFFIC DATA COLLECTION LTD.
Neighbourhoods and Climate Change,Technical Services CM0300,Third Party Payments,430100,Rendered by Private Contractors,02/08/2021,3897533-DI20365797,753.06,NORTHERN POWERGRID (NORTHEAST) LTD.
"Regeneration, Economy and Growth",Business Durham CL0850,Premises,120009,Energy Costs,02/08/2021,3897535-IN00741696,562.49,NPOWER.
Neighbourhoods and Climate Change,Environmental Services,Transport,215022,Running Costs of Vehicles,02/08/2021,3897536-770578,863.55,OIL NRG LTD.
Neighbourhoods and Climate Change,Environmental Services,Transport,215022,Running Costs of Vehicles,02/08/2021,3897536-774427,582.32,OIL NRG LTD.
Neighbourhoods and Climate Change,Environmental Services,Transport,215022,Running Costs of Vehicles,02/08/2021,3897536-774433,582.32,OIL NRG LTD.
Neighbourhoods and Climate Change,Environmental Services,Transport,215022,Running Costs of Vehicles,02/08/2021,3897536-781027,"1,129.62",OIL NRG LTD.
Neighbourhoods and Climate Change,Environmental Services,Transport,215022,Running Costs of Vehicles,02/08/2021,3897536-781029,585.90,OIL NRG LTD.
Neighbourhoods and Climate Change,Environmental Services,Transport,215005,Running Costs of Vehicles,02/08/2021,3897536-783418,"15,336.76",OIL NRG LTD.
Neighbourhoods and Climate Change,Environmental Services,Transport,215022,Running Costs of Vehicles,02/08/2021,3897536-783420,"1,693.26",OIL NRG LTD.
Neighbourhoods and Climate Change,Environmental Services,Transport,215005,Running Costs of Vehicles,02/08/2021,3897536-783422,"5,147.50",OIL NRG LTD.
Neighbourhoods and Climate Change,Environmental Services,Transport,215022,Running Costs of Vehicles,02/08/2021,3897536-783424,575.90,OIL NRG LTD.
"Regeneration, Economy and Growth",Transport and Contracted Services,Third Party Payments,430100,Rendered by Private Contractors,02/08/2021,3897537-11416,985.80,PATROL (PARKING & TRAFFIC REGULATIONS OUTSIDE LONDON).
Children and Young Peoples Services,Head of Education and Skills,Transport,230008,Contract Hire,02/08/2021,3897542-1369,"1,224.00",PODA TAXIS LTD.
Children and Young Peoples Services,Head of Education and Skills,Transport,230008,Contract Hire,02/08/2021,3897542-1368,"2,021.74",PODA TAXIS LTD.
"Regeneration, Economy and Growth",Corporate Property and Land,Supplies and Services,304221,Equipment and Materials,02/08/2021,3897543-INV240972,"2,376.95",POINTER FIRE LTD.
"Regeneration, Economy and Growth",Corporate Property and Land,Supplies and Services,304221,Equipment and Materials,02/08/2021,3897543-INV240979,"1,180.02",POINTER FIRE LTD.
Children and Young Peoples Services,Head of Education and Skills,Supplies and Services,338099,Services,02/08/2021,3897544-900929617,688.98,PORTAKABIN LTD.
Children and Young Peoples Services,Head of Education and Skills,Supplies and Services,338099,Services,02/08/2021,3897544-900925785,"1,300.01",PORTAKABIN LTD.
Children and Young Peoples Services,Head of Education and Skills,Supplies and Services,338099,Services,02/08/2021,3897544-900929616,"1,300.01",PORTAKABIN LTD.
"Regeneration, Economy and Growth",Transport and Contracted Services,Construction work A908,908105,Construction work,02/08/2021,3897546-IN16558QTDC,"18,060.00",Q-FREE (BRISTOL) UK LTD.
Neighbourhoods and Climate Change,Technical Services CM0300,Third Party Payments,430100,Rendered by Private Contractors,02/08/2021,3897547-13470,614.49,QUANTUM POWER CONNECTIONS LTD.
Neighbourhoods and Climate Change,Technical Services CM0300,Third Party Payments,430100,Rendered by Private Contractors,02/08/2021,3897547-13479,"1,364.16",QUANTUM POWER CONNECTIONS LTD.
Neighbourhoods and Climate Change,Technical Services CM0300,Third Party Payments,430100,Rendered by Private Contractors,02/08/2021,3897547-13481,509.49,QUANTUM POWER CONNECTIONS LTD.
"Regeneration, Economy and Growth",Corporate Property and Land,Third Party Payments,430100,Rendered by Private Contractors,02/08/2021,3897548-38239,"4,750.00",R PARKER WALL & FLOOR TILING CONTRACTOR.
Children and Young Peoples Services,Head of Education and Skills,Transport,230012,Contract Hire,02/08/2021,3897513-KDC-01072021,"1,492.41",REDACTED - PAYMENT TO INDIVIDUAL
Children and Young Peoples Services,Head of Education and Skills,Transport,230034,Contract Hire,02/08/2021,3897506-INV07/202128,"1,270.00",REDACTED - PAYMENT TO INDIVIDUAL
Children and Young Peoples Services,Head of Education and Skills,Transport,230007,Contract Hire,02/08/2021,3897515-2-JULY21,868.00,REDACTED - PAYMENT TO INDIVIDUAL
Children and Young Peoples Services,Head of Education and Skills,Transport,230012,Contract Hire,02/08/2021,3897393-3889902,"1,175.16",REDACTED - PAYMENT TO INDIVIDUAL
Children and Young Peoples Services,Head of Education and Skills,Transport,230008,Contract Hire,02/08/2021,3897506-INV07/202121,"1,920.50",REDACTED - PAYMENT TO INDIVIDUAL
Children and Young Peoples Services,Head of Education and Skills,Transport,230008,Contract Hire,02/08/2021,3897506-INV07/202122,"2,052.00",REDACTED - PAYMENT TO INDIVIDUAL
Children and Young Peoples Services,Head of Education and Skills,Transport,230008,Contract Hire,02/08/2021,3897492-JULY21-5020,"1,549.68",REDACTED - PAYMENT TO INDIVIDUAL
Children and Young Peoples Services,Head of Education and Skills,Transport,230008,Contract Hire,02/08/2021,3897509-18-JULY21,"1,020.00",REDACTED - PAYMENT TO INDIVIDUAL
Children and Young Peoples Services,Head of Education and Skills,Transport,230034,Contract Hire,02/08/2021,3897517-KDK/JULY21,897.84,REDACTED - PAYMENT TO INDIVIDUAL
Children and Young Peoples Services,Head of Education and Skills,Transport,230003,Contract Hire,02/08/2021,3897418-47274,"3,732.00",REDACTED - PAYMENT TO INDIVIDUAL
Children and Young Peoples Services,Head of Education and Skills,Transport,230003,Contract Hire,02/08/2021,3897418-47275,"1,992.00",REDACTED - PAYMENT TO INDIVIDUAL
Children and Young Peoples Services,Head of Education and Skills,Transport,230008,Contract Hire,02/08/2021,3897506-INV07/202111,"1,176.00",REDACTED - PAYMENT TO INDIVIDUAL
Children and Young Peoples Services,Head of Education and Skills,Transport,230034,Contract Hire,02/08/2021,3897506-INV07/202127,960.00,REDACTED - PAYMENT TO INDIVIDUAL
Children and Young Peoples Services,Head of Education and Skills,Transport,230010,Contract Hire,02/08/2021,3897476-WOOD011,"1,139.94",REDACTED - PAYMENT TO INDIVIDUAL
Children and Young Peoples Services,Head of Education and Skills,Transport,230010,Contract Hire,02/08/2021,3897506-INV07/202114,"1,185.60",REDACTED - PAYMENT TO INDIVIDUAL
Children and Young Peoples Services,Head of Education and Skills,Transport,230010,Contract Hire,02/08/2021,3897568-JULY21-BL040,"1,040.80",REDACTED - PAYMENT TO INDIVIDUAL
Children and Young Peoples Services,Head of Education and Skills,Transport,230007,Contract Hire,02/08/2021,3897484-DCC004,"1,164.00",REDACTED - PAYMENT TO INDIVIDUAL
Children and Young Peoples Services,Head of Education and Skills,Transport,230034,Contract Hire,02/08/2021,3897493-CH0006,"1,004.00",REDACTED - PAYMENT TO INDIVIDUAL
Children and Young Peoples Services,Head of Education and Skills,Transport,230008,Contract Hire,02/08/2021,3897506-INV07/202124,680.00,REDACTED - PAYMENT TO INDIVIDUAL
Children and Young Peoples Services,Head of Education and Skills,Transport,230008,Contract Hire,02/08/2021,3897541-64-JULY21,955.12,REDACTED - PAYMENT TO INDIVIDUAL
Children and Young Peoples Services,Head of Education and Skills,Transport,230007,Contract Hire,02/08/2021,3897418-47279,"3,144.00",REDACTED - PAYMENT TO INDIVIDUAL
Children and Young Peoples Services,Head of Education and Skills,Transport,230003,Contract Hire,02/08/2021,3897418-47280,"1,992.00",REDACTED - PAYMENT TO INDIVIDUAL
Children and Young Peoples Services,Head of Education and Skills,Transport,230003,Contract Hire,02/08/2021,3897418-47281,"1,932.00",REDACTED - PAYMENT TO INDIVIDUAL
Children and Young Peoples Services,Head of Education and Skills,Transport,230003,Contract Hire,02/08/2021,3897418-47282,"2,052.00",REDACTED - PAYMENT TO INDIVIDUAL
Children and Young Peoples Services,Head of Education and Skills,Transport,230009,Contract Hire,02/08/2021,3897429-21-JULY,552.00,REDACTED - PAYMENT TO INDIVIDUAL
Children and Young Peoples Services,Head of Education and Skills,Transport,230009,Contract Hire,02/08/2021,3897517-KDK/JULY21-4390,557.76,REDACTED - PAYMENT TO INDIVIDUAL
Children and Young Peoples Services,Head of Education and Skills,Transport,230034,Contract Hire,02/08/2021,3897567-JULY21-5289,696.60,REDACTED - PAYMENT TO INDIVIDUAL
Children and Young Peoples Services,Head of Education and Skills,Transport,230008,Contract Hire,02/08/2021,3897519-JK211212,"1,560.00",REDACTED - PAYMENT TO INDIVIDUAL
Children and Young Peoples Services,Head of Education and Skills,Transport,230008,Contract Hire,02/08/2021,3897514-0011,"1,719.62",REDACTED - PAYMENT TO INDIVIDUAL
Children and Young Peoples Services,Head of Education and Skills,Transport,230006,Contract Hire,02/08/2021,3897538-JULY21-N061,"1,148.00",REDACTED - PAYMENT TO INDIVIDUAL
Children and Young Peoples Services,Head of Education and Skills,Transport,230008,Contract Hire,02/08/2021,3897521-29B-JULY21,"1,258.18",REDACTED - PAYMENT TO INDIVIDUAL
Children and Young Peoples Services,Head of Education and Skills,Transport,230008,Contract Hire,02/08/2021,3897506-INV07/202120,"1,811.28",REDACTED - PAYMENT TO INDIVIDUAL
Children and Young Peoples Services,Head of Education and Skills,Transport,230012,Contract Hire,02/08/2021,3897522-11-JULY21,740.28,REDACTED - PAYMENT TO INDIVIDUAL
Children and Young Peoples Services,Head of Education and Skills,Transport,230008,Contract Hire,02/08/2021,3897520-11-JULY21,"1,906.35",REDACTED - PAYMENT TO INDIVIDUAL
Children and Young Peoples Services,Head of Education and Skills,Transport,230008,Contract Hire,02/08/2021,3897506-INV07/202119,"1,938.72",REDACTED - PAYMENT TO INDIVIDUAL
Children and Young Peoples Services,Head of Education and Skills,Transport,230007,Contract Hire,02/08/2021,3897506-INV07/202129,"2,088.00",REDACTED - PAYMENT TO INDIVIDUAL
Children and Young Peoples Services,Head of Education and Skills,Transport,230008,Contract Hire,02/08/2021,3897551-086,"1,746.00",REDZ PRIVATE HIRE.
Neighbourhoods and Climate Change,Environmental Services,Transport,230710,Contract Hire,02/08/2021,3897553-4684,"1,565.84",RICHARD C BIRCHER (HOLDINGS) LTD.
Neighbourhoods and Climate Change,Environmental Services,Transport,230710,Contract Hire,02/08/2021,3897553-4685,821.22,RICHARD C BIRCHER (HOLDINGS) LTD.
Children and Young Peoples Services,Head of Education and Skills,Transport,230016,Contract Hire,02/08/2021,3897554-3298,518.00,RICHARD SHANKS T/A RICHIES TAXIS.
Children and Young Peoples Services,Head of Education and Skills,Transport,230034,Contract Hire,02/08/2021,3897555-JULY2021,644.40,ROGERS TAXIS.
Children and Young Peoples Services,Head of Education and Skills,Transport,230008,Contract Hire,02/08/2021,3897556-11-JULY21,"1,104.00",ROUTE 1.
Children and Young Peoples Services,Head of Education and Skills,Transport,230003,Contract Hire,02/08/2021,3897557-ROXDCC245,"2,952.00",ROXBYS BUS HIRE.
Neighbourhoods and Climate Change,Technical Services CM0300,Supplies and Services,338066,Services,02/08/2021,3897560-2021-371,"111,970.64",SOLMEK LTD.
Neighbourhoods and Climate Change,Technical Services CM0300,Supplies and Services,338066,Services,02/08/2021,3897560-2021-419,"1,135.00",SOLMEK LTD.
"Regeneration, Economy and Growth",Corporate Property and Land,Third Party Payments,430100,Rendered by Private Contractors,02/08/2021,3897562-7632,"13,631.99",ST ASTIER LTD.
Neighbourhoods and Climate Change,Partnerships & Community Engagement Div.,Cap Exp on Grants & Other Financial Assistance (REFCUS),918004,Contributions to other bodies 918004,02/08/2021,3897563-VOUCHER20NB-DCTY091,"6,555.00",ST CUTHBERTS HOSPICE DURHAM.
Dedicated Schools Grant BG0015,DSG High Needs Block,Central Support and Other Recharges,689988,Unclassified E690,02/08/2021,3897566-JULY2021TOP-UP2,"3,349.00",STANLEY LEARNING PARTNERSHIP.
Dedicated Schools Grant BG0015,DSG High Needs Block,Central Support and Other Recharges,689988,Unclassified E690,02/08/2021,3897566-JULY2021TOP-UP3,"7,658.00",STANLEY LEARNING PARTNERSHIP.
Dedicated Schools Grant BG0015,DSG High Needs Block,Central Support and Other Recharges,689989,Unclassified E690,02/08/2021,3897566-JULY2021TOP-UP4,"1,902.00",STANLEY LEARNING PARTNERSHIP.
"Regeneration, Economy and Growth",Corporate Property and Land,Supplies and Services,304221,Equipment and Materials,02/08/2021,3897570-631075,527.60,T CROSSLING & CO LTD.
"Regeneration, Economy and Growth",Corporate Property and Land,Supplies and Services,304221,Equipment and Materials,02/08/2021,3897570-632766,586.13,T CROSSLING & CO LTD.
Neighbourhoods and Climate Change,Technical Services CM0300,Supplies and Services,304221,Equipment and Materials,02/08/2021,3897571-9043727278,884.90,TARMAC TRADING LTD.
Neighbourhoods and Climate Change,Technical Services CM0300,Supplies and Services,304221,Equipment and Materials,02/08/2021,3897571-9043818174,876.20,TARMAC TRADING LTD.
Children and Young Peoples Services,Head of Education and Skills,Transport,230007,Contract Hire,02/08/2021,3897572-22,"2,232.00",TED WILFORD COACHES.
Children and Young Peoples Services,Head of Education and Skills,Transport,230007,Contract Hire,02/08/2021,3897572-49,"2,232.00",TED WILFORD COACHES.
Neighbourhoods and Climate Change,Environmental Services,Supplies and Services,304221,Equipment and Materials,02/08/2021,3897575-NSIN00059364,"1,812.90",THOMAS OWEN & SONS (NEWCASTLE) LTD.
"Regeneration, Economy and Growth",Development and Housing,Construction work A908,908105,Construction work,02/08/2021,3897576-SPN-000253,"405,886.88",TOLENT LIVING LTD.
"Regeneration, Economy and Growth",Corporate Property and Land,Supplies and Services,304221,Equipment and Materials,02/08/2021,3897577-35001,"1,933.00",TOTAL PUMP SOLUTIONS LTD.
Children and Young Peoples Services,Head of Education and Skills,Transport,230010,Contract Hire,02/08/2021,3897579-WL20022,768.00,TRAVEL 6.
Children and Young Peoples Services,Head of Education and Skills,Transport,230007,Contract Hire,02/08/2021,3897579-WA10022,933.84,TRAVEL 6.
Children and Young Peoples Services,Head of Education and Skills,Transport,230008,Contract Hire,02/08/2021,3897580-22-JULY21,983.51,TRIDENT TAXIS.
Children and Young Peoples Services,Head of Education and Skills,Transport,230008,Contract Hire,02/08/2021,3897580-21-JULY21,"1,483.44",TRIDENT TAXIS.
Resources BK0010,Legal & Democratic Services,Supplies and Services,338042,Services,02/08/2021,3897581-281771/INVPG304,500.00,TRINITY CHAMBERS.
Resources BK0010,Legal & Democratic Services,Supplies and Services,338042,Services,02/08/2021,3897581-283521/INVRSH66,500.00,TRINITY CHAMBERS.
Resources BK0010,Legal & Democratic Services,Supplies and Services,338042,Services,02/08/2021,3897581-284100/INVKF353,500.00,TRINITY CHAMBERS.
Resources BK0010,Legal & Democratic Services,Supplies and Services,338042,Services,02/08/2021,3897581-291601/INVGR336,650.00,TRINITY CHAMBERS.
Neighbourhoods and Climate Change,Technical Services CM0300,Supplies and Services,304221,Equipment and Materials,02/08/2021,3897582-224454,"1,087.03",TYNEDALE ROADSTONE LTD.
Neighbourhoods and Climate Change,Technical Services CM0300,Supplies and Services,304221,Equipment and Materials,02/08/2021,3897582-224456,992.98,TYNEDALE ROADSTONE LTD.
Neighbourhoods and Climate Change,Technical Services CM0300,Supplies and Services,304221,Equipment and Materials,02/08/2021,3897582-224458,"1,083.07",TYNEDALE ROADSTONE LTD.
Neighbourhoods and Climate Change,Technical Services CM0300,Supplies and Services,304221,Equipment and Materials,02/08/2021,3897582-224468,508.20,TYNEDALE ROADSTONE LTD.
Neighbourhoods and Climate Change,Technical Services CM0300,Supplies and Services,304221,Equipment and Materials,02/08/2021,3897582-224472,552.43,TYNEDALE ROADSTONE LTD.
Neighbourhoods and Climate Change,Technical Services CM0300,Supplies and Services,304221,Equipment and Materials,02/08/2021,3897582-224558,599.95,TYNEDALE ROADSTONE LTD.
Neighbourhoods and Climate Change,Technical Services CM0300,Supplies and Services,304221,Equipment and Materials,02/08/2021,3897582-224562,779.90,TYNEDALE ROADSTONE LTD.
Neighbourhoods and Climate Change,Technical Services CM0300,Supplies and Services,304221,Equipment and Materials,02/08/2021,3897582-224691,613.81,TYNEDALE ROADSTONE LTD.
Resources BK0010,Digital and Customer Services,Supplies and Services,342051,Computers and Communications,02/08/2021,3897583-INVSOL010176,"34,050.00",VERSION 1 SOLUTIONS LTD.
"Regeneration, Economy and Growth",Corporate Property and Land,Supplies and Services,304221,Equipment and Materials,02/08/2021,3897584-6890398988,"15,345.38",VIESSMANN LTD.
"Regeneration, Economy and Growth",Corporate Property and Land,Supplies and Services,304221,Equipment and Materials,02/08/2021,3897584-6890398821,"8,714.90",VIESSMANN LTD.
Neighbourhoods and Climate Change,Environmental Services,Supplies and Services,304221,Equipment and Materials,02/08/2021,3897585-0005021979,"14,940.00",VISION TECHNIQUES (UK) LTD.
Children and Young Peoples Services,Head of Education and Skills,Transport,230007,Contract Hire,02/08/2021,3897586-4-JULY21,611.00,WALTONS TAXIS.
Children and Young Peoples Services,Head of Education and Skills,Transport,230007,Contract Hire,02/08/2021,3897586-5-JULY21,570.00,WALTONS TAXIS.
Children and Young Peoples Services,Head of Education and Skills,Transport,230010,Contract Hire,02/08/2021,3897590-0721,924.00,WEST AUCKLAND TOWN TRAVEL (WATT).
"Regeneration, Economy and Growth",Corporate Property and Land,Supplies and Services,304221,Equipment and Materials,02/08/2021,3897592-76545580,"4,976.39",WOLSELEY UK LTD.
Neighbourhoods and Climate Change,Partnerships & Community Engagement Div.,Cap Exp on Grants & Other Financial Assistance (REFCUS),918004,Contributions to other bodies 918004,02/08/2021,3897593-VOUCHER20NB-BASH018,"16,500.00",WOODHOUSE CLOSE CHURCH COMMUNITY CENTRE.
Adult and Health Services,Commissioning inc Supporting People,Supplies and Services,377015,County Durham Development,03/08/2021,3898145-INV-3899,550.00,(USE 218313) REMEMBER MEDIA LTD.
Adult and Health Services,Public Health CC0450,Third Party Payments,460803,Contract Payments,03/08/2021,3898150-INV-1132,"124,855.00",ABL HEALTH LTD.
Adult and Health Services,Head of Adults,Third Party Payments,473101,Purchase of Care,03/08/2021,3898151-2079443H,"1,440.00",ACTION DEAFNESS LTD.
"Regeneration, Economy and Growth",Culture Sport and Tourism,Supplies and Services,338099,Services,03/08/2021,3898156-8622,"50,000.00",ALLIANCE LEISURE SERVICES LTD.
Resources BK0010,Business Support,Supplies and Services,338099,Services,03/08/2021,3898157-C55141,"2,013.87",ALLIED PUBLICITY SERVICES (MANCHESTER) LTD.
"Regeneration, Economy and Growth",Business Durham CL0850,Supplies and Services,384071,Miscellaneous Expenses,03/08/2021,3898160-972,"1,350.00",ARTICHOKE TRUST.
"Regeneration, Economy and Growth",Culture Sport and Tourism,Supplies and Services,312013,Newspapers books and periodicals E312,03/08/2021,3898161-6527603,510.92,ASKEWS & HOLTS LIBRARY SERVICES LTD.
"Regeneration, Economy and Growth",Culture Sport and Tourism,Supplies and Services,312013,Newspapers books and periodicals E312,03/08/2021,3898161-6527695,619.95,ASKEWS & HOLTS LIBRARY SERVICES LTD.
"Regeneration, Economy and Growth",Culture Sport and Tourism,Supplies and Services,312013,Newspapers books and periodicals E312,03/08/2021,3898161-6532883,601.23,ASKEWS & HOLTS LIBRARY SERVICES LTD.
"Regeneration, Economy and Growth",Culture Sport and Tourism,Supplies and Services,312013,Newspapers books and periodicals E312,03/08/2021,3898161-6532886,608.66,ASKEWS & HOLTS LIBRARY SERVICES LTD.
"Regeneration, Economy and Growth",Culture Sport and Tourism,Supplies and Services,312017,Newspapers books and periodicals E312,03/08/2021,3898161-6527571,577.50,ASKEWS & HOLTS LIBRARY SERVICES LTD.
Adult and Health Services,Head of Adults,Third Party Payments,478151,Purchase of Care,03/08/2021,3898165-3/2122/JENNA,524.88,BERNICIA GROUP LTD.*
Adult and Health Services,Head of Adults,Third Party Payments,478151,Purchase of Care,03/08/2021,3898165-4/2122/MULB,555.88,BERNICIA GROUP LTD.*
Adult and Health Services,Public Health CC0450,Third Party Payments,460803,Contract Payments,03/08/2021,3898170-1245,"2,435.00",BLUEGRASS RESEARCH LTD.
"Regeneration, Economy and Growth",Corporate Property and Land,Third Party Payments,430100,Rendered by Private Contractors,03/08/2021,3898171-15929,"3,073.00",BROWN & ILLINGWORTH LTD.
Resources BK0010,Digital and Customer Services,Supplies and Services,342051,Computers and Communications,03/08/2021,3898173-782628,"1,408.28",BYTES SOFTWARE SERVICES LTD.
"Regeneration, Economy and Growth",Corporate Property and Land,Third Party Payments,430100,Rendered by Private Contractors,03/08/2021,3898176-8304,"2,830.93",CATHEDRAL LOCK & SAFE SERVICES LTD.
Children and Young Peoples Services,Head of Childrens Social Care,Transport,230005,Contract Hire,03/08/2021,3898180-110915,"1,218.14",CROFT BUSINESS SERVICES LTD T/A CROFT TRAVEL.
Children and Young Peoples Services,Head of Childrens Social Care,Transport,230005,Contract Hire,03/08/2021,3898180-110923,799.92,CROFT BUSINESS SERVICES LTD T/A CROFT TRAVEL.
Children and Young Peoples Services,Head of Education and Skills,Transfer Payments,510028,School Children,03/08/2021,3898185-CAS-07-2021-180,"3,000.00",DIPTON OUT OF SCHOOL HOURS CLUB.
Dedicated Schools Grant BG0015,DSG High Needs Block,Supplies and Services,304259,Equipment and Materials,03/08/2021,3898186-0000118656,"2,650.00",DIRECT HEALTHCARE GROUP LTD.
"Regeneration, Economy and Growth",Corporate Property and Land,Supplies and Services,304221,Equipment and Materials,03/08/2021,3898189-059-284856,"4,560.00",EDMUNDSON ELECTRICAL LTD.
"Regeneration, Economy and Growth",Corporate Property and Land,Supplies and Services,304221,Equipment and Materials,03/08/2021,3898189-059-285082,"1,019.51",EDMUNDSON ELECTRICAL LTD.
"Regeneration, Economy and Growth",Corporate Property and Land,Supplies and Services,304221,Equipment and Materials,03/08/2021,3898189-059-285188,"1,156.56",EDMUNDSON ELECTRICAL LTD.
"Regeneration, Economy and Growth",Corporate Property and Land,Supplies and Services,304221,Equipment and Materials,03/08/2021,3898189-059-285218,"2,463.45",EDMUNDSON ELECTRICAL LTD.
"Regeneration, Economy and Growth",Corporate Property and Land,Supplies and Services,304221,Equipment and Materials,03/08/2021,3898189-059-285221,"2,290.30",EDMUNDSON ELECTRICAL LTD.
"Regeneration, Economy and Growth",Corporate Property and Land,Supplies and Services,304221,Equipment and Materials,03/08/2021,3898189-059-285251,842.34,EDMUNDSON ELECTRICAL LTD.
"Regeneration, Economy and Growth",Corporate Property and Land,Supplies and Services,304221,Equipment and Materials,03/08/2021,3898189-059-285423,700.83,EDMUNDSON ELECTRICAL LTD.
"Regeneration, Economy and Growth",Corporate Property and Land,Supplies and Services,304221,Equipment and Materials,03/08/2021,3898189-059-285455,"1,797.51",EDMUNDSON ELECTRICAL LTD.
"Regeneration, Economy and Growth",Corporate Property and Land,Supplies and Services,304221,Equipment and Materials,03/08/2021,3898189-059-285152,793.50,EDMUNDSON ELECTRICAL LTD.
"Regeneration, Economy and Growth",Corporate Property and Land,Supplies and Services,304221,Equipment and Materials,03/08/2021,3898189-059-285310,937.91,EDMUNDSON ELECTRICAL LTD.
"Regeneration, Economy and Growth",Corporate Property and Land,Supplies and Services,304221,Equipment and Materials,03/08/2021,3898189-059-285372,602.92,EDMUNDSON ELECTRICAL LTD.
Neighbourhoods and Climate Change,Technical Services CM0300,Stock A926,926900,Stock in hand-Inventory system,03/08/2021,3898193-138054,"12,626.00",FABRIKAT (NOTTINGHAM) LTD.
Neighbourhoods and Climate Change,Technical Services CM0300,Stock A926,926900,Stock in hand-Inventory system,03/08/2021,3898193-138068,"1,255.65",FABRIKAT (NOTTINGHAM) LTD.
"Regeneration, Economy and Growth",Business Durham CL0850,Supplies and Services,384899,Miscellaneous Expenses,03/08/2021,3898196-DBRG-08-2021-06,"1,751.38",FIRST POINT TRAINING LTD T/A DURHAMWORKS.
Adult and Health Services,Public Health CC0450,Third Party Payments,460803,Contract Payments,03/08/2021,3898199-7610017300,"4,434.00",GATESHEAD HEALTH NHS FOUNDATION TRUST.
Neighbourhoods and Climate Change,Technical Services CM0300,Stock A926,926900,Stock in hand-Inventory system,03/08/2021,3898204-SI-6860,540.00,HARELAW SAWMILL LTD.
Neighbourhoods and Climate Change,Technical Services CM0300,Stock A926,926900,Stock in hand-Inventory system,03/08/2021,3898204-SI-6862,540.00,HARELAW SAWMILL LTD.
Children and Young Peoples Services,Head of Education and Skills,Third Party Payments,440999,Other third party payments E440,03/08/2021,3898211-45RA-DSY9SALARY3,716.39,INVESTING IN CHILDREN CIC.
"Regeneration, Economy and Growth",Corporate Property and Land,Third Party Payments,430100,Rendered by Private Contractors,03/08/2021,3898222-1501,"2,925.00",KARLIN TIMBER FRAME (NE) LTD.
"Regeneration, Economy and Growth",Culture Sport and Tourism,Construction work A908,908105,Construction work,03/08/2021,3898224-INV-723,"2,667.60",KOLORSPRAY LTD.
"Regeneration, Economy and Growth",Culture Sport and Tourism,Supplies and Services,384199,Miscellaneous Expenses,03/08/2021,3898231-3107132,800.00,LITEWHITE LTD T/A BLUMILK.
"Regeneration, Economy and Growth",Corporate Property and Land,Supplies and Services,304221,Equipment and Materials,03/08/2021,3898232-5119461,587.42,LONDON GENERAL SALES LTD.
"Regeneration, Economy and Growth",Culture Sport and Tourism,Third Party Payments,430131,Rendered by Private Contractors,03/08/2021,3898238-2021016,"3,002.00",MICHELLE GARTON T/A GET FIT NORTH EAST.
"Regeneration, Economy and Growth",Corporate Property and Land,Third Party Payments,430100,Rendered by Private Contractors,03/08/2021,3898241-33320,"49,999.99",NE & C WINDOWS & DOORS LTD.
Neighbourhoods and Climate Change,Technical Services CM0300,Supplies and Services,304221,Equipment and Materials,03/08/2021,3898246-211889,"1,032.00",NORTH EAST CONCRETE LTD.
Neighbourhoods and Climate Change,Technical Services CM0300,Supplies and Services,304221,Equipment and Materials,03/08/2021,3898246-212012,"1,376.00",NORTH EAST CONCRETE LTD.
Neighbourhoods and Climate Change,Technical Services CM0300,Supplies and Services,304221,Equipment and Materials,03/08/2021,3898246-212116,688.00,NORTH EAST CONCRETE LTD.
Children and Young Peoples Services,Head of Education and Skills,Supplies and Services,384199,Miscellaneous Expenses,03/08/2021,3898248-ESF/YEI,925.60,NORTHERN HEATING SERVICES LTD.
Neighbourhoods and Climate Change,Environmental Services,Third Party Payments,430100,Rendered by Private Contractors,03/08/2021,3898249-00017195,505.80,NSL LTD.
"Regeneration, Economy and Growth",Corporate Property and Land,Third Party Payments,430100,Rendered by Private Contractors,03/08/2021,3898253-10911-56,"1,106.88",OPUS BUILDING SERVICES LTD.
"Regeneration, Economy and Growth",Corporate Property and Land,Third Party Payments,430100,Rendered by Private Contractors,03/08/2021,3898253-10911-57,916.37,OPUS BUILDING SERVICES LTD.
"Regeneration, Economy and Growth",Corporate Property and Land,Third Party Payments,430100,Rendered by Private Contractors,03/08/2021,3898253-10911-58,649.00,OPUS BUILDING SERVICES LTD.
"Regeneration, Economy and Growth",Corporate Property and Land,Third Party Payments,430100,Rendered by Private Contractors,03/08/2021,3898253-10911-59,649.00,OPUS BUILDING SERVICES LTD.
"Regeneration, Economy and Growth",Corporate Property and Land,Third Party Payments,430100,Rendered by Private Contractors,03/08/2021,3898253-10911-62,664.90,OPUS BUILDING SERVICES LTD.
Neighbourhoods and Climate Change,Technical Services CM0300,Stock A926,926900,Stock in hand-Inventory system,03/08/2021,3898254-XL273658,826.08,PARK ELECTRICAL DISTRIBUTORS LTD.
Neighbourhoods and Climate Change,Technical Services CM0300,Stock A926,926900,Stock in hand-Inventory system,03/08/2021,3898254-XL273661,"2,931.88",PARK ELECTRICAL DISTRIBUTORS LTD.
Neighbourhoods and Climate Change,Technical Services CM0300,Stock A926,926900,Stock in hand-Inventory system,03/08/2021,3898254-XL273662,612.00,PARK ELECTRICAL DISTRIBUTORS LTD.
"Regeneration, Economy and Growth",Transport and Contracted Services,Third Party Payments,430100,Rendered by Private Contractors,03/08/2021,3898255-2352,"3,993.00",PATROL (PARKING & TRAFFIC REGULATIONS OUTSIDE LONDON).
Neighbourhoods and Climate Change,Technical Services CM0300,Stock A926,926900,Stock in hand-Inventory system,03/08/2021,3898258-1422787,542.23,PILKINGTON UNITED KINGDOM LTD.
Children and Young Peoples Services,Head of Education and Skills,Supplies and Services,384199,Miscellaneous Expenses,03/08/2021,3898259-DW0147/1,976.65,PIXEL MEDIA DESIGN LIMITED.
"Regeneration, Economy and Growth",Culture Sport and Tourism,Supplies and Services,372009,Subscriptions E372,03/08/2021,3898262-SIN1764285,891.54,PPL PRS LTD.
"Regeneration, Economy and Growth",Culture Sport and Tourism,Supplies and Services,372009,Subscriptions E372,03/08/2021,3898262-SIN1764275,"1,047.13",PPL PRS LTD.
"Regeneration, Economy and Growth",Culture Sport and Tourism,Supplies and Services,384956,Miscellaneous Expenses,03/08/2021,3898262-SIN1764293,"1,445.64",PPL PRS LTD.
"Regeneration, Economy and Growth",Culture Sport and Tourism,Supplies and Services,372009,Subscriptions E372,03/08/2021,3898262-SIN1764267,954.51,PPL PRS LTD.
"Regeneration, Economy and Growth",Culture Sport and Tourism,Supplies and Services,384956,Miscellaneous Expenses,03/08/2021,3898262-SIN1764297,"2,525.01",PPL PRS LTD.
"Regeneration, Economy and Growth",Culture Sport and Tourism,Supplies and Services,384956,Miscellaneous Expenses,03/08/2021,3898262-SIN1764270,"1,421.79",PPL PRS LTD.
"Regeneration, Economy and Growth",Business Durham CL0850,Supplies and Services,336005,Advertising E336,03/08/2021,3898266-5607538,"1,200.00",REACH PUBLISHING SERVICES LTD.*
Resources BK0010,Legal & Democratic Services,Supplies and Services,338101,Services,03/08/2021,3898187-7/2021,"3,150.00",REDACTED - PAYMENT TO INDIVIDUAL
Resources BK0010,Legal & Democratic Services,Supplies and Services,338105,Services,03/08/2021,3898188-JRB072021JC,"1,149.00",REDACTED - PAYMENT TO INDIVIDUAL
Children and Young Peoples Services,Head of Early Help Inclusion & Vulnerable Children.,Construction work A908,908105,Construction work,03/08/2021,3898267-INV-2744,750.00,REDWOOD CABLE PROJECTS LTD.
"Regeneration, Economy and Growth",Culture Sport and Tourism,Supplies and Services,304259,Equipment and Materials,03/08/2021,3898269-SIN004373,549.40,RLSS UK ENTERPRISES LTD T/A RLSS UK SHOP.
"Regeneration, Economy and Growth",Business Durham CL0850,Premises,108099,Service Repairs and Maintenance,03/08/2021,3898274-NEW14739,778.00,SANDERSON WEATHERALL LLP.
Children and Young Peoples Services,Head of Early Help Inclusion & Vulnerable Children.,Premises,120009,Energy Costs,03/08/2021,3898277-53100,"1,887.30",SEAHAM HARBOUR DOCK CO.
Children and Young Peoples Services,Head of Education and Skills,Transfer Payments,510028,School Children,03/08/2021,3898278-CAS-08-2021-002,"7,500.00",SEDGEFIELD OUT OF SCHOOL FUN CLUB.
"Regeneration, Economy and Growth",Business Durham CL0850,Supplies and Services,384899,Miscellaneous Expenses,03/08/2021,3898280-DBRG-08-2021-02,892.48,SK CATERING HAMSTERLEY LTD.
"Regeneration, Economy and Growth",Business Durham CL0850,Supplies and Services,384899,Miscellaneous Expenses,03/08/2021,3898280-DBRG-08-2021-04,"2,865.00",SK CATERING HAMSTERLEY LTD.
"Regeneration, Economy and Growth",Business Durham CL0850,Supplies and Services,384899,Miscellaneous Expenses,03/08/2021,3898280-DBRG-08-2021-05,699.98,SK CATERING HAMSTERLEY LTD.
"Regeneration, Economy and Growth",Culture Sport and Tourism,Construction work A908,908105,Construction work,03/08/2021,3898283-2021-164,"34,767.50",SOLMEK LTD.
"Regeneration, Economy and Growth",Corporate Property and Land,Third Party Payments,430100,Rendered by Private Contractors,03/08/2021,3898286-7621,770.00,ST ASTIER LTD.
"Regeneration, Economy and Growth",Corporate Property and Land,Third Party Payments,430100,Rendered by Private Contractors,03/08/2021,3898289-17239,"8,690.40",STEADFAST SECURITY SOLUTIONS LTD.
Children and Young Peoples Services,Head of Education and Skills,Supplies and Services,384199,Miscellaneous Expenses,03/08/2021,3898290-DW0085/3,"1,973.60",STEADFAST SECURITY SYSTEMS LTD.
"Regeneration, Economy and Growth",Transport and Contracted Services,Supplies and Services,338099,Services,03/08/2021,3898293-9858,750.00,SURVEY & MARKETING SERVICES LTD T/A SMS MARKET RESEARCH.
"Regeneration, Economy and Growth",Corporate Property and Land,Supplies and Services,304221,Equipment and Materials,03/08/2021,3898296-633979,"1,840.42",T CROSSLING & CO LTD.
"Regeneration, Economy and Growth",Culture Sport and Tourism,Third Party Payments,430131,Rendered by Private Contractors,03/08/2021,3898298-TT/202171,580.00,TERESA DONNELLAN T/A T TRAINING.
"Regeneration, Economy and Growth",Culture Sport and Tourism,Supplies and Services,338047,Services,03/08/2021,3898300-2237,"10,256.05",THE BIRMINGHAM STAGE CO (LONDON) LTD.
Resources BK0010,Digital and Customer Services,Supplies and Services,304303,Equipment and Materials,03/08/2021,3898302-134531,"1,049.39",TP ELECTRICAL SUPPLIES & FIXINGS LTD.
Resources BK0010,Digital and Customer Services,Supplies and Services,304639,Equipment and Materials,03/08/2021,3898302-134489,"1,952.70",TP ELECTRICAL SUPPLIES & FIXINGS LTD.
Resources BK0010,Digital and Customer Services,Supplies and Services,304639,Equipment and Materials,03/08/2021,3898302-134543,"2,446.45",TP ELECTRICAL SUPPLIES & FIXINGS LTD.
Resources BK0010,Legal & Democratic Services,Supplies and Services,338042,Services,03/08/2021,3898303-290008/INVEM49,"2,750.00",TRINITY CHAMBERS.
Children and Young Peoples Services,Head of Early Help Inclusion & Vulnerable Children.,Supplies and Services,384199,Miscellaneous Expenses,03/08/2021,3898304-LINV42207,"2,238.75",TRINITY MEDICAL PROPERTIES LTD.
Children and Young Peoples Services,Head of Early Help Inclusion & Vulnerable Children.,Supplies and Services,384199,Miscellaneous Expenses,03/08/2021,3898304-LINV42208,538.36,TRINITY MEDICAL PROPERTIES LTD.
Dedicated Schools Grant BG0015,DSG High Needs Block,Supplies and Services,304259,Equipment and Materials,03/08/2021,3898309-OP/I176665,"3,656.00",VIDA GLOBAL T/A JAMES LECKEY DESIGN LTD.
Resources BK0010,Digital and Customer Services,Supplies and Services,342033,Computers and Communications,03/08/2021,3898310-0007,"2,084.00",VIKING PRODUCTIONS LTD.
"Regeneration, Economy and Growth",Business Durham CL0850,Supplies and Services,384899,Miscellaneous Expenses,03/08/2021,3898314-DBRG-08-2021-08,637.50,WEE MACS CAFE & TAKEAWAY.
"Regeneration, Economy and Growth",Culture Sport and Tourism,Supplies and Services,384199,Miscellaneous Expenses,03/08/2021,3898315-UOTR4792349,"2,502.00",WESTERN UNION BUSINESS SOLUTIONS.
Neighbourhoods and Climate Change,Technical Services CM0300,Stock A926,926900,Stock in hand-Inventory system,03/08/2021,3898318-76610282,529.47,WOLSELEY UK LTD.
"Regeneration, Economy and Growth",Business Durham CL0850,Supplies and Services,384899,Miscellaneous Expenses,03/08/2021,3898319-DBRG-08-2021-07,"13,125.00",WOODLAND BARN BOUTIQUE B&B T/A WOODLAND BARN BOUTIQUE B&B.
"Regeneration, Economy and Growth",Corporate Property and Land,Third Party Payments,430100,Rendered by Private Contractors,03/08/2021,3898320-130746,"4,600.00",XERIC LTD.
"Regeneration, Economy and Growth",Corporate Property and Land,Third Party Payments,430100,Rendered by Private Contractors,03/08/2021,3898320-130747,"1,200.00",XERIC LTD.
Resources BK0010,Digital and Customer Services,Vehicles Equipment Furniture and Fittings,912701,Computer equipment,03/08/2021,3898321-KZ73713,"21,539.00",XMA LTD.
Dedicated Schools Grant BG0015,DSG High Needs Block,Transfer Payments,510025,School Children,04/08/2021,3898329-JULY2021TOP-UP,"1,887.00",ADVANCE LEARNING PARTNERSHIP.
Neighbourhoods and Climate Change,Technical Services CM0300,Supplies and Services,338044,Services,04/08/2021,3898330-28466391,"8,856.00",AECOM LTD.
"Regeneration, Economy and Growth",Corporate Property and Land,Third Party Payments,430100,Rendered by Private Contractors,04/08/2021,3898338-2105,"2,564.00",AWR ROOFING & ALUMIN RAINWATER SYSTEMS LTD.
"Regeneration, Economy and Growth",Corporate Property and Land,Third Party Payments,430100,Rendered by Private Contractors,04/08/2021,3898338-2104,785.00,AWR ROOFING & ALUMIN RAINWATER SYSTEMS LTD.
Dedicated Schools Grant BG0015,DSG High Needs Block,Central Support and Other Recharges,689989,Unclassified E690,04/08/2021,3898342-JULY2021TOP-UP1,"3,757.00",BISHOP HOGARTH CATHOLIC EDUCATION TRUST.
Dedicated Schools Grant BG0015,DSG High Needs Block,Central Support and Other Recharges,689988,Unclassified E690,04/08/2021,3898343-JULY2021TOP-UP,543.00,BISHOP WILKINSON CE TRUST.
Dedicated Schools Grant BG0015,DSG High Needs Block,Central Support and Other Recharges,689988,Unclassified E690,04/08/2021,3898344-JULY2021TOP-UP,"4,460.00",BISHOP WILKINSON CE TRUST.
Dedicated Schools Grant BG0015,DSG High Needs Block,Central Support and Other Recharges,689988,Unclassified E690,04/08/2021,3898344-JULY2021TOP-UP2,"10,300.00",BISHOP WILKINSON CE TRUST.
Neighbourhoods and Climate Change,Technical Services CM0300,Supplies and Services,304221,Equipment and Materials,04/08/2021,3898436-0000102626,737.50,BREEDON TRADING LTD T/A EXPRESS MINIMIX.
Dedicated Schools Grant BG0015,DSG High Needs Block,Transfer Payments,510025,School Children,04/08/2021,3898348-JULY2021TOP-UP,"1,604.00",BYERLEY ROAD PRE SCHOOL.
Adult and Health Services,Commissioning inc Supporting People,Supplies and Services,372009,Subscriptions E372,04/08/2021,3898349-INV-0389,555.00,CARE FRIENDS LTD.
"Regeneration, Economy and Growth",Corporate Property and Land,Supplies and Services,304221,Equipment and Materials,04/08/2021,3898350-140007313,"1,549.40",CARLISLE CONSTRUCTION MATERIALS LTD.
"Regeneration, Economy and Growth",Corporate Property and Land,Supplies and Services,304221,Equipment and Materials,04/08/2021,3898351-10550845,950.73,CARPET & FLOORING (TRADING) LTD.
"Regeneration, Economy and Growth",Corporate Property and Land,Supplies and Services,304221,Equipment and Materials,04/08/2021,3898351-10550846,"2,006.94",CARPET & FLOORING (TRADING) LTD.
Dedicated Schools Grant BG0015,DSG High Needs Block,Transfer Payments,510025,School Children,04/08/2021,3898353-JULY2021TOP-UP,"2,005.00",CASTLE KINDERGARTEN LTD.
"Regeneration, Economy and Growth",Corporate Property and Land,Third Party Payments,430100,Rendered by Private Contractors,04/08/2021,3898354-8268,866.25,CATHEDRAL LOCK & SAFE SERVICES LTD.
"Regeneration, Economy and Growth",Corporate Property and Land,Third Party Payments,430100,Rendered by Private Contractors,04/08/2021,3898354-8283,"1,006.88",CATHEDRAL LOCK & SAFE SERVICES LTD.
"Regeneration, Economy and Growth",Corporate Property and Land,Third Party Payments,430100,Rendered by Private Contractors,04/08/2021,3898354-8303,"3,967.02",CATHEDRAL LOCK & SAFE SERVICES LTD.
Neighbourhoods and Climate Change,Environmental Services,Transport,215012,Running Costs of Vehicles,04/08/2021,3898356-195953,"1,109.50",CHEVIN FLEET SOLUTIONS LTD.
Neighbourhoods and Climate Change,Environmental Services,Supplies and Services,384199,Miscellaneous Expenses,04/08/2021,3898361-JOB001/20417,625.00,COLIN JOBLING T/A RAINBOW INTERNATIONAL.
Neighbourhoods and Climate Change,Environmental Services,Supplies and Services,384199,Miscellaneous Expenses,04/08/2021,3898361-JOB001/20418,625.00,COLIN JOBLING T/A RAINBOW INTERNATIONAL.
"Regeneration, Economy and Growth",Corporate Property and Land,Third Party Payments,430100,Rendered by Private Contractors,04/08/2021,3898366-N524372,520.00,D-DRILL (MASTER DRILLERS) LTD.
Resources BK0010,Legal & Democratic Services,Supplies and Services,338042,Services,04/08/2021,3898369-366250/INVJJO69,"1,070.00",DERE STREET BARRISTERS.
Children and Young Peoples Services,Head of Education and Skills,Transfer Payments,510026,School Children,04/08/2021,3898371-JULY2021TOP-UP,602.00,DO RE MI DAY NURSERY.
Neighbourhoods and Climate Change,Environmental Services,Supplies and Services,304221,Equipment and Materials,04/08/2021,3898375-0000070818,980.00,EAST RIDING HORTICULTURE LTD.
Neighbourhoods and Climate Change,Environmental Services,Supplies and Services,304221,Equipment and Materials,04/08/2021,3898375-0000071630,"1,456.80",EAST RIDING HORTICULTURE LTD.
Dedicated Schools Grant BG0015,DSG High Needs Block,Central Support and Other Recharges,689988,Unclassified E690,04/08/2021,3898377-JULY2021TOP-UP,791.00,EDEN ACADEMY TRUST LTD T/A BLUEBELL MEADOW PRIMARY SCHOOL.
Dedicated Schools Grant BG0015,DSG High Needs Block,Central Support and Other Recharges,689989,Unclassified E690,04/08/2021,3898377-JULY2021TOP-UP1,"2,475.00",EDEN ACADEMY TRUST LTD T/A BLUEBELL MEADOW PRIMARY SCHOOL.
"Regeneration, Economy and Growth",Corporate Property and Land,Supplies and Services,304221,Equipment and Materials,04/08/2021,3898378-059-284684,613.06,EDMUNDSON ELECTRICAL LTD.
Dedicated Schools Grant BG0015,DSG High Needs Block,Transfer Payments,510025,School Children,04/08/2021,3898383-JULY2021TOP-UP1,535.00,EMERALDS LITTLE GEMS DAYCARE LTD.
Children and Young Peoples Services,Head of Education and Skills,Transfer Payments,510027,School Children,04/08/2021,3898383-JULY2021TOP-UP,"1,069.00",EMERALDS LITTLE GEMS DAYCARE LTD.
"Regeneration, Economy and Growth",Development and Housing,Supplies and Services,384899,Miscellaneous Expenses,04/08/2021,3898388-ND013/5,"7,251.93",FINCHALE TRAINING COLLEGE.
"Regeneration, Economy and Growth",Development and Housing,Supplies and Services,384899,Miscellaneous Expenses,04/08/2021,3898388-SD012/5,"7,911.17",FINCHALE TRAINING COLLEGE.
Children and Young Peoples Services,Head of Education and Skills,Third Party Payments,440999,Other third party payments E440,04/08/2021,3898389-YEI50-JUNE2021,"12,679.76",FIRST POINT TRAINING LTD T/A DURHAMWORKS.
Neighbourhoods and Climate Change,Environmental Services,Third Party Payments,430100,Rendered by Private Contractors,04/08/2021,3898390-187848,"3,809.41",FR SHARROCK LTD.
Neighbourhoods and Climate Change,Technical Services CM0300,Supplies and Services,304357,Equipment and Materials,04/08/2021,3898393-DCC180721,"15,293.87",GAP GROUP LTD.
Chief Executive's Office,Communications Management,Employees,080025,Agency Staff,04/08/2021,3898396-2450988,"184,122.07",GEOMETRIC RESULTS INTERNATIONAL.
"Regeneration, Economy and Growth",Corporate Property and Land,Third Party Payments,430100,Rendered by Private Contractors,04/08/2021,3898397-121848,569.96,GIACOMINI UK LTD.
Dedicated Schools Grant BG0015,DSG High Needs Block,Transfer Payments,510025,School Children,04/08/2021,3898398-JULY2021TOP-UP,"1,006.00",GIANT STEPS LTD.
"Regeneration, Economy and Growth",Culture Sport and Tourism,Premises,145023,Cleaning and Domestic Supplies,04/08/2021,3898399-06/132971,578.12,GREENHAM TRADING LTD.
Neighbourhoods and Climate Change,Technical Services CM0300,Stock A926,926900,Stock in hand-Inventory system,04/08/2021,3898399-06/133266,607.68,GREENHAM TRADING LTD.
"Regeneration, Economy and Growth",Culture Sport and Tourism,Premises,145023,Cleaning and Domestic Supplies,04/08/2021,3898399-06/133113,743.60,GREENHAM TRADING LTD.
"Regeneration, Economy and Growth",Corporate Property and Land,Supplies and Services,304221,Equipment and Materials,04/08/2021,3898401-7701,"2,309.88",GROVE REED JOINERY LTD.
"Regeneration, Economy and Growth",Corporate Property and Land,Supplies and Services,304221,Equipment and Materials,04/08/2021,3898401-7713,"1,999.95",GROVE REED JOINERY LTD.
"Regeneration, Economy and Growth",Corporate Property and Land,Third Party Payments,430100,Rendered by Private Contractors,04/08/2021,3898402-10194,"54,583.32",HADRIAN ARCHITECTURAL GLAZING SYSTEMS LTD.
Children and Young Peoples Services,Head of Education and Skills,Third Party Payments,440999,Other third party payments E440,04/08/2021,3898403-2020-21,"4,875.00",HANDCRAFTED PROJECTS.
"Regeneration, Economy and Growth",Corporate Property and Land,Supplies and Services,304221,Equipment and Materials,04/08/2021,3898408-00538343,753.70,HEATSEAM LTD T/A LIKEWISE NORTH EAST.
Neighbourhoods and Climate Change,Technical Services CM0300,Third Party Payments,430100,Rendered by Private Contractors,04/08/2021,3898411-3268,"5,984.00",HIGHWAY CONSTRUCTION SERVICES LTD.
"Regeneration, Economy and Growth",Culture Sport and Tourism,Premises,120009,Energy Costs,04/08/2021,3898414-15212,"1,882.77",IMPALA ESTATES LTD.
Neighbourhoods and Climate Change,Technical Services CM0300,Supplies and Services,352001,Conference Expenses,04/08/2021,3898416-200001444,"5,985.00",INSTITUTE OF HIGHWAY ENGINEERS (IHE).
"Regeneration, Economy and Growth",Corporate Property and Land,Supplies and Services,304221,Equipment and Materials,04/08/2021,3898421-0104/00413741,565.81,JT DOVE LTD.
"Regeneration, Economy and Growth",Corporate Property and Land,Supplies and Services,304221,Equipment and Materials,04/08/2021,3898421-0213/00428413,841.35,JT DOVE LTD.
Neighbourhoods and Climate Change,Technical Services CM0300,Supplies and Services,304221,Equipment and Materials,04/08/2021,3898421-0104/00409658,646.50,JT DOVE LTD.
"Regeneration, Economy and Growth",Corporate Property and Land,Third Party Payments,430100,Rendered by Private Contractors,04/08/2021,3898422-4-31/5/21,"16,842.50",JTL SCAFFOLDING LTD.
Dedicated Schools Grant BG0015,DSG High Needs Block,Transfer Payments,510025,School Children,04/08/2021,3898425-JULY2021TOP-UP,"2,406.00",KIDS 1ST NURSERIES DURHAM.
Dedicated Schools Grant BG0015,DSG High Needs Block,Transfer Payments,510025,School Children,04/08/2021,3898426-JULY2021TOP-UP,"1,604.00",KIDZONE.
Dedicated Schools Grant BG0015,DSG High Needs Block,Transfer Payments,510025,School Children,04/08/2021,3898428-JULY2021TOP-UP,802.00,LITTLE STARS EARLY YEARS.
Dedicated Schools Grant BG0015,DSG High Needs Block,Transfer Payments,510025,School Children,04/08/2021,3898429-JULY2021TOP-UP,"1,676.00",LITTLE WAVES DAY NURSERY LTD.
"Regeneration, Economy and Growth",Corporate Property and Land,Third Party Payments,430100,Rendered by Private Contractors,04/08/2021,3898433-63744,"10,644.00",MARIAN DOOR SERVICES.
"Regeneration, Economy and Growth",Corporate Property and Land,Third Party Payments,430100,Rendered by Private Contractors,04/08/2021,3898433-63744-A,"10,719.00",MARIAN DOOR SERVICES.
Neighbourhoods and Climate Change,Technical Services CM0300,Supplies and Services,304221,Equipment and Materials,04/08/2021,3898434-Z000993416,"2,006.40",MARSHALLS MONO LTD.
Neighbourhoods and Climate Change,Technical Services CM0300,Supplies and Services,304221,Equipment and Materials,04/08/2021,3898434-Z000993417,"1,214.40",MARSHALLS MONO LTD.
Neighbourhoods and Climate Change,Environmental Services,Supplies and Services,304221,Equipment and Materials,04/08/2021,3898444-065347,610.00,NEW ROW FARM NURSERIES.
Chief Executive's Office,Communications Management,Supplies and Services,336005,Advertising E336,04/08/2021,3898445-37458851,"5,000.00",NEWSQUEST (YORKSHIRE & NORTH EAST) LTD.
"Regeneration, Economy and Growth",Development and Housing,Supplies and Services,336005,Advertising E336,04/08/2021,3898445-37476735,684.65,NEWSQUEST (YORKSHIRE & NORTH EAST) LTD.
Neighbourhoods and Climate Change,Environmental Services,Supplies and Services,304221,Equipment and Materials,04/08/2021,3898447-35443,614.50,NIGEL BUCHANAN T/A PREMIER PARTS UK LTD.
"Regeneration, Economy and Growth",Development and Housing,Construction work A908,908105,Construction work,04/08/2021,3898452-DI20364793,"6,632.16",NORTHERN POWERGRID (NORTHEAST) LTD.
Dedicated Schools Grant BG0015,DSG High Needs Block,Third Party Payments,410037,Rendered by Other Local Authorities,04/08/2021,3898455-INV-2793,827.50,NUDGE EDUCATION LTD.
Dedicated Schools Grant BG0015,DSG High Needs Block,Third Party Payments,410037,Rendered by Other Local Authorities,04/08/2021,3898455-INV-3490,855.00,NUDGE EDUCATION LTD.
Dedicated Schools Grant BG0015,DSG High Needs Block,Transfer Payments,510025,School Children,04/08/2021,3898456-JULY2021TOP-UP,"1,337.00",NURSERYTIME LTD.
Neighbourhoods and Climate Change,Environmental Services,Transport,215005,Running Costs of Vehicles,04/08/2021,3898458-783259,"12,274.53",OIL NRG LTD.
Neighbourhoods and Climate Change,Technical Services CM0300,Stock A926,926900,Stock in hand-Inventory system,04/08/2021,3898461-XL273748,"3,978.23",PARK ELECTRICAL DISTRIBUTORS LTD.
Adult and Health Services,Public Health CC0450,Third Party Payments,460803,Contract Payments,04/08/2021,3898464-17551/18,"7,327.00",PIONEERING CARE PARTNERSHIP.
Adult and Health Services,Public Health CC0450,Third Party Payments,460803,Contract Payments,04/08/2021,3898464-17550/18,"5,462.92",PIONEERING CARE PARTNERSHIP.
Neighbourhoods and Climate Change,Environmental Services,Supplies and Services,304221,Equipment and Materials,04/08/2021,3898465-2123021903,"1,350.00",PRECIA-MOLEN UK LTD T/A SHERING WEIGHING LTD.
Neighbourhoods and Climate Change,Technical Services CM0300,Third Party Payments,430100,Rendered by Private Contractors,04/08/2021,3898466-171134,"3,045.00",PREMIER TRAFFIC MANAGEMENT LTD.
Adult and Health Services,Public Health CC0450,Supplies and Services,384899,Miscellaneous Expenses,04/08/2021,3898382-202118,"3,000.00",REDACTED - PAYMENT TO INDIVIDUAL
"Regeneration, Economy and Growth",Corporate Property and Land,Third Party Payments,430100,Rendered by Private Contractors,04/08/2021,3898472-INV-2754,"1,550.00",REDWOOD CABLE PROJECTS LTD.
"Regeneration, Economy and Growth",Culture Sport and Tourism,Supplies and Services,304259,Equipment and Materials,04/08/2021,3898473-SIN004665,"1,035.30",RLSS UK ENTERPRISES LTD T/A RLSS UK SHOP.
Children and Young Peoples Services,Head of Education and Skills,Supplies and Services,304259,Equipment and Materials,04/08/2021,3898473-SIN004638,563.00,RLSS UK ENTERPRISES LTD T/A RLSS UK SHOP.
"Regeneration, Economy and Growth",Development and Housing,Fees,901003,Capital - Contract Supervision,04/08/2021,3898474-J/21/24/1/APK/TM,"2,400.00",RNJ PARTNERSHIP LLP.
"Regeneration, Economy and Growth",Development and Housing,Fees,901002,Consultants fees 901002,04/08/2021,3898474-PD/21/13A/1/APK/TM,"3,200.00",RNJ PARTNERSHIP LLP.
Neighbourhoods and Climate Change,Partnerships & Community Engagement Div.,Supplies and Services,384086,Miscellaneous Expenses,04/08/2021,3898475-VOUCHERROOK02-21,500.00,ROSEMOUNT CARE HOME.
Chief Executive's Office,Communications Management,Supplies and Services,340001,Postages E340,04/08/2021,3898476-9063180460,"37,870.10",ROYAL MAIL GROUP PLC.
"Regeneration, Economy and Growth",Corporate Property and Land,Supplies and Services,338078,Services,04/08/2021,3898478-14259,"1,100.00",SAFEGUARD SECURITY (NE) LTD.
Neighbourhoods and Climate Change,Environmental Services,Supplies and Services,338027,Services,04/08/2021,3898485-0000897109,962.67,SOCOTEC UK LTD.
Neighbourhoods and Climate Change,Technical Services CM0300,Fees,901001,Internal fees,04/08/2021,3898487-2021-259,710.00,SOLMEK LTD.
Neighbourhoods and Climate Change,Environmental Services,Supplies and Services,338078,Services,04/08/2021,3898491-17329,"3,444.48",STEADFAST SECURITY SOLUTIONS LTD.
Neighbourhoods and Climate Change,Environmental Services,Supplies and Services,338078,Services,04/08/2021,3898491-17395,549.19,STEADFAST SECURITY SOLUTIONS LTD.
Dedicated Schools Grant BG0015,DSG High Needs Block,Central Support and Other Recharges,689988,Unclassified E690,04/08/2021,3898492-JULY2021TOP-UP,613.00,STEPHENSON WAY ACADEMY & NURSERY SCHOOL.
Dedicated Schools Grant BG0015,DSG High Needs Block,Transfer Payments,510025,School Children,04/08/2021,3898493-JULY2021TOP-UP,"1,203.00",STEPPING STONES DAY NURSERY (DURHAM).
Dedicated Schools Grant BG0015,DSG High Needs Block,Transfer Payments,510025,School Children,04/08/2021,3898497-JULY2021TOP-UP1,"1,337.00",SUNSHINE DAY NURSERY LTD.
Children and Young Peoples Services,Head of Education and Skills,Transfer Payments,510027,School Children,04/08/2021,3898497-JULY2021TOP-UP,668.00,SUNSHINE DAY NURSERY LTD.
"Regeneration, Economy and Growth",Corporate Property and Land,Third Party Payments,430100,Rendered by Private Contractors,04/08/2021,3898498-180600,"1,527.00",SUPATINT LTD T/A SUPATINT WINDOW FILMS & BLINDS.
"Regeneration, Economy and Growth",Transport and Contracted Services,Supplies and Services,342053,Computers and Communications,04/08/2021,3898499-21001381,825.00,SYSTRA LTD.
"Regeneration, Economy and Growth",Corporate Property and Land,Supplies and Services,304221,Equipment and Materials,04/08/2021,3898500-620996,523.55,T CROSSLING & CO LTD.
Dedicated Schools Grant BG0015,DSG High Needs Block,Central Support and Other Recharges,689987,Unclassified E690,04/08/2021,3898504-JULY2021TOP-UP,"3,053.00",THE EDUCATION PARTNERSHIP (UK) LTD.
Children and Young Peoples Services,Head of Childrens Social Care,Third Party Payments,440100,Other third party payments E440,04/08/2021,3898507-NDC1929,"2,940.00",TOAST LETTINGS.
Resources BK0010,Digital and Customer Services,Supplies and Services,304303,Equipment and Materials,04/08/2021,3898509-134603,652.40,TP ELECTRICAL SUPPLIES & FIXINGS LTD.
Neighbourhoods and Climate Change,Partnerships & Community Engagement Div.,Supplies and Services,384199,Miscellaneous Expenses,04/08/2021,3898511-5723,"5,479.45",TREVOR ATKINSON & CO LTD.
Dedicated Schools Grant BG0015,DSG High Needs Block,Central Support and Other Recharges,689988,Unclassified E690,04/08/2021,3898513-JULY2021TOP-UP,503.00,TUDHOE LEARNING TRUST T/A TUDHOE COLLIERY PRIMARY SCHOOL.
Neighbourhoods and Climate Change,Technical Services CM0300,Supplies and Services,304221,Equipment and Materials,04/08/2021,3898514-223914,883.99,TYNEDALE ROADSTONE LTD.
Neighbourhoods and Climate Change,Technical Services CM0300,Supplies and Services,304221,Equipment and Materials,04/08/2021,3898514-223918,997.93,TYNEDALE ROADSTONE LTD.
Neighbourhoods and Climate Change,Technical Services CM0300,Supplies and Services,304221,Equipment and Materials,04/08/2021,3898514-223976,619.75,TYNEDALE ROADSTONE LTD.
Neighbourhoods and Climate Change,Technical Services CM0300,Supplies and Services,304221,Equipment and Materials,04/08/2021,3898514-223979,"1,085.05",TYNEDALE ROADSTONE LTD.
Neighbourhoods and Climate Change,Technical Services CM0300,Supplies and Services,304221,Equipment and Materials,04/08/2021,3898514-224070,"1,084.06",TYNEDALE ROADSTONE LTD.
Neighbourhoods and Climate Change,Technical Services CM0300,Supplies and Services,304221,Equipment and Materials,04/08/2021,3898514-224076,"1,066.24",TYNEDALE ROADSTONE LTD.
Neighbourhoods and Climate Change,Technical Services CM0300,Supplies and Services,304221,Equipment and Materials,04/08/2021,3898514-224078,999.91,TYNEDALE ROADSTONE LTD.
Neighbourhoods and Climate Change,Environmental Services,Supplies and Services,304259,Equipment and Materials,04/08/2021,3898515-00582/2021,"3,150.00",VIPA UK LTD.
Neighbourhoods and Climate Change,Environmental Services,Supplies and Services,304259,Equipment and Materials,04/08/2021,3898515-00583/2021,"2,410.00",VIPA UK LTD.
Neighbourhoods and Climate Change,Environmental Services,Supplies and Services,304999,Equipment and Materials,04/08/2021,3898519-0000814764,"1,296.58",WICKSTEED LEISURE LTD.
"Regeneration, Economy and Growth",Corporate Property and Land,Supplies and Services,304221,Equipment and Materials,04/08/2021,3898520-20983807E,791.97,WINDCREST LIFTBITS LTD.
Neighbourhoods and Climate Change,Technical Services CM0300,Stock A926,926900,Stock in hand-Inventory system,05/08/2021,3899043-273257,"2,338.00",1ST COVERALL COMPANY LTD.
Neighbourhoods and Climate Change,Environmental Services,Supplies and Services,304221,Equipment and Materials,05/08/2021,3899044-3126,837.00,A & J GUTHRIE.
Adult and Health Services,Head of Adults,Third Party Payments,470101,Purchase of Care,05/08/2021,3898525-I-21-1309017,"82,962.67",A CHARLES THOMAS (CARE) LTD.
Children and Young Peoples Services,Head of Childrens Social Care,Third Party Payments,425021,Rendered by Voluntary Organisations,05/08/2021,3898526-PIG_102313,"33,878.79",A WILDERNESS WAY LTD.
Children and Young Peoples Services,Head of Childrens Social Care,Third Party Payments,425040,Rendered by Voluntary Organisations,05/08/2021,3898527-PIG_102921,"16,717.20",A1 FOSTER CARE.
Adult and Health Services,Head of Adults,Third Party Payments,478101,Purchase of Care,05/08/2021,3898528-I-21-1308659,"19,263.32",ACCEPT CARE LTD.
Adult and Health Services,Head of Adults,Third Party Payments,478101,Purchase of Care,05/08/2021,3898528-I-21-1308666,"39,420.00",ACCEPT CARE LTD.
Adult and Health Services,Head of Adults,Third Party Payments,478101,Purchase of Care,05/08/2021,3898528-I-21-1308718,"25,350.00",ACCEPT CARE LTD.
Adult and Health Services,Head of Adults,Third Party Payments,478101,Purchase of Care,05/08/2021,3898528-I-21-1308796,"36,215.96",ACCEPT CARE LTD.
Adult and Health Services,Head of Adults,Third Party Payments,478101,Purchase of Care,05/08/2021,3898528-I-21-1308842,"33,744.00",ACCEPT CARE LTD.
Adult and Health Services,Head of Adults,Third Party Payments,478101,Purchase of Care,05/08/2021,3898528-I-21-1308848,"26,135.40",ACCEPT CARE LTD.
Adult and Health Services,Head of Adults,Third Party Payments,478101,Purchase of Care,05/08/2021,3898528-I-21-1308917,"11,040.00",ACCEPT CARE LTD.
Adult and Health Services,Head of Adults,Third Party Payments,473101,Purchase of Care,05/08/2021,3898528-I-21-1308960,"3,097.68",ACCEPT CARE LTD.
Children and Young Peoples Services,Head of Childrens Social Care,Third Party Payments,425040,Rendered by Voluntary Organisations,05/08/2021,3898558-PIG_102912,"34,502.90",ACORN CARE (NE) LTD.
Children and Young Peoples Services,Head of Childrens Social Care,Third Party Payments,425040,Rendered by Voluntary Organisations,05/08/2021,3898559-PIG_102902,"18,257.28",ACORN HOUSE (FOSTERING SERVICES) LTD.
Adult and Health Services,Head of Adults,Third Party Payments,474101,Purchase of Care,05/08/2021,3898562-I-21-1309218,"2,559.24",AKARI CARE LTD.
Adult and Health Services,Head of Adults,Third Party Payments,479140,Purchase of Care,05/08/2021,3898563-SUSTAINABILITYPAYMENT16/23,"2,455.76",AKARI CARE LTD.
Adult and Health Services,Head of Adults,Third Party Payments,470101,Purchase of Care,05/08/2021,3898563-I-21-1309294,"88,646.34",AKARI CARE LTD.
Adult and Health Services,Head of Adults,Third Party Payments,470101,Purchase of Care,05/08/2021,3898563-I-21-1313339,"5,314.40",AKARI CARE LTD.
Adult and Health Services,Head of Adults,Third Party Payments,474101,Purchase of Care,05/08/2021,3898561-I-21-1309063,"64,910.98",AKARI CARE LTD.
Adult and Health Services,Head of Adults,Third Party Payments,474101,Purchase of Care,05/08/2021,3898564-I-21-1309325,"14,418.00",AKARI CARE LTD.
Dedicated Schools Grant BG0015,DSG High Needs Block,Third Party Payments,440080,Other third party payments E440,05/08/2021,3898565-PIG_102913,"3,660.72",ALD GROUP LTD.
Children and Young Peoples Services,Head of Childrens Social Care,Third Party Payments,425021,Rendered by Voluntary Organisations,05/08/2021,3898566-PIG_102276,"32,844.80",ALEXANDERS HOUSE.
Adult and Health Services,Head of Adults,Third Party Payments,470101,Purchase of Care,05/08/2021,3898570-I-21-1309096,549.18,ALLIANCE CARE (TRENDLEWOOD) LTD.
Adult and Health Services,Head of Adults,Third Party Payments,474101,Purchase of Care,05/08/2021,3898570-I-21-1309068,"134,589.79",ALLIANCE CARE (TRENDLEWOOD) LTD.
Adult and Health Services,Head of Adults,Third Party Payments,472101,Purchase of Care,05/08/2021,3898571-I-21-1308936,"5,342.40",ALLIED HEALTH-SERVICES LTD T/A ALLIED HEALTHCARE.
Adult and Health Services,Head of Adults,Third Party Payments,470101,Purchase of Care,05/08/2021,3898572-I-21-1313332,"7,224.00",ANCHOR CAREHOMES LTD.
Adult and Health Services,Head of Adults,Third Party Payments,470101,Purchase of Care,05/08/2021,3898573-I-21-1309172,"68,410.04",ANCHOR HANOVER GROUP.
Adult and Health Services,Head of Adults,Third Party Payments,470101,Purchase of Care,05/08/2021,3898574-I-21-1309324,"9,392.00",ANCHOR TRUST.
Adult and Health Services,Head of Adults,Third Party Payments,470101,Purchase of Care,05/08/2021,3898575-I-21-1309331,"2,176.64",ANDREW PASS.
Adult and Health Services,Head of Adults,Third Party Payments,472101,Purchase of Care,05/08/2021,3898577-I-21-1308694,"1,124.50",APM CLEANING LTD.
Adult and Health Services,Commissioning inc Supporting People,Third Party Payments,479111,Purchase of Care,05/08/2021,3898577-INV-0603,"4,069.00",APM CLEANING LTD.
Neighbourhoods and Climate Change,Environmental Services,Supplies and Services,338066,Services,05/08/2021,3899061-INV-1378,"7,150.00",ARMSTRONG RENEWABLES LTD.
Adult and Health Services,Head of Adults,Third Party Payments,470101,Purchase of Care,05/08/2021,3898578-I-21-1309245,"49,307.32",ASCOT CARE NORTH EAST LTD..
Adult and Health Services,Head of Adults,Third Party Payments,470101,Purchase of Care,05/08/2021,3898579-I-21-1309231,"4,080.00",ASHBERRY HEALTH CARE LTD T/A MOORHOUSE NURSING HOME.
Children and Young Peoples Services,Head of Education and Skills,Supplies and Services,312009,Newspapers books and periodicals E312,05/08/2021,3899062-6524694,819.62,ASKEWS & HOLTS LIBRARY SERVICES LTD.
Children and Young Peoples Services,Head of Education and Skills,Supplies and Services,312009,Newspapers books and periodicals E312,05/08/2021,3899062-6527878,613.11,ASKEWS & HOLTS LIBRARY SERVICES LTD.
Adult and Health Services,Head of Adults,Third Party Payments,470101,Purchase of Care,05/08/2021,3898580-I-21-1309249,"1,324.72",ASPIRE CARE GROUP T/A GRASMERE LODGE.
Adult and Health Services,Head of Adults,Third Party Payments,470101,Purchase of Care,05/08/2021,3898581-I-21-1309045,"13,386.68",ASPIRE CARE GROUP.
Adult and Health Services,Head of Adults,Third Party Payments,470101,Purchase of Care,05/08/2021,3898583-I-21-1309140,"4,315.12",ASPIRE CARE GROUP.
Adult and Health Services,Head of Adults,Third Party Payments,470101,Purchase of Care,05/08/2021,3898581-I-21-1308699,691.20,ASPIRE CARE GROUP.
Adult and Health Services,Head of Adults,Third Party Payments,470101,Purchase of Care,05/08/2021,3898582-I-21-1309220,"10,665.16",ASPIRE CARE GROUP.
Adult and Health Services,Head of Adults,Third Party Payments,474101,Purchase of Care,05/08/2021,3898584-I-21-1309292,"2,400.00",ASTORIA HEALTHCARE LTD.
Adult and Health Services,Head of Adults,Third Party Payments,470101,Purchase of Care,05/08/2021,3898586-I-21-1309131,"19,031.32",AUTISM CARE UK (4) LTD.
Adult and Health Services,Head of Adults,Third Party Payments,478101,Purchase of Care,05/08/2021,3898586-I-21-1308712,"10,559.72",AUTISM CARE UK (4) LTD.
Adult and Health Services,Head of Adults,Third Party Payments,478101,Purchase of Care,05/08/2021,3898586-I-21-1308890,"20,285.68",AUTISM CARE UK (4) LTD.
Adult and Health Services,Head of Adults,Third Party Payments,478101,Purchase of Care,05/08/2021,3898586-I-21-1308973,"8,539.52",AUTISM CARE UK (4) LTD.
Adult and Health Services,Head of Adults,Third Party Payments,478101,Purchase of Care,05/08/2021,3898586-I-21-1308980,"13,568.64",AUTISM CARE UK (4) LTD.
Adult and Health Services,Head of Adults,Third Party Payments,474101,Purchase of Care,05/08/2021,3898591-I-21-1309151,"14,469.02",BARCHESTER HEALTHCARE HOMES LTD.
Adult and Health Services,Head of Adults,Third Party Payments,470101,Purchase of Care,05/08/2021,3898589-I-21-1309177,"4,400.00",BARCHESTER HEALTHCARE HOMES LTD.
Adult and Health Services,Head of Adults,Third Party Payments,470101,Purchase of Care,05/08/2021,3898592-I-21-1309138,"9,798.00",BARCHESTER HEALTHCARE HOMES LTD.
Adult and Health Services,Head of Adults,Third Party Payments,474101,Purchase of Care,05/08/2021,3898588-I-21-1309165,"38,957.32",BARCHESTER HEALTHCARE HOMES LTD.
Adult and Health Services,Head of Adults,Third Party Payments,470101,Purchase of Care,05/08/2021,3898587-I-21-1309153,"1,233.12",BARCHESTER HEALTHCARE HOMES LTD.
Adult and Health Services,Head of Adults,Third Party Payments,470101,Purchase of Care,05/08/2021,3898588-I-21-1309298,"1,440.00",BARCHESTER HEALTHCARE HOMES LTD.
Adult and Health Services,Head of Adults,Third Party Payments,470101,Purchase of Care,05/08/2021,3898595-I-21-1309195,"5,690.18",BARCHESTER HEALTHCARE HOMES LTD.
Adult and Health Services,Head of Adults,Third Party Payments,470101,Purchase of Care,05/08/2021,3898590-I-21-1309224,"2,412.00",BARCHESTER HEALTHCARE HOMES LTD.
Adult and Health Services,Head of Adults,Third Party Payments,474101,Purchase of Care,05/08/2021,3898593-I-21-1309241,"78,290.01",BARCHESTER HEALTHCARE HOMES LTD.
Adult and Health Services,Head of Adults,Third Party Payments,474101,Purchase of Care,05/08/2021,3898594-I-21-1309193,"1,900.00",BARCHESTER HEALTHCARE HOMES LTD.
Adult and Health Services,Head of Adults,Third Party Payments,474101,Purchase of Care,05/08/2021,3898591-I-21-1309327,"32,846.23",BARCHESTER HEALTHCARE HOMES LTD.
Adult and Health Services,Head of Adults,Third Party Payments,470101,Purchase of Care,05/08/2021,3898591-I-21-1309051,"2,368.00",BARCHESTER HEALTHCARE HOMES LTD.
Children and Young Peoples Services,Head of Childrens Social Care,Third Party Payments,425040,Rendered by Voluntary Organisations,05/08/2021,3898597-PIG_102896,"26,844.60",BARNARDOS BELIEVE IN CHILDREN.
"Regeneration, Economy and Growth",Transport and Contracted Services,Third Party Payments,440999,Other third party payments E440,05/08/2021,3899068-91420,"20,473.00",BAYDALE CONTROL SYSTEMS LTD.
"Regeneration, Economy and Growth",Transport and Contracted Services,Third Party Payments,440999,Other third party payments E440,05/08/2021,3899068-91421,"1,999.08",BAYDALE CONTROL SYSTEMS LTD.
Children and Young Peoples Services,Head of Childrens Social Care,Third Party Payments,425021,Rendered by Voluntary Organisations,05/08/2021,3898598-PIG_102309,"33,955.98",BDT CARE SOLUTIONS LTD.
Children and Young Peoples Services,Head of Childrens Social Care,Third Party Payments,425021,Rendered by Voluntary Organisations,05/08/2021,3898598-PIG_102310,"47,153.88",BDT CARE SOLUTIONS LTD.
Children and Young Peoples Services,Head of Childrens Social Care,Third Party Payments,425021,Rendered by Voluntary Organisations,05/08/2021,3898598-PIG_102311,"63,215.66",BDT CARE SOLUTIONS LTD.
Children and Young Peoples Services,Head of Childrens Social Care,Third Party Payments,425021,Rendered by Voluntary Organisations,05/08/2021,3898598-PIG_102312,"58,627.45",BDT CARE SOLUTIONS LTD.
Adult and Health Services,Head of Adults,Third Party Payments,470101,Purchase of Care,05/08/2021,3898599-I-21-1309111,"23,760.44",BEAMISH RESIDENTIAL CARE HOME LTD.
Adult and Health Services,Head of Adults,Third Party Payments,478101,Purchase of Care,05/08/2021,3898600-I-21-1308751,"15,559.35",BEECHFIELD CARE & SUPPORT LTD.
Neighbourhoods and Climate Change,Environmental Services,Transport,210057,Repair and Maintenance of Vehicles,05/08/2021,3899070-35205821,840.00,BELL TRUCK SALES LTD T/A BELL TRUCK & VAN.
Adult and Health Services,Head of Adults,Third Party Payments,470101,Purchase of Care,05/08/2021,3898601-I-21-1309273,"18,631.40",BENTON CARE SERVICES LTD.
"Regeneration, Economy and Growth",Transport and Contracted Services,Supplies and Services,304245,Equipment and Materials,05/08/2021,3898602-DHP0112,964.75,BERNICIA GROUP LTD.*
Adult and Health Services,Head of Adults,Supplies and Services,338365,Services,05/08/2021,3898602-DHP0111,"26,714.82",BERNICIA GROUP LTD.*
Adult and Health Services,Public Health CC0450,Premises,145050,Cleaning and Domestic Supplies,05/08/2021,3899073-407704,611.89,BETTAKLEEN LTD.
Adult and Health Services,Public Health CC0450,Premises,145050,Cleaning and Domestic Supplies,05/08/2021,3899073-407703,"1,570.41",BETTAKLEEN LTD.
Adult and Health Services,Head of Adults,Third Party Payments,472101,Purchase of Care,05/08/2021,3898605-I-21-1308735,"19,655.69",BLOSSOM HOME CARE.
Adult and Health Services,Head of Adults,Third Party Payments,470101,Purchase of Care,05/08/2021,3898608-I-21-1309320,"100,982.22",BONDCARE WILLINGTON LTD.
Adult and Health Services,Head of Adults,Third Party Payments,478151,Purchase of Care,05/08/2021,3898608-CB31,"6,925.71",BONDCARE WILLINGTON LTD.
Adult and Health Services,Head of Adults,Third Party Payments,474101,Purchase of Care,05/08/2021,3898606-I-21-1309199,"91,515.60",BONDCARE WILLINGTON LTD.
Adult and Health Services,Head of Adults,Third Party Payments,470101,Purchase of Care,05/08/2021,3898607-I-21-1309142,"69,004.88",BONDCARE WILLINGTON LTD.
Adult and Health Services,Head of Adults,Third Party Payments,470101,Purchase of Care,05/08/2021,3898608-I-21-1308996,"5,021.64",BONDCARE WILLINGTON LTD.
Adult and Health Services,Head of Adults,Third Party Payments,470101,Purchase of Care,05/08/2021,3898606-I-21-1308874,"1,847.04",BONDCARE WILLINGTON LTD.
Adult and Health Services,Head of Adults,Third Party Payments,470101,Purchase of Care,05/08/2021,3898607-I-21-1308782,"2,077.92",BONDCARE WILLINGTON LTD.
Adult and Health Services,Head of Adults,Third Party Payments,470101,Purchase of Care,05/08/2021,3898609-I-21-1309060,"4,412.00",BOWDEN DERRA PARK LTD.
"Regeneration, Economy and Growth",Culture Sport and Tourism,Supplies and Services,342225,Computers and Communications,05/08/2021,3899080-INV-11514,"1,266.66",BRAMBLE HUB LTD.
Neighbourhoods and Climate Change,Partnerships & Community Engagement Div.,Supplies and Services,384086,Miscellaneous Expenses,05/08/2021,3899081-VOUCHERTAYP01-21,500.00,BRANDON PRIMARY SCHOOL PTA.
Adult and Health Services,Head of Adults,Third Party Payments,470101,Purchase of Care,05/08/2021,3898610-I-21-1309200,"5,488.28",BRIARDENE PRIVATE RESIDENTIAL & NURSING HOME.
Adult and Health Services,Head of Adults,Third Party Payments,470101,Purchase of Care,05/08/2021,3898611-I-21-1309338,"60,360.72",BROOMHOUSE CARE LTD.
Adult and Health Services,Head of Adults,Third Party Payments,473101,Purchase of Care,05/08/2021,3898612-I-21-1308914,"1,265.76",BULLION COMMUNITY RESOURCE CENTRE.
Adult and Health Services,Head of Adults,Third Party Payments,470101,Purchase of Care,05/08/2021,3898613-I-21-1309038,"5,895.71",BURLINGTON CARE LTD.
Resources BK0010,People & Talent Management,Supplies and Services,342051,Computers and Communications,05/08/2021,3899086-790790,"1,308.96",BYTES SOFTWARE SERVICES LTD.
Children and Young Peoples Services,Head of Childrens Social Care,Third Party Payments,425021,Rendered by Voluntary Organisations,05/08/2021,3898614-PIG_102910,"13,650.00",CAMBIAN CHILDCARE LTD T/A HARTLEPOOL SCHOOL.
Children and Young Peoples Services,Head of Childrens Social Care,Third Party Payments,425023,Rendered by Voluntary Organisations,05/08/2021,3898614-PIG_102909,"8,573.48",CAMBIAN CHILDCARE LTD T/A HARTLEPOOL SCHOOL.
Children and Young Peoples Services,Head of Childrens Social Care,Third Party Payments,425023,Rendered by Voluntary Organisations,05/08/2021,3898615-PIG_102277,"25,501.08",CAMBIAN WHINFELL SCHOOL LTD.
Adult and Health Services,Head of Adults,Third Party Payments,472101,Purchase of Care,05/08/2021,3898616-I-21-1308779,"3,011.80",CARE MATTERS (HOMECARE) LTD.
Adult and Health Services,Head of Adults,Third Party Payments,470101,Purchase of Care,05/08/2021,3898621-I-21-1309329,"5,729.04",CARE UK COMMUNITY PARTNERSHIPS LTD.
Adult and Health Services,Head of Adults,Third Party Payments,470101,Purchase of Care,05/08/2021,3898618-I-21-1309208,"28,191.24",CARE UK COMMUNITY PARTNERSHIPS LTD.
Adult and Health Services,Head of Adults,Third Party Payments,470101,Purchase of Care,05/08/2021,3898620-I-21-1309260,"2,397.36",CARE UK COMMUNITY PARTNERSHIPS LTD.
Adult and Health Services,Head of Adults,Third Party Payments,474101,Purchase of Care,05/08/2021,3898623-I-21-1309166,"90,318.84",CARE UK COMMUNITY PARTNERSHIPS LTD.
Adult and Health Services,Head of Adults,Third Party Payments,470101,Purchase of Care,05/08/2021,3898619-I-21-1309203,"5,246.44",CARE UK COMMUNITY PARTNERSHIPS LTD.
Adult and Health Services,Head of Adults,Third Party Payments,470101,Purchase of Care,05/08/2021,3898617-I-21-1309168,"2,496.00",CARE UK COMMUNITY PARTNERSHIPS LTD.
Adult and Health Services,Head of Adults,Third Party Payments,470101,Purchase of Care,05/08/2021,3898622-I-21-1309238,"31,273.08",CARE UK COMMUNITY PARTNERSHIPS LTD.
Adult and Health Services,Head of Adults,Third Party Payments,472101,Purchase of Care,05/08/2021,3898624-I-21-1308828,"3,559.31",CARE VANTAGE LTD.
Adult and Health Services,Head of Adults,Third Party Payments,474101,Purchase of Care,05/08/2021,3898627-I-21-1309086,"8,298.76",CARELINE LIFESTYLES (UK) LTD.
Adult and Health Services,Head of Adults,Third Party Payments,470101,Purchase of Care,05/08/2021,3898626-I-21-1309137,"3,676.96",CARELINE LIFESTYLES (UK) LTD.
Adult and Health Services,Head of Adults,Third Party Payments,470101,Purchase of Care,05/08/2021,3898628-I-21-1309258,"2,796.52",CARELINE LIFESTYLES (UK) LTD.
Adult and Health Services,Head of Adults,Third Party Payments,474101,Purchase of Care,05/08/2021,3898625-I-21-1309118,"13,431.52",CARELINE LIFESTYLES (UK) LTD.
Adult and Health Services,Head of Adults,Third Party Payments,474101,Purchase of Care,05/08/2021,3898629-I-21-1309159,"20,960.60",CARELINE LIFESTYLES.
Adult and Health Services,Head of Adults,Third Party Payments,470101,Purchase of Care,05/08/2021,3898630-I-21-1309009,"1,777.53",CAREWELL (HEALTH CARE) LTD.
Adult and Health Services,Head of Adults,Third Party Payments,470101,Purchase of Care,05/08/2021,3898630-I-21-1309322,"62,913.84",CAREWELL (HEALTH CARE) LTD.
Neighbourhoods and Climate Change,Environmental Services,Supplies and Services,304221,Equipment and Materials,05/08/2021,3899090-422180,929.00,CARRS BILLINGTON AGRICULTURE.
Adult and Health Services,Head of Adults,Third Party Payments,472101,Purchase of Care,05/08/2021,3898631-I-21-1308741,"27,113.91",CASTLE CARE TEESDALE LTD.
Adult and Health Services,Head of Adults,Third Party Payments,470101,Purchase of Care,05/08/2021,3898632-I-21-1309074,"26,241.76",CASTLEBANK CARE HOME LTD.
"Regeneration, Economy and Growth",Corporate Property and Land,Third Party Payments,430100,Rendered by Private Contractors,05/08/2021,3899094-594,"2,688.72",CEILINGS DIRECT LTD.
Children and Young Peoples Services,Head of Childrens Social Care,Third Party Payments,425040,Rendered by Voluntary Organisations,05/08/2021,3898634-PIG_102262,"3,037.32",CHANGING FUTURES FOSTERING.
Neighbourhoods and Climate Change,Environmental Services,Transport,215995,Running Costs of Vehicles,05/08/2021,3899097-195943,799.98,CHEVIN FLEET SOLUTIONS LTD.
Children and Young Peoples Services,Head of Childrens Social Care,Third Party Payments,425040,Rendered by Voluntary Organisations,05/08/2021,3898636-PIG_102266,"35,563.26",CHILDRENS FAMILY TRUST.
Adult and Health Services,Head of Adults,Third Party Payments,472101,Purchase of Care,05/08/2021,3898638-I-21-1308769,"7,033.89",CLASSIC RESOURCES UK LTD T/A CLASSIC RESOURCES HOMECARE.
Adult and Health Services,Head of Adults,Third Party Payments,470101,Purchase of Care,05/08/2021,3898639-I-21-1309181,"2,360.00",CLEVEDEN CARE LTD T/A TEESDALE LODGE NURSING HOME.
Adult and Health Services,Head of Adults,Third Party Payments,470101,Purchase of Care,05/08/2021,3898640-I-21-1309076,"9,428.64",COLEG ELIDYR CAMPHILL COMMUNITIES.
Neighbourhoods and Climate Change,Environmental Services,Supplies and Services,384199,Miscellaneous Expenses,05/08/2021,3899107-JOB001/20421,525.00,COLIN JOBLING T/A RAINBOW INTERNATIONAL.
Neighbourhoods and Climate Change,Environmental Services,Supplies and Services,384199,Miscellaneous Expenses,05/08/2021,3899107-JOB001/20423,595.00,COLIN JOBLING T/A RAINBOW INTERNATIONAL.
Adult and Health Services,Head of Adults,Third Party Payments,472101,Purchase of Care,05/08/2021,3898641-I-21-1308873,"130,057.68",COMFORT CALL LTD.
Adult and Health Services,Head of Adults,Third Party Payments,478101,Purchase of Care,05/08/2021,3898642-I-21-1308792,"22,865.52",COMMUNITY INTEGRATED CARE LTD.
Adult and Health Services,Head of Adults,Third Party Payments,478101,Purchase of Care,05/08/2021,3898642-I-21-1308886,"17,925.84",COMMUNITY INTEGRATED CARE LTD.
Adult and Health Services,Head of Adults,Third Party Payments,478101,Purchase of Care,05/08/2021,3898642-I-21-1308900,"22,373.83",COMMUNITY INTEGRATED CARE LTD.
Adult and Health Services,Head of Adults,Third Party Payments,478151,Purchase of Care,05/08/2021,3898643-421R168780,"3,036.00",COMMUNITY INTEGRATED CARE LTD.
Adult and Health Services,Head of Adults,Third Party Payments,478151,Purchase of Care,05/08/2021,3898643-421R174668,"7,800.00",COMMUNITY INTEGRATED CARE LTD.
Adult and Health Services,Head of Adults,Third Party Payments,478151,Purchase of Care,05/08/2021,3898643-421R174669,"5,555.88",COMMUNITY INTEGRATED CARE LTD.
Adult and Health Services,Head of Adults,Third Party Payments,478151,Purchase of Care,05/08/2021,3898643-421R174703,"9,712.00",COMMUNITY INTEGRATED CARE LTD.
Adult and Health Services,Head of Adults,Third Party Payments,478101,Purchase of Care,05/08/2021,3898642-I-21-1308793,"20,503.20",COMMUNITY INTEGRATED CARE LTD.
Adult and Health Services,Head of Adults,Third Party Payments,478101,Purchase of Care,05/08/2021,3898642-I-21-1308968,"20,928.96",COMMUNITY INTEGRATED CARE LTD.
Adult and Health Services,Head of Adults,Third Party Payments,478101,Purchase of Care,05/08/2021,3898642-I-21-1308898,"13,498.56",COMMUNITY INTEGRATED CARE LTD.
Adult and Health Services,Head of Adults,Third Party Payments,478101,Purchase of Care,05/08/2021,3898642-I-21-1308901,"18,940.08",COMMUNITY INTEGRATED CARE LTD.
Adult and Health Services,Head of Adults,Third Party Payments,478101,Purchase of Care,05/08/2021,3898642-I-21-1308813,"31,051.64",COMMUNITY INTEGRATED CARE LTD.
Adult and Health Services,Head of Adults,Third Party Payments,472101,Purchase of Care,05/08/2021,3898644-I-21-1308691,702.00,CONFIDENCE CARE & SUPPORT LTD.
Adult and Health Services,Head of Adults,Third Party Payments,470101,Purchase of Care,05/08/2021,3898645-I-21-1309333,"8,167.16",CONSENSUS SUPPORT SERVICES LTD.
Resources BK0010,Legal & Democratic Services,Supplies and Services,338025,Services,05/08/2021,3899106-S44995-02041,630.00,CO-OPERATIVE FUNERAL CARE.
"Regeneration, Economy and Growth",Culture Sport and Tourism,Supplies and Services,372009,Subscriptions E372,05/08/2021,3899108-SI-3346,"4,152.00",CORE BUSINESS SYSTEMS LTD T/A CASCADE 3D.
Children and Young Peoples Services,Head of Education and Skills,Supplies and Services,338094,Services,05/08/2021,3899109-556,510.00,CORNERSTONES CENTRE FOR THE COMMUNITY.
Adult and Health Services,Head of Adults,Third Party Payments,474101,Purchase of Care,05/08/2021,3898648-I-21-1309319,"71,960.37",COUNTRYWIDE CARE HOMES (2) LTD.
Adult and Health Services,Head of Adults,Third Party Payments,470101,Purchase of Care,05/08/2021,3898646-I-21-1309110,"1,333.60",COUNTRYWIDE CARE HOMES (2) LTD.
Adult and Health Services,Head of Adults,Third Party Payments,470101,Purchase of Care,05/08/2021,3898647-I-21-1309246,"2,465.76",COUNTRYWIDE CARE HOMES (2) LTD.
Adult and Health Services,Head of Adults,Third Party Payments,474101,Purchase of Care,05/08/2021,3898646-I-21-1313325,"2,810.92",COUNTRYWIDE CARE HOMES (2) LTD.
Adult and Health Services,Head of Adults,Third Party Payments,470101,Purchase of Care,05/08/2021,3898649-I-21-1309251,"41,949.04",COUNTRYWIDE CARE HOMES (2) LTD.
Adult and Health Services,Head of Adults,Third Party Payments,474101,Purchase of Care,05/08/2021,3898650-I-21-1309314,"37,103.24",CRAIGARRAN LTD.
Adult and Health Services,Head of Adults,Third Party Payments,472101,Purchase of Care,05/08/2021,3898652-I-21-1308801,882.00,CREATIVE SUPPORT LTD.
Adult and Health Services,Head of Adults,Third Party Payments,478101,Purchase of Care,05/08/2021,3898652-I-21-1308984,"19,329.36",CREATIVE SUPPORT LTD.
Adult and Health Services,Head of Adults,Third Party Payments,478101,Purchase of Care,05/08/2021,3898652-I-21-1308895,"9,920.24",CREATIVE SUPPORT LTD.
Adult and Health Services,Head of Adults,Third Party Payments,478101,Purchase of Care,05/08/2021,3898652-I-21-1308976,"27,803.32",CREATIVE SUPPORT LTD.
Adult and Health Services,Head of Adults,Third Party Payments,478101,Purchase of Care,05/08/2021,3898652-I-21-1308979,"3,000.60",CREATIVE SUPPORT LTD.
Adult and Health Services,Head of Adults,Third Party Payments,472101,Purchase of Care,05/08/2021,3898653-I-21-1308877,"80,351.74",CRESCENT HOMECARE LTD.
Adult and Health Services,Head of Adults,Third Party Payments,472101,Purchase of Care,05/08/2021,3898653-I-21-1308922,"1,054.72",CRESCENT HOMECARE LTD.
Adult and Health Services,Head of Adults,Third Party Payments,474101,Purchase of Care,05/08/2021,3898654-I-21-1309081,"89,167.29",CROFT HOUSE (CARE) LTD.
Adult and Health Services,Head of Adults,Third Party Payments,474101,Purchase of Care,05/08/2021,3898655-I-21-1309003,"1,779.20",CROWN CARE IV LTD T/A BALMORAL COURT.
Adult and Health Services,Head of Adults,Third Party Payments,470101,Purchase of Care,05/08/2021,3898656-I-21-1309300,"5,133.70",CROWN CARE VI LTD.
Adult and Health Services,Head of Adults,Third Party Payments,474101,Purchase of Care,05/08/2021,3898656-I-21-1309121,"134,678.34",CROWN CARE VI LTD.
Neighbourhoods and Climate Change,Environmental Services,Supplies and Services,384606,Miscellaneous Expenses,05/08/2021,3899114-RED-08-2021-033,"3,834.54",CUMBRIA ACTION FOR SUSTAINABILITY.
Adult and Health Services,Head of Adults,Third Party Payments,474101,Purchase of Care,05/08/2021,3898657-I-21-1309139,"4,937.52",CYGNET OE LTD.
Adult and Health Services,Head of Adults,Third Party Payments,474101,Purchase of Care,05/08/2021,3898659-I-21-1309216,"11,134.24",CYGNET OE LTD.
Adult and Health Services,Head of Adults,Third Party Payments,470101,Purchase of Care,05/08/2021,3898658-I-21-1309169,"20,329.40",CYGNET OE LTD.
Adult and Health Services,Head of Adults,Third Party Payments,474101,Purchase of Care,05/08/2021,3898661-I-21-1309066,"15,244.92",D3 CARE LTD.
Adult and Health Services,Head of Adults,Third Party Payments,474101,Purchase of Care,05/08/2021,3898660-I-21-1309025,"43,335.99",D3 CARE LTD.
Resources BK0010,Legal & Democratic Services,Supplies and Services,338043,Services,05/08/2021,3899116-01-10007463,954.80,DAC BEACHCROFT LLP.
Adult and Health Services,Head of Adults,Third Party Payments,472101,Purchase of Care,05/08/2021,3898662-I-21-1308805,"1,574.21",DALE CARE LTD.
Adult and Health Services,Head of Adults,Third Party Payments,472101,Purchase of Care,05/08/2021,3898662-I-21-1308832,"401,136.93",DALE CARE LTD.
Children and Young Peoples Services,Head of Childrens Social Care,Third Party Payments,440062,Other third party payments E440,05/08/2021,3898662-PIG_102916,"5,445.76",DALE CARE LTD.
"Regeneration, Economy and Growth",Transport and Contracted Services,Supplies and Services,342053,Computers and Communications,05/08/2021,3899117-2345,"20,590.00",DATA IMAGES SOFTWARE SOLUTIONS LTD.
Adult and Health Services,Head of Adults,Third Party Payments,478151,Purchase of Care,05/08/2021,3899120-INV-0861,"1,708.80",DEACONSTAR LTD.
Adult and Health Services,Head of Adults,Third Party Payments,478151,Purchase of Care,05/08/2021,3899120-INV-0862,"2,521.41",DEACONSTAR LTD.
Adult and Health Services,Head of Adults,Third Party Payments,478151,Purchase of Care,05/08/2021,3899120-INV-0863,"2,160.00",DEACONSTAR LTD.
Adult and Health Services,Head of Adults,Third Party Payments,473101,Purchase of Care,05/08/2021,3898664-I-21-1308930,"15,448.60",DEACONSTAR LTD.
Adult and Health Services,Head of Adults,Third Party Payments,478101,Purchase of Care,05/08/2021,3898664-I-21-1308697,"12,484.56",DEACONSTAR LTD.
Adult and Health Services,Head of Adults,Third Party Payments,478101,Purchase of Care,05/08/2021,3898664-I-21-1308830,"6,900.00",DEACONSTAR LTD.
Adult and Health Services,Head of Adults,Third Party Payments,478101,Purchase of Care,05/08/2021,3898664-I-21-1308916,"11,412.00",DEACONSTAR LTD.
Adult and Health Services,Head of Adults,Third Party Payments,478101,Purchase of Care,05/08/2021,3898664-I-21-1308994,"10,440.00",DEACONSTAR LTD.
Adult and Health Services,Head of Adults,Third Party Payments,478101,Purchase of Care,05/08/2021,3898664-I-21-1308995,"5,463.04",DEACONSTAR LTD.
Neighbourhoods and Climate Change,Environmental Services,Stock A926,926004,Stock,05/08/2021,3899122-96410204,593.12,DENNIS EAGLE LTD T/A TERBERG MATEC (UK) LTD.
Neighbourhoods and Climate Change,Environmental Services,Third Party Payments,430100,Rendered by Private Contractors,05/08/2021,3899123-412282,"2,706.81",DENNIS EAGLE LTD.
Neighbourhoods and Climate Change,Environmental Services,Third Party Payments,430100,Rendered by Private Contractors,05/08/2021,3899123-412576,"1,215.67",DENNIS EAGLE LTD.
Neighbourhoods and Climate Change,Environmental Services,Third Party Payments,430100,Rendered by Private Contractors,05/08/2021,3899123-415397,"1,694.32",DENNIS EAGLE LTD.
Adult and Health Services,Head of Adults,Third Party Payments,470101,Purchase of Care,05/08/2021,3898665-I-21-1309125,"41,972.56",DEVONSHIRE HOUSE CARE LTD.
Adult and Health Services,Head of Adults,Third Party Payments,474101,Purchase of Care,05/08/2021,3898666-I-21-1309202,"72,920.26",DIPTON CARE HOME LTD.
Dedicated Schools Grant BG0015,DSG High Needs Block,Supplies and Services,304259,Equipment and Materials,05/08/2021,3899124-0000119931,"1,275.00",DIRECT HEALTHCARE GROUP LTD.
Adult and Health Services,Head of Adults,Third Party Payments,473101,Purchase of Care,05/08/2021,3898667-I-21-1308774,"7,112.40",DIRECT STEPS.
Children and Young Peoples Services,Head of Childrens Social Care,Third Party Payments,425040,Rendered by Voluntary Organisations,05/08/2021,3898668-PIG_102895,"15,261.72",DIVERSE CARE UK LTD.
Neighbourhoods and Climate Change,Partnerships & Community Engagement Div.,Supplies and Services,384086,Miscellaneous Expenses,05/08/2021,3899125-VOUCHERZAIS01-21,945.00,DMC 4 DURHAM CIC.
"Regeneration, Economy and Growth",Culture Sport and Tourism,Supplies and Services,304259,Equipment and Materials,05/08/2021,3899126-8355,"3,196.06",DMK LEISURE LTD.
"Regeneration, Economy and Growth",Culture Sport and Tourism,Supplies and Services,304259,Equipment and Materials,05/08/2021,3899126-8356,"3,196.06",DMK LEISURE LTD.
Resources BK0010,Digital and Customer Services,Supplies and Services,342051,Computers and Communications,05/08/2021,3899127-8827,"25,780.90",DOCUMATION SOFTWARE LTD.
Adult and Health Services,Head of Adults,Third Party Payments,474101,Purchase of Care,05/08/2021,3898670-I-21-1309248,"9,647.12",DUNLUCE HOUSE T/A BOHILL BUNGALOWS.
Adult and Health Services,Head of Adults,Third Party Payments,473101,Purchase of Care,05/08/2021,3898671-I-21-1308678,"2,672.40",DURHAM ALLIANCE FOR COMMUNITY CARE.
Adult and Health Services,Head of Adults,Third Party Payments,473101,Purchase of Care,05/08/2021,3898671-I-21-1308932,"2,342.64",DURHAM ALLIANCE FOR COMMUNITY CARE.
Adult and Health Services,Head of Adults,Third Party Payments,473101,Purchase of Care,05/08/2021,3898671-I-21-1308934,"2,952.21",DURHAM ALLIANCE FOR COMMUNITY CARE.
Adult and Health Services,Head of Adults,Third Party Payments,473101,Purchase of Care,05/08/2021,3898671-I-21-1308933,"3,401.82",DURHAM ALLIANCE FOR COMMUNITY CARE.
Adult and Health Services,Head of Adults,Third Party Payments,473101,Purchase of Care,05/08/2021,3898671-I-21-1308988,"2,002.98",DURHAM ALLIANCE FOR COMMUNITY CARE.
Adult and Health Services,Head of Adults,Third Party Payments,470101,Purchase of Care,05/08/2021,3898673-I-21-1309154,"46,363.84",DURHAM CARELINE LTD.
Adult and Health Services,Head of Adults,Third Party Payments,474101,Purchase of Care,05/08/2021,3898672-I-21-1309247,"43,209.54",DURHAM CARELINE LTD.
Adult and Health Services,Head of Adults,Third Party Payments,470101,Purchase of Care,05/08/2021,3898672-I-21-1313334,"15,087.60",DURHAM CARELINE LTD.
Children and Young Peoples Services,Head of Childrens Social Care,Third Party Payments,425021,Rendered by Voluntary Organisations,05/08/2021,3898674-PIG_102278,"58,200.00",DUTY OF CARE LTD.
Children and Young Peoples Services,Head of Childrens Social Care,Third Party Payments,425021,Rendered by Voluntary Organisations,05/08/2021,3898674-PIG_102279,"34,400.00",DUTY OF CARE LTD.
Adult and Health Services,Head of Adults,Third Party Payments,474101,Purchase of Care,05/08/2021,3898675-I-21-1309237,"2,625.48",EAST CHESHIRE HOUSING CONSORTIUM LTD.
Adult and Health Services,Head of Adults,Third Party Payments,474101,Purchase of Care,05/08/2021,3898676-I-21-1309112,"2,132.76",EAST CLEVELAND M S HOME.
"Regeneration, Economy and Growth",Corporate Property and Land,Supplies and Services,304221,Equipment and Materials,05/08/2021,3899135-6115186,834.00,EASTERN SHIRES PURCHASING ORGANISATION.
"Regeneration, Economy and Growth",Corporate Property and Land,Supplies and Services,304221,Equipment and Materials,05/08/2021,3899135-6138750,530.00,EASTERN SHIRES PURCHASING ORGANISATION.
Adult and Health Services,Head of Adults,Third Party Payments,472101,Purchase of Care,05/08/2021,3898677-I-21-1308875,"21,422.63",EBONEY HOME CARE LTD.
Adult and Health Services,Head of Adults,Third Party Payments,473101,Purchase of Care,05/08/2021,3898677-I-21-1308665,"21,031.43",EBONEY HOME CARE LTD.
Adult and Health Services,Head of Adults,Third Party Payments,440062,Other third party payments E440,05/08/2021,3898677-PIG_102261,620.10,EBONEY HOME CARE LTD.
Neighbourhoods and Climate Change,Environmental Services,Supplies and Services,384606,Miscellaneous Expenses,05/08/2021,3899136-RED-08-2021-031,"1,880.00",EDEN RIVERS TRUST.
"Regeneration, Economy and Growth",Corporate Property and Land,Supplies and Services,304221,Equipment and Materials,05/08/2021,3899137-059-285520,"1,493.62",EDMUNDSON ELECTRICAL LTD.
Adult and Health Services,Head of Adults,Third Party Payments,470101,Purchase of Care,05/08/2021,3898678-I-21-1309280,"11,554.80",EDUCATION & SERVICES FOR PEOPLE WITH AUTISM LTD (ESPA).
Adult and Health Services,Head of Adults,Third Party Payments,470101,Purchase of Care,05/08/2021,3898679-I-21-1309079,"8,843.80",EDUCATION & SERVICES FOR PEOPLE WITH AUTISM LTD (ESPA).
Adult and Health Services,Head of Adults,Third Party Payments,470101,Purchase of Care,05/08/2021,3898681-I-21-1309113,"6,489.84",EDUCATION & SERVICES FOR PEOPLE WITH AUTISM LTD (ESPA).
Adult and Health Services,Head of Adults,Third Party Payments,470101,Purchase of Care,05/08/2021,3898681-I-21-1309201,"5,374.92",EDUCATION & SERVICES FOR PEOPLE WITH AUTISM LTD (ESPA).
Adult and Health Services,Head of Adults,Third Party Payments,470101,Purchase of Care,05/08/2021,3898682-I-21-1309232,"10,487.76",EDUCATION & SERVICES FOR PEOPLE WITH AUTISM LTD (ESPA).
Adult and Health Services,Head of Adults,Third Party Payments,470101,Purchase of Care,05/08/2021,3898680-I-21-1309222,"10,200.24",EDUCATION & SERVICES FOR PEOPLE WITH AUTISM LTD (ESPA).
Adult and Health Services,Head of Adults,Third Party Payments,478101,Purchase of Care,05/08/2021,3898683-I-21-1308824,"28,026.40",ELAN CARE WHITETHORN LTD.
Adult and Health Services,Head of Adults,Third Party Payments,470101,Purchase of Care,05/08/2021,3898684-I-21-1309160,"41,477.24",ELBA CARE LTD.
Adult and Health Services,Head of Adults,Third Party Payments,470101,Purchase of Care,05/08/2021,3898687-I-21-1309317,"5,676.96",ELLERSHAW HOUSE LTD.
Adult and Health Services,Head of Adults,Third Party Payments,470101,Purchase of Care,05/08/2021,3898688-I-21-1309088,"2,952.04",ELPHA LODGE RESIDENTIAL CARE HOME  LTD.
Adult and Health Services,Head of Adults,Third Party Payments,472101,Purchase of Care,05/08/2021,3898689-I-21-1308833,"275,879.49",EMBRACING CARE.
Adult and Health Services,Head of Adults,Third Party Payments,478101,Purchase of Care,05/08/2021,3898689-I-21-1308927,"14,640.00",EMBRACING CARE.
Adult and Health Services,Head of Adults,Third Party Payments,472101,Purchase of Care,05/08/2021,3898689-I-21-1308703,"1,077.37",EMBRACING CARE.
Children and Young Peoples Services,Head of Childrens Social Care,Third Party Payments,440062,Other third party payments E440,05/08/2021,3898689-PIG_102885,"2,591.70",EMBRACING CARE.
Adult and Health Services,Head of Adults,Third Party Payments,478101,Purchase of Care,05/08/2021,3898690-I-21-1308673,"39,351.00",EMBRACING CARE.
Adult and Health Services,Head of Adults,Third Party Payments,473101,Purchase of Care,05/08/2021,3898692-I-21-1308655,"6,460.40",ENDEAVOUR WOODCRAFTS CIC.
Adult and Health Services,Head of Adults,Third Party Payments,470101,Purchase of Care,05/08/2021,3898694-I-21-1309084,"2,670.88",EOTHEN HOMES LTD.
Adult and Health Services,Head of Adults,Third Party Payments,470101,Purchase of Care,05/08/2021,3898695-I-21-1313331,"1,276.68",EOTHEN HOMES LTD.
"Regeneration, Economy and Growth",Development and Housing,Supplies and Services,338027,Services,05/08/2021,3899142-DRHM3,"5,007.75",ERIMAX LTD.
Adult and Health Services,Head of Adults,Third Party Payments,478101,Purchase of Care,05/08/2021,3898698-I-21-1308797,"9,120.32",ESSENTIAL CARE & SUPPORT LTD.
Adult and Health Services,Head of Adults,Third Party Payments,478101,Purchase of Care,05/08/2021,3898696-I-21-1308885,"12,762.36",ESSENTIAL CARE & SUPPORT LTD.
Adult and Health Services,Head of Adults,Third Party Payments,478101,Purchase of Care,05/08/2021,3898698-I-21-1308693,"12,756.52",ESSENTIAL CARE & SUPPORT LTD.
Adult and Health Services,Head of Adults,Third Party Payments,478101,Purchase of Care,05/08/2021,3898698-I-21-1308711,"25,314.68",ESSENTIAL CARE & SUPPORT LTD.
Adult and Health Services,Head of Adults,Third Party Payments,478101,Purchase of Care,05/08/2021,3898698-I-21-1308758,"16,549.92",ESSENTIAL CARE & SUPPORT LTD.
Adult and Health Services,Head of Adults,Third Party Payments,478101,Purchase of Care,05/08/2021,3898698-I-21-1308760,"16,578.44",ESSENTIAL CARE & SUPPORT LTD.
Adult and Health Services,Head of Adults,Third Party Payments,478101,Purchase of Care,05/08/2021,3898698-I-21-1308809,"19,920.60",ESSENTIAL CARE & SUPPORT LTD.
Adult and Health Services,Head of Adults,Third Party Payments,478101,Purchase of Care,05/08/2021,3898698-I-21-1308868,"21,665.20",ESSENTIAL CARE & SUPPORT LTD.
Adult and Health Services,Head of Adults,Third Party Payments,478101,Purchase of Care,05/08/2021,3898698-I-21-1308949,"16,632.00",ESSENTIAL CARE & SUPPORT LTD.
Adult and Health Services,Head of Adults,Third Party Payments,478101,Purchase of Care,05/08/2021,3898698-I-21-1308972,"15,639.08",ESSENTIAL CARE & SUPPORT LTD.
Adult and Health Services,Head of Adults,Third Party Payments,478101,Purchase of Care,05/08/2021,3898698-I-21-1308983,"15,396.00",ESSENTIAL CARE & SUPPORT LTD.
Adult and Health Services,Head of Adults,Third Party Payments,478151,Purchase of Care,05/08/2021,3898696-21286,"1,091.16",ESSENTIAL CARE & SUPPORT LTD.
Adult and Health Services,Head of Adults,Third Party Payments,478151,Purchase of Care,05/08/2021,3898697-21292,"2,100.00",ESSENTIAL CARE & SUPPORT LTD.
Adult and Health Services,Head of Adults,Third Party Payments,478151,Purchase of Care,05/08/2021,3898698-21283,"3,780.00",ESSENTIAL CARE & SUPPORT LTD.
Adult and Health Services,Head of Adults,Third Party Payments,470101,Purchase of Care,05/08/2021,3898697-I-21-1309274,"65,994.28",ESSENTIAL CARE & SUPPORT LTD.
Adult and Health Services,Head of Adults,Third Party Payments,473101,Purchase of Care,05/08/2021,3898699-I-21-1308765,"19,455.40",ETHICARE (DURHAM) LTD.
Adult and Health Services,Head of Adults,Third Party Payments,473101,Purchase of Care,05/08/2021,3898699-I-21-1308812,"4,204.00",ETHICARE (DURHAM) LTD.
Adult and Health Services,Head of Adults,Third Party Payments,478101,Purchase of Care,05/08/2021,3898699-I-21-1308823,"8,975.64",ETHICARE (DURHAM) LTD.
Adult and Health Services,Head of Adults,Third Party Payments,478101,Purchase of Care,05/08/2021,3898699-I-21-1308854,"6,852.24",ETHICARE (DURHAM) LTD.
Children and Young Peoples Services,Head of Childrens Social Care,Third Party Payments,425021,Rendered by Voluntary Organisations,05/08/2021,3898700-PIG_102280,"12,800.00",EVOLUTION CHILDRENS SERVICES LTD.
Adult and Health Services,Head of Adults,Third Party Payments,470101,Purchase of Care,05/08/2021,3898701-I-21-1309184,"3,354.29",EXCLUSIVE CARE GROUP T/A EASTBOURNE CARE HOME.
Adult and Health Services,Head of Adults,Supplies and Services,384616,Miscellaneous Expenses,05/08/2021,3898702-FHAVS508,"1,576.35",FALCON HOUSING ASSOCIATION CIC.
Children and Young Peoples Services,Head of Childrens Social Care,Supplies and Services,338044,Services,05/08/2021,3899143-NE21C00172,638.82,FAMILY PSYCHOLOGY UK LTD.
Children and Young Peoples Services,Head of Childrens Social Care,Third Party Payments,425040,Rendered by Voluntary Organisations,05/08/2021,3898704-PIG_102263,"7,071.38",FIVE RIVERS CHILD CARE LTD.
Adult and Health Services,Head of Adults,Third Party Payments,478101,Purchase of Care,05/08/2021,3898705-I-21-1308789,"19,520.40",FLEXIBLE SUPPORT OPTIONS LTD.
Neighbourhoods and Climate Change,Environmental Services,Stock A926,926004,Stock,05/08/2021,3899147-IN209671,800.00,FM STEELSTOCK LTD.
Adult and Health Services,Head of Adults,Third Party Payments,478101,Purchase of Care,05/08/2021,3898706-I-21-1308829,"25,334.40",FOREVER CARE LTD.
Children and Young Peoples Services,Head of Childrens Social Care,Third Party Payments,425040,Rendered by Voluntary Organisations,05/08/2021,3898707-PIG_102914,"67,113.48",FOSTER CARE ASSOCIATES LTD.
Children and Young Peoples Services,Head of Childrens Social Care,Third Party Payments,425040,Rendered by Voluntary Organisations,05/08/2021,3898708-PIG_102268,"43,039.56",FOSTER CARE SOLUTIONS LTD.
Children and Young Peoples Services,Head of Childrens Social Care,Third Party Payments,425040,Rendered by Voluntary Organisations,05/08/2021,3898709-PIG_102897,"27,440.87",FOSTER CARES LTD.
Children and Young Peoples Services,Head of Childrens Social Care,Third Party Payments,425040,Rendered by Voluntary Organisations,05/08/2021,3898710-PIG_102265,"28,048.48",FOSTERING PEOPLE LTD.
Adult and Health Services,Head of Adults,Third Party Payments,474101,Purchase of Care,05/08/2021,3898711-I-21-1309250,"62,821.18",FOUR SEASONS (NO 9) LTD.
Adult and Health Services,Head of Adults,Third Party Payments,470101,Purchase of Care,05/08/2021,3898712-I-21-1309030,"49,618.11",FOUR SEASONS HOMES NO 1 LTD.
Adult and Health Services,Head of Adults,Third Party Payments,470101,Purchase of Care,05/08/2021,3898712-I-21-1309307,"2,562.84",FOUR SEASONS HOMES NO 1 LTD.
Adult and Health Services,Head of Adults,Third Party Payments,470101,Purchase of Care,05/08/2021,3898712-I-21-1313321,"5,125.68",FOUR SEASONS HOMES NO 1 LTD.
Adult and Health Services,Head of Adults,Third Party Payments,470101,Purchase of Care,05/08/2021,3898713-I-21-1309223,"2,667.16",FOUR SEASONS T/A MAPLE LODGE CARE HOME (SUNDERLAND).
Adult and Health Services,Head of Adults,Third Party Payments,470101,Purchase of Care,05/08/2021,3898716-I-21-1309323,"77,623.30",GAINFORD CARE HOMES LTD.
Adult and Health Services,Head of Adults,Third Party Payments,474101,Purchase of Care,05/08/2021,3898718-I-21-1309163,"78,911.96",GAINFORD CARE HOMES LTD.
Adult and Health Services,Head of Adults,Third Party Payments,474101,Purchase of Care,05/08/2021,3898715-I-21-1309116,"12,686.80",GAINFORD CARE HOMES LTD.
Adult and Health Services,Head of Adults,Third Party Payments,474101,Purchase of Care,05/08/2021,3898717-I-21-1309204,"87,883.02",GAINFORD CARE HOMES LTD.
Adult and Health Services,Head of Adults,Third Party Payments,474101,Purchase of Care,05/08/2021,3898720-I-21-1309214,"74,722.13",GAINFORD CARE HOMES LTD.
Adult and Health Services,Head of Adults,Third Party Payments,470101,Purchase of Care,05/08/2021,3898716-I-21-1309039,"50,907.74",GAINFORD CARE HOMES LTD.
Adult and Health Services,Head of Adults,Third Party Payments,474101,Purchase of Care,05/08/2021,3898719-I-21-1309120,"43,513.44",GAINFORD CARE HOMES LTD.
Adult and Health Services,Head of Adults,Third Party Payments,470101,Purchase of Care,05/08/2021,3898719-I-21-1313327,"35,573.97",GAINFORD CARE HOMES LTD.
Adult and Health Services,Head of Adults,Third Party Payments,473101,Purchase of Care,05/08/2021,3898721-I-21-1308839,"41,730.00",GAPPS DAY SERVICES LTD.
Children and Young Peoples Services,Head of Childrens Social Care,Third Party Payments,425020,Rendered by Voluntary Organisations,05/08/2021,3898722-PIG_102900,767.28,GATESHEAD COUNCIL.
Adult and Health Services,Head of Adults,Third Party Payments,470101,Purchase of Care,05/08/2021,3898726-I-21-1309046,"2,444.00",GREATHAM HOSPITAL BROTHER HOUSE.
"Regeneration, Economy and Growth",Culture Sport and Tourism,Premises,145023,Cleaning and Domestic Supplies,05/08/2021,3899156-06/132813,663.16,GREENHAM TRADING LTD.
Adult and Health Services,Head of Adults,Third Party Payments,473101,Purchase of Care,05/08/2021,3898727-I-21-1308680,"4,646.40",GROWING TOGETHER DURHAM LTD.
Adult and Health Services,Head of Adults,Third Party Payments,473101,Purchase of Care,05/08/2021,3898727-I-21-1308775,"3,101.52",GROWING TOGETHER DURHAM LTD.
Neighbourhoods and Climate Change,Environmental Services,Supplies and Services,304221,Equipment and Materials,05/08/2021,3899159-164315,520.00,GUSTHARTS LTD.
Neighbourhoods and Climate Change,Environmental Services,Vehicles Equipment Furniture and Fittings,912529,Purchase-equipment,05/08/2021,3899161-076962,"40,000.00",HAGS-SMP LTD.
Adult and Health Services,Head of Adults,Third Party Payments,473101,Purchase of Care,05/08/2021,3898731-I-21-1308664,"9,819.72",HASWELL & DISTRICT MENCAP SOCIETY.
Adult and Health Services,Head of Adults,Third Party Payments,470101,Purchase of Care,05/08/2021,3898735-I-21-1309188,"1,043.90",HC-ONE BEAMISH LTD.
Adult and Health Services,Head of Adults,Third Party Payments,470101,Purchase of Care,05/08/2021,3898735-I-21-1309023,"92,443.40",HC-ONE BEAMISH LTD.
Adult and Health Services,Head of Adults,Third Party Payments,470101,Purchase of Care,05/08/2021,3898736-I-21-1309279,"71,657.60",HC-ONE BEAMISH LTD.
Adult and Health Services,Head of Adults,Third Party Payments,470101,Purchase of Care,05/08/2021,3898732-I-21-1309213,"108,493.18",HC-ONE BEAMISH LTD.
Adult and Health Services,Head of Adults,Third Party Payments,470101,Purchase of Care,05/08/2021,3898732-I-21-1309264,549.18,HC-ONE BEAMISH LTD.
Adult and Health Services,Head of Adults,Third Party Payments,470101,Purchase of Care,05/08/2021,3898734-I-21-1309020,"2,558.44",HC-ONE BEAMISH LTD.
Adult and Health Services,Head of Adults,Third Party Payments,470101,Purchase of Care,05/08/2021,3898737-I-21-1309128,"118,857.01",HC-ONE BEAMISH LTD.
Adult and Health Services,Head of Adults,Third Party Payments,470101,Purchase of Care,05/08/2021,3898733-I-21-1309042,"65,337.58",HC-ONE BEAMISH LTD.
Adult and Health Services,Head of Adults,Third Party Payments,470101,Purchase of Care,05/08/2021,3898733-I-21-1309058,"1,590.00",HC-ONE BEAMISH LTD.
Adult and Health Services,Head of Adults,Third Party Payments,470101,Purchase of Care,05/08/2021,3898738-I-21-1309018,"1,156.52",HC-ONE LTD (ASHTON GRANGE CARE HOME).
Adult and Health Services,Head of Adults,Third Party Payments,470101,Purchase of Care,05/08/2021,3898742-I-21-1309262,"1,546.25",HC-ONE LTD.
Adult and Health Services,Head of Adults,Third Party Payments,474101,Purchase of Care,05/08/2021,3898743-I-21-1309198,"66,836.38",HC-ONE LTD.
Adult and Health Services,Head of Adults,Third Party Payments,470101,Purchase of Care,05/08/2021,3898743-I-21-1309006,"3,970.69",HC-ONE LTD.
Adult and Health Services,Head of Adults,Third Party Payments,470101,Purchase of Care,05/08/2021,3898744-I-21-1309134,"69,556.28",HC-ONE LTD.
Adult and Health Services,Head of Adults,Third Party Payments,470101,Purchase of Care,05/08/2021,3898746-I-21-1309233,"46,442.20",HC-ONE LTD.
Adult and Health Services,Head of Adults,Third Party Payments,470101,Purchase of Care,05/08/2021,3898739-I-21-1313328,"45,280.08",HC-ONE LTD.
Adult and Health Services,Head of Adults,Third Party Payments,470101,Purchase of Care,05/08/2021,3898740-I-21-1309290,"57,677.20",HC-ONE LTD.
Adult and Health Services,Head of Adults,Third Party Payments,474101,Purchase of Care,05/08/2021,3898745-I-21-1313340,"9,099.36",HC-ONE LTD.
Adult and Health Services,Head of Adults,Third Party Payments,470101,Purchase of Care,05/08/2021,3898745-I-21-1309318,"61,249.84",HC-ONE LTD.
Adult and Health Services,Head of Adults,Third Party Payments,470101,Purchase of Care,05/08/2021,3898747-I-21-1309190,"2,807.96",HC-ONE LTD.
Adult and Health Services,Head of Adults,Third Party Payments,474101,Purchase of Care,05/08/2021,3898739-I-21-1309167,"26,670.04",HC-ONE LTD.
Adult and Health Services,Head of Adults,Third Party Payments,474101,Purchase of Care,05/08/2021,3898741-I-21-1309210,"61,314.95",HC-ONE LTD.
Adult and Health Services,Head of Adults,Third Party Payments,470101,Purchase of Care,05/08/2021,3898742-I-21-1309206,"90,836.38",HC-ONE LTD.
Adult and Health Services,Head of Adults,Third Party Payments,474101,Purchase of Care,05/08/2021,3898748-I-21-1309175,"11,573.76",HC-ONE LTD..
Adult and Health Services,Head of Adults,Third Party Payments,474101,Purchase of Care,05/08/2021,3898748-I-21-1313322,"3,473.16",HC-ONE LTD..
Adult and Health Services,Head of Adults,Third Party Payments,470101,Purchase of Care,05/08/2021,3898750-I-21-1309272,"2,187.48",HC-ONE OVAL LTD.
Adult and Health Services,Head of Adults,Third Party Payments,470101,Purchase of Care,05/08/2021,3898749-I-21-1309105,"2,169.32",HC-ONE OVAL LTD.
Adult and Health Services,Head of Adults,Third Party Payments,474101,Purchase of Care,05/08/2021,3898751-I-21-1309156,"1,234.40",HENDON PIF LTD T/A ASHWOOD COURT CARE HOME.
Adult and Health Services,Head of Adults,Third Party Payments,470101,Purchase of Care,05/08/2021,3898752-I-21-1309207,988.44,HEREFORDSHIRE CARE HOMES.
Adult and Health Services,Head of Adults,Third Party Payments,470101,Purchase of Care,05/08/2021,3898753-I-21-1309336,"2,579.28",HERRINGTON MEWS LTD.
Adult and Health Services,Head of Adults,Third Party Payments,472101,Purchase of Care,05/08/2021,3898754-I-21-1308785,619.20,HETTON HOMECARE SERVICES.
Adult and Health Services,Head of Adults,Third Party Payments,478101,Purchase of Care,05/08/2021,3898755-I-21-1308843,"46,824.92",HIGHLEA CARE LTD.
Adult and Health Services,Head of Adults,Third Party Payments,478101,Purchase of Care,05/08/2021,3898755-I-21-1308864,"8,460.00",HIGHLEA CARE LTD.
Adult and Health Services,Head of Adults,Third Party Payments,478101,Purchase of Care,05/08/2021,3898755-I-21-1308667,"1,328.48",HIGHLEA CARE LTD.
Adult and Health Services,Head of Adults,Third Party Payments,478101,Purchase of Care,05/08/2021,3898755-I-21-1308668,"1,072.44",HIGHLEA CARE LTD.
Adult and Health Services,Head of Adults,Third Party Payments,478101,Purchase of Care,05/08/2021,3898755-I-21-1308670,"7,614.25",HIGHLEA CARE LTD.
Adult and Health Services,Head of Adults,Third Party Payments,478101,Purchase of Care,05/08/2021,3898755-I-21-1308677,"5,400.00",HIGHLEA CARE LTD.
Adult and Health Services,Head of Adults,Third Party Payments,478101,Purchase of Care,05/08/2021,3898755-I-21-1308713,"5,376.00",HIGHLEA CARE LTD.
Adult and Health Services,Head of Adults,Third Party Payments,478101,Purchase of Care,05/08/2021,3898755-I-21-1308714,"15,276.88",HIGHLEA CARE LTD.
Adult and Health Services,Head of Adults,Third Party Payments,478101,Purchase of Care,05/08/2021,3898755-I-21-1308767,"13,788.00",HIGHLEA CARE LTD.
Adult and Health Services,Head of Adults,Third Party Payments,478101,Purchase of Care,05/08/2021,3898755-I-21-1308891,"7,867.80",HIGHLEA CARE LTD.
Adult and Health Services,Head of Adults,Third Party Payments,478101,Purchase of Care,05/08/2021,3898755-I-21-1308929,"7,194.88",HIGHLEA CARE LTD.
Adult and Health Services,Head of Adults,Third Party Payments,478101,Purchase of Care,05/08/2021,3898755-I-21-1308957,"1,200.00",HIGHLEA CARE LTD.
Adult and Health Services,Head of Adults,Third Party Payments,478101,Purchase of Care,05/08/2021,3898755-I-21-1308975,"14,997.60",HIGHLEA CARE LTD.
Adult and Health Services,Head of Adults,Third Party Payments,478101,Purchase of Care,05/08/2021,3898756-I-21-1308661,"9,016.32",HIGHLEA CARE LTD.
Adult and Health Services,Head of Adults,Third Party Payments,478101,Purchase of Care,05/08/2021,3898755-I-21-1308892,"15,583.24",HIGHLEA CARE LTD.
Adult and Health Services,Central/Other,Third Party Payments,474101,Purchase of Care,05/08/2021,3898757-I-21-1313324,"3,543.75",HILL CARE 3 LTD.
Adult and Health Services,Head of Adults,Third Party Payments,470101,Purchase of Care,05/08/2021,3898758-I-21-1309173,"58,047.80",HILL CARE 3 LTD.
Adult and Health Services,Head of Adults,Third Party Payments,470101,Purchase of Care,05/08/2021,3898757-I-21-1309109,"73,733.88",HILL CARE 3 LTD.
Adult and Health Services,Head of Adults,Third Party Payments,478101,Purchase of Care,05/08/2021,3898759-I-21-1308897,"1,260.00",HOME GROUP LTD FORMERLY STONHAM HOUSING ASSOCIATION LTD.
Adult and Health Services,Head of Adults,Third Party Payments,478101,Purchase of Care,05/08/2021,3898760-I-21-1308953,660.00,HOME GROUP LTD.
Dedicated Schools Grant BG0015,DSG High Needs Block,Central Support and Other Recharges,689996,Unclassified E690,05/08/2021,3899165-CAS-08-2021-026,"117,942.00",HOPE WOOD ACADEMY.
Dedicated Schools Grant BG0015,DSG High Needs Block,Third Party Payments,425005,Rendered by Voluntary Organisations,05/08/2021,3898762-PIG_102305,"70,201.40",HURWORTH HOUSE PRIORY.
Adult and Health Services,Head of Adults,Third Party Payments,470101,Purchase of Care,05/08/2021,3898763-I-21-1309337,"26,194.02",IDEAL CARE (NORTH) LTD.
"Regeneration, Economy and Growth",Development and Housing,Supplies and Services,342051,Computers and Communications,05/08/2021,3899170-7034276,950.00,IDOX SOFTWARE LTD.
Adult and Health Services,Head of Adults,Third Party Payments,486020,Service level agreements E486,05/08/2021,3898764-PIG_102920,"22,869.00",INCLUDE `IN` AUTISM.
Adult and Health Services,Head of Adults,Supplies and Services,384616,Miscellaneous Expenses,05/08/2021,3899172-11602,"1,185.90",INCLUSION HOUSING CIC LTD.
Adult and Health Services,Commissioning inc Supporting People,Supplies and Services,384616,Miscellaneous Expenses,05/08/2021,3899172-11605,"4,508.70",INCLUSION HOUSING CIC LTD.
Adult and Health Services,Head of Adults,Third Party Payments,470101,Purchase of Care,05/08/2021,3898765-I-21-1309075,"2,579.28",INDIGO CARE SERVICES LTD.
Neighbourhoods and Climate Change,Technical Services CM0300,Stock A926,926900,Stock in hand-Inventory system,05/08/2021,3899174-793682,"2,212.00",INSTARMAC GROUP PLC.
Children and Young Peoples Services,Head of Childrens Social Care,Third Party Payments,486020,Service level agreements E486,05/08/2021,3898766-PIG_102922,"2,870.86",INTEGRATING CHILDREN.
Children and Young Peoples Services,Head of Early Help Inclusion & Vulnerable Children.,Supplies and Services,338035,Services,05/08/2021,3899175-INV-11402,595.00,INTEGRITY COACHING LTD.
Adult and Health Services,Head of Adults,Third Party Payments,470101,Purchase of Care,05/08/2021,3898767-I-21-1309047,"5,941.00",INTERACT CARE LTD.
Children and Young Peoples Services,Head of Childrens Social Care,Third Party Payments,425021,Rendered by Voluntary Organisations,05/08/2021,3898768-PIG_102888,"48,580.00",INVESTED CHILDCARE LTD.
Children and Young Peoples Services,Head of Childrens Social Care,Third Party Payments,425021,Rendered by Voluntary Organisations,05/08/2021,3898774-PIG_102281,"15,200.00",JOSH`S PLACE.
"Regeneration, Economy and Growth",Corporate Property and Land,Supplies and Services,304221,Equipment and Materials,05/08/2021,3899192-0213/00429347,"1,463.49",JT DOVE LTD.
Neighbourhoods and Climate Change,Technical Services CM0300,Supplies and Services,304221,Equipment and Materials,05/08/2021,3899192-0104/00426067,"1,691.40",JT DOVE LTD.
Adult and Health Services,Head of Adults,Third Party Payments,472101,Purchase of Care,05/08/2021,3898780-I-21-1313317,503.05,KELLY PARK LTD..
Adult and Health Services,Head of Adults,Third Party Payments,472101,Purchase of Care,05/08/2021,3898779-I-21-1308876,"226,714.28",KELLY PARK LTD..
Adult and Health Services,Commissioning inc Supporting People,Third Party Payments,440999,Other third party payments E440,05/08/2021,3898779-CAS-07-2021-162,"4,100.00",KELLY PARK LTD..
Adult and Health Services,Head of Adults,Third Party Payments,474101,Purchase of Care,05/08/2021,3898781-I-21-1309299,"1,598.92",KEY HEALTHCARE (OPERATIONS) LTD.
Children and Young Peoples Services,Head of Childrens Social Care,Third Party Payments,425021,Rendered by Voluntary Organisations,05/08/2021,3898782-PIG_102282,"15,800.00",KEYS GROUP T/A ALLIANCE CARE AND EDUCATION LTD.
Children and Young Peoples Services,Head of Childrens Social Care,Third Party Payments,425021,Rendered by Voluntary Organisations,05/08/2021,3898782-PIG_102307,"15,800.00",KEYS GROUP T/A ALLIANCE CARE AND EDUCATION LTD.
Children and Young Peoples Services,Head of Childrens Social Care,Third Party Payments,425021,Rendered by Voluntary Organisations,05/08/2021,3898782-PIG_102915,"19,800.00",KEYS GROUP T/A ALLIANCE CARE AND EDUCATION LTD.
Neighbourhoods and Climate Change,Technical Services CM0300,Third Party Payments,430100,Rendered by Private Contractors,05/08/2021,3899194-211225,"195,203.19",KIELY BROS LTD.
Resources BK0010,Legal & Democratic Services,Construction work A908,908105,Construction work,05/08/2021,3899195-MOUNTOSWALD-MANORHOUSE04,"632,105.98",KIER CONSTRUCTION LTD - SCOTLAND
Adult and Health Services,Head of Adults,Third Party Payments,474101,Purchase of Care,05/08/2021,3898784-I-21-1309115,"42,454.36",KINGSWAY CARE HOME LTD.
Adult and Health Services,Head of Adults,Third Party Payments,470101,Purchase of Care,05/08/2021,3898784-I-21-1309306,606.34,KINGSWAY CARE HOME LTD.
Adult and Health Services,Head of Adults,Third Party Payments,470101,Purchase of Care,05/08/2021,3898786-I-21-1309117,"39,616.64",LAMBTON HOUSE LTD.
Adult and Health Services,Head of Adults,Third Party Payments,470101,Purchase of Care,05/08/2021,3898787-I-21-1309028,"41,709.92",LANGLEY HOUSE CARE HOME LTD.
Neighbourhoods and Climate Change,Technical Services CM0300,Stock A926,926900,Stock in hand-Inventory system,05/08/2021,3899201-9500104323,"4,048.00",LC PACKAGING UK LTD.
Adult and Health Services,Head of Adults,Third Party Payments,474101,Purchase of Care,05/08/2021,3898788-I-21-1309244,"86,872.05",LEAZES HALL CARE HOME LTD.
Adult and Health Services,Head of Adults,Third Party Payments,474101,Purchase of Care,05/08/2021,3898789-I-21-1309236,"57,908.32",LEONARD CHESHIRE DISABILITY.
Adult and Health Services,Head of Adults,Third Party Payments,470101,Purchase of Care,05/08/2021,3898789-I-21-1313333,"9,317.92",LEONARD CHESHIRE DISABILITY.
Adult and Health Services,Head of Adults,Third Party Payments,470101,Purchase of Care,05/08/2021,3898790-I-21-1309108,"6,999.80",LEONARD CHESHIRE DISABILITY.
Adult and Health Services,Head of Adults,Third Party Payments,474101,Purchase of Care,05/08/2021,3898791-I-21-1309330,"4,878.72",LIFESTYLE (ABBEY CARE) LTD.
Adult and Health Services,Head of Adults,Third Party Payments,473101,Purchase of Care,05/08/2021,3898792-I-21-1308826,"8,855.10",LION MOUTH COMMUNITY INTEREST COMPANY.
Neighbourhoods and Climate Change,Environmental Services,Third Party Payments,430100,Rendered by Private Contractors,05/08/2021,3899204-526557,"2,134.40",LLOYD LTD.
Neighbourhoods and Climate Change,Environmental Services,Third Party Payments,430100,Rendered by Private Contractors,05/08/2021,3899204-530637,"1,078.12",LLOYD LTD.
Children and Young Peoples Services,Head of Childrens Social Care,Third Party Payments,440046,Other third party payments E440,05/08/2021,3899209-00019846,"1,389.60",MAJOR RECRUITMENT LTD.
Children and Young Peoples Services,Head of Childrens Social Care,Third Party Payments,440046,Other third party payments E440,05/08/2021,3899209-00019939,"3,404.75",MAJOR RECRUITMENT LTD.
Children and Young Peoples Services,Head of Childrens Social Care,Third Party Payments,440046,Other third party payments E440,05/08/2021,3899209-00020038,"6,044.76",MAJOR RECRUITMENT LTD.
Children and Young Peoples Services,Head of Childrens Social Care,Third Party Payments,440046,Other third party payments E440,05/08/2021,3899209-00020146,"7,225.92",MAJOR RECRUITMENT LTD.
Children and Young Peoples Services,Head of Childrens Social Care,Third Party Payments,440046,Other third party payments E440,05/08/2021,3899209-00020251,"6,785.88",MAJOR RECRUITMENT LTD.
Children and Young Peoples Services,Head of Childrens Social Care,Third Party Payments,440046,Other third party payments E440,05/08/2021,3899209-00020362,"6,980.04",MAJOR RECRUITMENT LTD.
Adult and Health Services,Head of Adults,Third Party Payments,470101,Purchase of Care,05/08/2021,3898796-I-21-1309071,"9,191.60",MALHOTRA CARE HOMES LTD.
Adult and Health Services,Head of Adults,Third Party Payments,474101,Purchase of Care,05/08/2021,3898795-I-21-1309080,"83,948.88",MALHOTRA CARE HOMES LTD.
Adult and Health Services,Head of Adults,Third Party Payments,474101,Purchase of Care,05/08/2021,3898798-I-21-1309024,"60,084.84",MARIA MALLABAND CARE GROUP LTD.
Adult and Health Services,Head of Adults,Third Party Payments,470101,Purchase of Care,05/08/2021,3898798-I-21-1309049,"2,926.94",MARIA MALLABAND CARE GROUP LTD.
Adult and Health Services,Head of Adults,Third Party Payments,470101,Purchase of Care,05/08/2021,3898801-I-21-1309211,"36,634.64",MARIPOSA CARE GROUP LTD.
Adult and Health Services,Head of Adults,Third Party Payments,470101,Purchase of Care,05/08/2021,3898802-I-21-1309136,"2,989.20",MARIPOSA CARE GROUP LTD.
Adult and Health Services,Head of Adults,Third Party Payments,471101,Purchase of Care,05/08/2021,3898803-CAS-08-2021-029,"6,120.00",MARIPOSA CARE LTD.
Adult and Health Services,Head of Adults,Third Party Payments,470101,Purchase of Care,05/08/2021,3898803-I-21-1309321,"76,766.89",MARIPOSA CARE LTD.
Adult and Health Services,Head of Adults,Third Party Payments,474101,Purchase of Care,05/08/2021,3898804-I-21-1309240,"7,864.72",MARTON CARE HOMES LTD T/A ELIZABETH FLEMING CARE HOME.
Adult and Health Services,Head of Adults,Third Party Payments,470101,Purchase of Care,05/08/2021,3898805-I-21-1309026,"9,600.00",MARTON CARE HOMES LTD T/A GROSVENOR PARK CARE HOME.
Adult and Health Services,Head of Adults,Third Party Payments,470101,Purchase of Care,05/08/2021,3898806-I-21-1309022,"78,459.86",MARTON CARE HOMES LTD T/A LANGLEY PARK CARE HOME.
Adult and Health Services,Head of Adults,Third Party Payments,470101,Purchase of Care,05/08/2021,3898807-I-21-1309041,"2,440.00",MARTON CARE HOMES LTD T/A RIVERSIDE VIEW CARE HOME.
Adult and Health Services,Central/Other,Third Party Payments,474101,Purchase of Care,05/08/2021,3898808-I-21-1309283,"63,808.61",MARTON CARE HOMES LTD T/A ST HELENS CARE HOME.
Adult and Health Services,Head of Adults,Third Party Payments,478101,Purchase of Care,05/08/2021,3898811-I-21-1308800,"7,870.80",MEARS EXTRA CARE LTD.
Adult and Health Services,Head of Adults,Third Party Payments,474101,Purchase of Care,05/08/2021,3898812-I-21-1309270,"2,090.84",MEMORY LANE CARE HOMES LTD.
Adult and Health Services,Head of Adults,Third Party Payments,470101,Purchase of Care,05/08/2021,3898813-I-21-1309062,"2,364.00",MERIDIAN HEALTHCARE LTD.
"Regeneration, Economy and Growth",Culture Sport and Tourism,Third Party Payments,430131,Rendered by Private Contractors,05/08/2021,3899215-2021015,520.00,MICHELLE GARTON T/A GET FIT NORTH EAST.
Adult and Health Services,Head of Adults,Third Party Payments,472101,Purchase of Care,05/08/2021,3898815-I-21-1308997,"27,815.81",MIDDLETON CARE LTD.
Adult and Health Services,Head of Adults,Third Party Payments,472101,Purchase of Care,05/08/2021,3898817-I-21-1371023,"1,008.00",MONARCH INC LTD T/A YANAH CARE.
Adult and Health Services,Head of Adults,Third Party Payments,470101,Purchase of Care,05/08/2021,3898818-I-21-1309252,"19,463.26",MOORLAND HOLDINGS (NE) LTD.
Adult and Health Services,Head of Adults,Third Party Payments,473101,Purchase of Care,05/08/2021,3898819-I-21-1308679,"2,434.40",MOVEABLE FEASTS ARTS.
Adult and Health Services,Head of Adults,Third Party Payments,478101,Purchase of Care,05/08/2021,3898844-I-21-1308725,"1,716.00",MVP SUPPORT.
Adult and Health Services,Head of Adults,Third Party Payments,478101,Purchase of Care,05/08/2021,3898845-I-21-1308772,"32,882.19",MY HOMECARE (DURHAM) LTD.
Adult and Health Services,Head of Adults,Third Party Payments,472101,Purchase of Care,05/08/2021,3898846-I-21-1308893,"8,806.29",MYCHOICE HOMECARE LTD.
Adult and Health Services,Head of Adults,Third Party Payments,473101,Purchase of Care,05/08/2021,3898850-I-21-1308985,"13,896.60",NEW STEPS CARE IN THE COMMUNITY LLP.
Adult and Health Services,Head of Adults,Third Party Payments,472101,Purchase of Care,05/08/2021,3898851-I-21-1308822,"5,922.75",NEW VISION CARE SERVICES LTD.
"Regeneration, Economy and Growth",Culture Sport and Tourism,Supplies and Services,384199,Miscellaneous Expenses,05/08/2021,3899230-1390,"75,000.00",NEW WRITING NORTH LTD.
Adult and Health Services,Head of Adults,Third Party Payments,472101,Purchase of Care,05/08/2021,3898852-I-21-1326191,"20,394.88",NEWCROSS HEALTHCARE SOLUTIONS LTD.
Adult and Health Services,Head of Adults,Third Party Payments,470101,Purchase of Care,05/08/2021,3898853-I-21-1309031,"17,584.52",NEWLIFE CARE SERVICES LTD.
Adult and Health Services,Head of Adults,Third Party Payments,473101,Purchase of Care,05/08/2021,3898855-I-21-1308904,"1,723.02",NORTH EAST AUTISM SOCIETY.
Adult and Health Services,Head of Adults,Third Party Payments,472101,Purchase of Care,05/08/2021,3898857-I-21-1308695,"5,815.10",NORTH EAST AUTISM SOCIETY.
Adult and Health Services,Head of Adults,Third Party Payments,470101,Purchase of Care,05/08/2021,3898855-I-21-1309189,"6,727.44",NORTH EAST AUTISM SOCIETY.
Adult and Health Services,Head of Adults,Third Party Payments,470101,Purchase of Care,05/08/2021,3898859-I-21-1309034,"16,558.36",NORTH EAST AUTISM SOCIETY.
Adult and Health Services,Head of Adults,Third Party Payments,478101,Purchase of Care,05/08/2021,3898855-I-21-1308672,"34,831.04",NORTH EAST AUTISM SOCIETY.
Adult and Health Services,Head of Adults,Third Party Payments,478101,Purchase of Care,05/08/2021,3898855-I-21-1308889,"13,295.76",NORTH EAST AUTISM SOCIETY.
Children and Young Peoples Services,Head of Childrens Social Care,Third Party Payments,425021,Rendered by Voluntary Organisations,05/08/2021,3898856-PIG_102285,"14,832.52",NORTH EAST AUTISM SOCIETY.
Adult and Health Services,Head of Adults,Third Party Payments,473101,Purchase of Care,05/08/2021,3898855-I-21-1308715,"42,644.08",NORTH EAST AUTISM SOCIETY.
Adult and Health Services,Head of Adults,Third Party Payments,478101,Purchase of Care,05/08/2021,3898855-I-21-1308764,"11,855.76",NORTH EAST AUTISM SOCIETY.
Adult and Health Services,Head of Adults,Third Party Payments,478101,Purchase of Care,05/08/2021,3898855-I-21-1308977,"11,148.96",NORTH EAST AUTISM SOCIETY.
Adult and Health Services,Head of Adults,Third Party Payments,478101,Purchase of Care,05/08/2021,3898854-I-21-1308761,660.00,NORTH EAST AUTISM SOCIETY.
Children and Young Peoples Services,Head of Childrens Social Care,Third Party Payments,425020,Rendered by Voluntary Organisations,05/08/2021,3898857-PIG_102901,"15,479.58",NORTH EAST AUTISM SOCIETY.
Dedicated Schools Grant BG0015,DSG High Needs Block,Third Party Payments,440080,Other third party payments E440,05/08/2021,3898856-PIG_102283,"52,569.73",NORTH EAST AUTISM SOCIETY.
Dedicated Schools Grant BG0015,DSG High Needs Block,Third Party Payments,440080,Other third party payments E440,05/08/2021,3898856-PIG_102284,"47,851.76",NORTH EAST AUTISM SOCIETY.
Dedicated Schools Grant BG0015,DSG High Needs Block,Third Party Payments,440080,Other third party payments E440,05/08/2021,3898856-PIG_102306,"8,706.56",NORTH EAST AUTISM SOCIETY.
Adult and Health Services,Head of Adults,Third Party Payments,486020,Service level agreements E486,05/08/2021,3898857-PIG_102890,"5,809.00",NORTH EAST AUTISM SOCIETY.
Adult and Health Services,Head of Adults,Third Party Payments,470101,Purchase of Care,05/08/2021,3898856-PIG_102286,"7,820.24",NORTH EAST AUTISM SOCIETY.
Adult and Health Services,Head of Adults,Third Party Payments,470101,Purchase of Care,05/08/2021,3898858-I-21-1309133,"58,359.03",NORTH EAST AUTISM SOCIETY.
Adult and Health Services,Head of Adults,Third Party Payments,473101,Purchase of Care,05/08/2021,3898860-I-21-1308739,"4,005.51",NORTH EAST BEFRIENDING SERVICE CIC.
Adult and Health Services,Head of Adults,Third Party Payments,470101,Purchase of Care,05/08/2021,3898861-I-21-1309090,"2,462.72",NORTH EAST CARE HOMES LTD.
Adult and Health Services,Head of Adults,Third Party Payments,470101,Purchase of Care,05/08/2021,3898861-I-21-1309147,"2,462.72",NORTH EAST CARE HOMES LTD.
Adult and Health Services,Head of Adults,Third Party Payments,478101,Purchase of Care,05/08/2021,3898862-I-21-1308902,"1,563.44",NORTHERN LIFE CARE LTD T/A UBU.
Adult and Health Services,Head of Adults,Third Party Payments,478101,Purchase of Care,05/08/2021,3899900-2083049H,"1,563.44",NORTHERN LIFE CARE LTD T/A UBU.
Adult and Health Services,Head of Adults,Third Party Payments,474101,Purchase of Care,05/08/2021,3898863-I-21-1309178,"8,119.76",NORTHLEA COURT.
"Regeneration, Economy and Growth",Culture Sport and Tourism,Supplies and Services,384199,Miscellaneous Expenses,05/08/2021,3899241-00017197,"1,753.44",NSL LTD.
Children and Young Peoples Services,Head of Childrens Social Care,Third Party Payments,425021,Rendered by Voluntary Organisations,05/08/2021,3898864-PIG_102889,"32,000.00",NUEVAVIDA NE LTD.
Adult and Health Services,Head of Adults,Third Party Payments,478101,Purchase of Care,05/08/2021,3898865-I-21-1308717,"29,228.84",OAKLEA TRUST.
Adult and Health Services,Head of Adults,Third Party Payments,478101,Purchase of Care,05/08/2021,3898865-I-21-1308755,"13,770.84",OAKLEA TRUST.
Adult and Health Services,Head of Adults,Third Party Payments,478101,Purchase of Care,05/08/2021,3898865-I-21-1308887,"18,676.48",OAKLEA TRUST.
Adult and Health Services,Head of Adults,Third Party Payments,478101,Purchase of Care,05/08/2021,3898865-I-21-1308926,"9,336.00",OAKLEA TRUST.
Adult and Health Services,Head of Adults,Third Party Payments,478101,Purchase of Care,05/08/2021,3898865-I-21-1308710,"19,815.00",OAKLEA TRUST.
Adult and Health Services,Head of Adults,Third Party Payments,478101,Purchase of Care,05/08/2021,3898865-I-21-1308888,"23,580.00",OAKLEA TRUST.
Adult and Health Services,Head of Adults,Third Party Payments,478101,Purchase of Care,05/08/2021,3898865-I-21-1308970,"26,256.00",OAKLEA TRUST.
Adult and Health Services,Head of Adults,Third Party Payments,478101,Purchase of Care,05/08/2021,3898865-I-21-1308662,"9,764.40",OAKLEA TRUST.
Adult and Health Services,Head of Adults,Third Party Payments,478101,Purchase of Care,05/08/2021,3898865-I-21-1308719,"8,479.92",OAKLEA TRUST.
Adult and Health Services,Head of Adults,Third Party Payments,478101,Purchase of Care,05/08/2021,3898865-I-21-1308752,"14,958.00",OAKLEA TRUST.
Adult and Health Services,Head of Adults,Third Party Payments,478101,Purchase of Care,05/08/2021,3898865-I-21-1308754,"18,477.60",OAKLEA TRUST.
Adult and Health Services,Head of Adults,Third Party Payments,478101,Purchase of Care,05/08/2021,3898865-I-21-1308840,"8,736.00",OAKLEA TRUST.
Adult and Health Services,Head of Adults,Third Party Payments,478101,Purchase of Care,05/08/2021,3898865-I-21-1308841,"3,828.00",OAKLEA TRUST.
Adult and Health Services,Head of Adults,Third Party Payments,478101,Purchase of Care,05/08/2021,3898865-I-21-1308903,"18,170.12",OAKLEA TRUST.
Adult and Health Services,Head of Adults,Third Party Payments,478101,Purchase of Care,05/08/2021,3898865-I-21-1308925,"16,946.12",OAKLEA TRUST.
Adult and Health Services,Head of Adults,Third Party Payments,470101,Purchase of Care,05/08/2021,3898866-I-21-1309183,"1,372.95",OBJECT QUEST LTD.
Adult and Health Services,Head of Adults,Third Party Payments,474101,Purchase of Care,05/08/2021,3898866-I-21-1309064,"57,027.73",OBJECT QUEST LTD.
Adult and Health Services,Head of Adults,Third Party Payments,473101,Purchase of Care,05/08/2021,3898866-I-21-1308740,"3,564.45",OBJECT QUEST LTD.
Neighbourhoods and Climate Change,Environmental Services,Transport,215005,Running Costs of Vehicles,05/08/2021,3899242-784685,"12,348.02",OIL NRG LTD.
Adult and Health Services,Head of Adults,Third Party Payments,478151,Purchase of Care,05/08/2021,3898867-1-2-1-1196122,"1,672.50",OLIVE STONE SUPPORT.
Adult and Health Services,Head of Adults,Third Party Payments,478101,Purchase of Care,05/08/2021,3898867-I-21-1308753,"10,561.32",OLIVE STONE SUPPORT.
Adult and Health Services,Head of Adults,Third Party Payments,478101,Purchase of Care,05/08/2021,3898868-I-21-1308852,"16,881.64",OLIVE STONE SUPPORT.
Adult and Health Services,Head of Adults,Third Party Payments,472101,Purchase of Care,05/08/2021,3898871-I-21-1308880,"113,085.56",ORCHARD HOME CARE SERVICES LTD.
Children and Young Peoples Services,Head of Childrens Social Care,Third Party Payments,440062,Other third party payments E440,05/08/2021,3898871-PIG_102883,"1,713.23",ORCHARD HOME CARE SERVICES LTD.
Adult and Health Services,Head of Adults,Third Party Payments,470101,Purchase of Care,05/08/2021,3898872-I-21-1309095,"4,387.04",OSWALD HOUSE CARE HOME LTD.
Adult and Health Services,Head of Adults,Third Party Payments,470101,Purchase of Care,05/08/2021,3898873-I-21-1309243,"6,580.56",OSWALD HOUSE CARE HOME LTD.
Adult and Health Services,Head of Adults,Third Party Payments,470101,Purchase of Care,05/08/2021,3898874-I-21-1309033,"6,580.56",OSWALD HOUSE CARE HOME LTD.
Adult and Health Services,Head of Adults,Third Party Payments,470101,Purchase of Care,05/08/2021,3898875-I-21-1309171,"14,932.56",OSWALD HOUSE CARE HOME LTD.
Adult and Health Services,Head of Adults,Third Party Payments,470101,Purchase of Care,05/08/2021,3898876-I-21-1309085,"6,580.56",OSWALD HOUSE CARE HOME LTD.
Adult and Health Services,Head of Adults,Third Party Payments,470101,Purchase of Care,05/08/2021,3898873-I-21-1308918,588.00,OSWALD HOUSE CARE HOME LTD.
Adult and Health Services,Head of Adults,Third Party Payments,470101,Purchase of Care,05/08/2021,3898875-I-21-1308835,"1,881.60",OSWALD HOUSE CARE HOME LTD.
Adult and Health Services,Head of Adults,Third Party Payments,470101,Purchase of Care,05/08/2021,3898877-I-21-1309037,"29,677.04",PARAMOUNT CARE (GATESHEAD) LTD T/A THE ROPERY CARE HOME.
Adult and Health Services,Head of Adults,Third Party Payments,470101,Purchase of Care,05/08/2021,3898878-I-21-1309282,"39,045.84",PARAMOUNT CARE (GATESHEAD) LTD.
Neighbourhoods and Climate Change,Technical Services CM0300,Stock A926,926900,Stock in hand-Inventory system,05/08/2021,3899245-XL273814,"3,664.40",PARK ELECTRICAL DISTRIBUTORS LTD.
Neighbourhoods and Climate Change,Technical Services CM0300,Stock A926,926900,Stock in hand-Inventory system,05/08/2021,3899245-XL273840,624.14,PARK ELECTRICAL DISTRIBUTORS LTD.
Dedicated Schools Grant BG0015,DSG High Needs Block,Third Party Payments,425005,Rendered by Voluntary Organisations,05/08/2021,3898879-PIG_102287,"11,482.00",PARKSIDE HOUSE SCHOOL.
Adult and Health Services,Head of Adults,Third Party Payments,470101,Purchase of Care,05/08/2021,3898880-I-21-1309311,"11,077.46",PATHWAYS CARE GROUP LTD.
"Regeneration, Economy and Growth",Transport and Contracted Services,Third Party Payments,430100,Rendered by Private Contractors,05/08/2021,3899250-11687,552.00,PATROL (PARKING & TRAFFIC REGULATIONS OUTSIDE LONDON).
Adult and Health Services,Head of Adults,Third Party Payments,470101,Purchase of Care,05/08/2021,3898881-I-21-1309152,"2,720.00",PEARLCARE (KENDAL) LTD T/A GILLING REANE CARE HOME.
Children and Young Peoples Services,Head of Childrens Social Care,Third Party Payments,425021,Rendered by Voluntary Organisations,05/08/2021,3898882-PIG_102288,"15,128.48",PEARTREE PROJECTS LTD.
Children and Young Peoples Services,Head of Childrens Social Care,Third Party Payments,425021,Rendered by Voluntary Organisations,05/08/2021,3898882-PIG_102289,"13,579.52",PEARTREE PROJECTS LTD.
Children and Young Peoples Services,Head of Childrens Social Care,Third Party Payments,425021,Rendered by Voluntary Organisations,05/08/2021,3898883-PIG_102891,"12,429.00",PEBBLES CARE LTD.
Adult and Health Services,Head of Adults,Third Party Payments,472101,Purchase of Care,05/08/2021,3898885-I-21-1308961,"158,184.48",PERFECT CARE LTD.
Adult and Health Services,Head of Adults,Third Party Payments,474101,Purchase of Care,05/08/2021,3898884-I-21-1309016,"32,775.93",PERFECT CARE LTD.
Children and Young Peoples Services,Head of Childrens Social Care,Third Party Payments,440062,Other third party payments E440,05/08/2021,3898885-PIG_102886,"1,192.50",PERFECT CARE LTD.
"Regeneration, Economy and Growth",Corporate Property and Land,Supplies and Services,304221,Equipment and Materials,05/08/2021,3899254-201843,752.40,PFEIFER DRAKO LTD.
"Regeneration, Economy and Growth",Corporate Property and Land,Supplies and Services,304221,Equipment and Materials,05/08/2021,3899254-201845,827.64,PFEIFER DRAKO LTD.
Adult and Health Services,Head of Adults,Third Party Payments,473101,Purchase of Care,05/08/2021,3898886-I-21-1308905,"3,049.20",PHOENIX DAY CENTRE CIC.
Adult and Health Services,Head of Adults,Third Party Payments,473101,Purchase of Care,05/08/2021,3898887-I-21-1308966,"2,267.81",PIONEERING CARE PARTNERSHIP.
Adult and Health Services,Head of Adults,Third Party Payments,474101,Purchase of Care,05/08/2021,3898888-I-21-1309040,"4,696.00",POPULAR CARE LTD.
Adult and Health Services,Head of Adults,Third Party Payments,470101,Purchase of Care,05/08/2021,3898889-I-21-1309162,"15,860.88",POPULAR CARE LTD..
Adult and Health Services,Head of Adults,Third Party Payments,474101,Purchase of Care,05/08/2021,3898889-I-21-1309242,"79,823.84",POPULAR CARE LTD..
Adult and Health Services,Head of Adults,Third Party Payments,478101,Purchase of Care,05/08/2021,3898890-I-21-1308855,"35,795.08",POSITIVE INDIVIDUAL PROACTIVE SUPPORT LTD.
Adult and Health Services,Head of Adults,Third Party Payments,478101,Purchase of Care,05/08/2021,3898890-I-21-1308723,"14,113.68",POSITIVE INDIVIDUAL PROACTIVE SUPPORT LTD.
Adult and Health Services,Head of Adults,Third Party Payments,478101,Purchase of Care,05/08/2021,3898890-I-21-1308726,"10,520.16",POSITIVE INDIVIDUAL PROACTIVE SUPPORT LTD.
Adult and Health Services,Head of Adults,Third Party Payments,478101,Purchase of Care,05/08/2021,3898890-I-21-1308954,"5,853.12",POSITIVE INDIVIDUAL PROACTIVE SUPPORT LTD.
Adult and Health Services,Head of Adults,Third Party Payments,472101,Purchase of Care,05/08/2021,3898891-I-21-1308989,"12,460.39",POSSIBILITES NE LTD.
Adult and Health Services,Head of Adults,Third Party Payments,470101,Purchase of Care,05/08/2021,3898893-637513,920.19,POTENSIAL LTD.
Adult and Health Services,Head of Adults,Third Party Payments,470101,Purchase of Care,05/08/2021,3898893-I-21-1309127,"21,207.86",POTENSIAL LTD.
Adult and Health Services,Head of Adults,Third Party Payments,470101,Purchase of Care,05/08/2021,3898893-I-21-1313326,684.74,POTENSIAL LTD.
Adult and Health Services,Head of Adults,Third Party Payments,478151,Purchase of Care,05/08/2021,3898892-77001985,"1,649.04",POTENSIAL LTD.
Adult and Health Services,Head of Adults,Third Party Payments,478101,Purchase of Care,05/08/2021,3898896-I-21-1308856,"17,480.92",POTENSIAL LTD.
Adult and Health Services,Head of Adults,Third Party Payments,478101,Purchase of Care,05/08/2021,3898894-I-21-1308951,"13,260.00",POTENSIAL LTD.
Adult and Health Services,Head of Adults,Third Party Payments,478101,Purchase of Care,05/08/2021,3898895-I-21-1308946,"5,305.20",POTENSIAL LTD.
"Regeneration, Economy and Growth",Culture Sport and Tourism,Supplies and Services,372009,Subscriptions E372,05/08/2021,3899259-SIN1764296,"1,818.41",PPL PRS LTD.
"Regeneration, Economy and Growth",Culture Sport and Tourism,Supplies and Services,384956,Miscellaneous Expenses,05/08/2021,3899259-SIN1764268,"1,722.16",PPL PRS LTD.
"Regeneration, Economy and Growth",Culture Sport and Tourism,Supplies and Services,384956,Miscellaneous Expenses,05/08/2021,3899259-SIN1764305,"1,048.41",PPL PRS LTD.
"Regeneration, Economy and Growth",Culture Sport and Tourism,Supplies and Services,384956,Miscellaneous Expenses,05/08/2021,3899259-SIN1764277,999.87,PPL PRS LTD.
Adult and Health Services,Head of Adults,Third Party Payments,474101,Purchase of Care,05/08/2021,3898898-I-21-1309209,"87,576.01",PREMIER CARE HOMES LTD.
Adult and Health Services,Head of Adults,Third Party Payments,470101,Purchase of Care,05/08/2021,3898897-I-21-1309316,"38,976.45",PREMIER CARE HOMES LTD.
Adult and Health Services,Head of Adults,Third Party Payments,472101,Purchase of Care,05/08/2021,3898900-I-21-1308744,"170,382.17",PREMIER COMMUNITY CARE LTD.
Adult and Health Services,Head of Adults,Third Party Payments,472101,Purchase of Care,05/08/2021,3898899-I-21-1308784,852.19,PREMIER COMMUNITY CARE LTD.
Adult and Health Services,Head of Adults,Third Party Payments,474101,Purchase of Care,05/08/2021,3898902-I-21-1309221,"2,485.16",PRESTIGE CARE (YEW TREE) LTD.
Adult and Health Services,Head of Adults,Third Party Payments,470101,Purchase of Care,05/08/2021,3898903-I-21-1309107,"3,600.00",PRIDE CARE HOMES PETERBOROUGH LTD.
Adult and Health Services,Head of Adults,Third Party Payments,472101,Purchase of Care,05/08/2021,3898904-I-21-1308724,"9,021.64",PRIORITISING PEOPLE`S LIVES LTD.
Resources BK0010,Legal & Democratic Services,Supplies and Services,338066,Services,05/08/2021,3899261-2839,"1,064.40",PSYCHOLOGICAL MEDICINE CONSULTANTS LTD.
Resources BK0010,Legal & Democratic Services,Supplies and Services,340001,Postages E340,05/08/2021,3899263-RES-08-2021-003,"2,000.00",QUADIENT FINANCE UK LTD FORMERLY NEOPOST LTD.
Adult and Health Services,Head of Adults,Third Party Payments,470101,Purchase of Care,05/08/2021,3898905-I-21-1309106,"2,416.00",QUALIA CARE LTD T/A BIRCHLEY HALL.
Adult and Health Services,Head of Adults,Third Party Payments,470101,Purchase of Care,05/08/2021,3898906-I-21-1309285,"8,780.40",QUALIA CARE LTD T/A WASHINGTON LODGE.
Adult and Health Services,Head of Adults,Third Party Payments,472101,Purchase of Care,05/08/2021,3898907-I-21-1308689,"9,199.70",QUALITY FIRST CARE SERVICES LTD.
Adult and Health Services,Head of Adults,Third Party Payments,470101,Purchase of Care,05/08/2021,3898908-I-21-1309174,"3,849.16",QUARRIERS.
Adult and Health Services,Head of Adults,Third Party Payments,470101,Purchase of Care,05/08/2021,3898910-I-21-1309276,"19,906.92",RAYSON HOMES LTD.
Adult and Health Services,Head of Adults,Third Party Payments,474101,Purchase of Care,05/08/2021,3898911-I-21-1309029,"52,335.58",RAYSON HOMES LTD.
Children and Young Peoples Services,Head of Childrens Social Care,Third Party Payments,425040,Rendered by Voluntary Organisations,05/08/2021,3898912-PIG_102269,"76,149.07",REACH OUT CARE LTD.
Adult and Health Services,Head of Adults,Third Party Payments,473101,Purchase of Care,05/08/2021,3898913-I-21-1308759,"18,907.00",REAL CARE LTD.
Adult and Health Services,Head of Adults,Third Party Payments,478101,Purchase of Care,05/08/2021,3898914-I-21-1308663,"19,963.80",REAL LIFE OPTIONS.
Children and Young Peoples Services,Head of Childrens Social Care,Third Party Payments,486020,Service level agreements E486,05/08/2021,3898914-PIG_102892,"1,117.12",REAL LIFE OPTIONS.
Adult and Health Services,Adults Excluded,Supplies and Services,338027,Services,05/08/2021,3899051-3280721,"15,600.00",REDACTED - PAYMENT TO INDIVIDUAL
Children and Young Peoples Services,Head of Education and Skills,Supplies and Services,384199,Miscellaneous Expenses,05/08/2021,3899111-109,500.00,REDACTED - PAYMENT TO INDIVIDUAL
Adult and Health Services,Head of Adults,Third Party Payments,478101,Purchase of Care,05/08/2021,3898837-I-21-1308939,"4,007.04",REDACTED - PAYMENT TO INDIVIDUAL
"Regeneration, Economy and Growth",Culture Sport and Tourism,Supplies and Services,384199,Miscellaneous Expenses,05/08/2021,3899121-042,600.00,REDACTED - PAYMENT TO INDIVIDUAL
Adult and Health Services,Head of Adults,Supplies and Services,338042,Services,05/08/2021,3899219-3347,600.00,REDACTED - PAYMENT TO INDIVIDUAL
Adult and Health Services,Head of Adults,Third Party Payments,473101,Purchase of Care,05/08/2021,3898820-I-21-1308698,"23,799.13",REDACTED - PAYMENT TO INDIVIDUAL
Adult and Health Services,Head of Adults,Third Party Payments,470101,Purchase of Care,05/08/2021,3898842-I-21-1309253,"2,040.00",REDACTED - PAYMENT TO INDIVIDUAL
Adult and Health Services,Head of Adults,Third Party Payments,478101,Purchase of Care,05/08/2021,3898836-I-21-1308909,"4,175.11",REDACTED - PAYMENT TO INDIVIDUAL
Neighbourhoods and Climate Change,Environmental Services,Supplies and Services,338066,Services,05/08/2021,3899216-RED-08-2021-037,"2,040.62",REDACTED - PAYMENT TO INDIVIDUAL
Neighbourhoods and Climate Change,Environmental Services,Supplies and Services,338066,Services,05/08/2021,3899129-4100732413,"1,500.00",REDACTED - PAYMENT TO INDIVIDUAL
Neighbourhoods and Climate Change,Environmental Services,Supplies and Services,338066,Services,05/08/2021,3899099-BURSARYJULY21,712.20,REDACTED - PAYMENT TO INDIVIDUAL
Neighbourhoods and Climate Change,Environmental Services,Supplies and Services,338066,Services,05/08/2021,3899180-BURSARYJULY21,717.33,REDACTED - PAYMENT TO INDIVIDUAL
Neighbourhoods and Climate Change,Environmental Services,Supplies and Services,384606,Miscellaneous Expenses,05/08/2021,3899188-RED-08-2021-030,"4,469.50",REDACTED - PAYMENT TO INDIVIDUAL
Neighbourhoods and Climate Change,Environmental Services,Supplies and Services,384606,Miscellaneous Expenses,05/08/2021,3899087-RED-08-2021-034,"2,400.50",REDACTED - PAYMENT TO INDIVIDUAL
Adult and Health Services,Head of Adults,Third Party Payments,470101,Purchase of Care,05/08/2021,3898926-I-21-1309050,"2,920.28",REDACTED - PAYMENT TO INDIVIDUAL
Adult and Health Services,Head of Adults,Third Party Payments,470101,Purchase of Care,05/08/2021,3898928-I-21-1309235,"49,559.44",REDACTED - PAYMENT TO INDIVIDUAL
Adult and Health Services,Head of Adults,Third Party Payments,470101,Purchase of Care,05/08/2021,3898927-I-21-1309087,"1,174.00",REDACTED - PAYMENT TO INDIVIDUAL
Adult and Health Services,Head of Adults,Third Party Payments,470101,Purchase of Care,05/08/2021,3898820-I-21-1309027,"22,069.72",REDACTED - PAYMENT TO INDIVIDUAL
Adult and Health Services,Head of Adults,Third Party Payments,478101,Purchase of Care,05/08/2021,3898977-I-21-1308884,"1,035.84",REDACTED - PAYMENT TO INDIVIDUAL
Adult and Health Services,Head of Adults,Third Party Payments,472101,Purchase of Care,05/08/2021,3898915-I-21-1308910,"2,215.20",RELIEF PROFESSIONALS GROUP LTD.
Adult and Health Services,Head of Adults,Third Party Payments,474101,Purchase of Care,05/08/2021,3898916-I-21-1309313,"7,548.96",RENAL HEALTH LTD.
Adult and Health Services,Head of Adults,Third Party Payments,470101,Purchase of Care,05/08/2021,3898917-I-21-1309126,"10,659.56",RESOLVE (CARE NORTHERN) LTD..
Adult and Health Services,Head of Adults,Third Party Payments,470101,Purchase of Care,05/08/2021,3898918-I-21-1309261,"3,966.56",RESOLVE (CARE NORTHERN) LTD..
Adult and Health Services,Head of Adults,Third Party Payments,472101,Purchase of Care,05/08/2021,3898919-I-21-1308736,915.32,RESOURCES CARE T/A MYHOMECARE DDNY LTD.
Adult and Health Services,Head of Adults,Third Party Payments,470101,Purchase of Care,05/08/2021,3898922-I-21-1309286,"2,070.12",RICHMOND FELLOWSHIP.
Adult and Health Services,Head of Adults,Third Party Payments,473101,Purchase of Care,05/08/2021,3898923-I-21-1308948,"2,079.04",RIDING CENTRE FOR SPECIAL PEOPLE LTD..
Children and Young Peoples Services,Head of Childrens Social Care,Third Party Payments,425021,Rendered by Voluntary Organisations,05/08/2021,3898924-PIG_102290,"42,232.00",RIGHT-TRAK LTD.
"Regeneration, Economy and Growth",Culture Sport and Tourism,Supplies and Services,304259,Equipment and Materials,05/08/2021,3899269-SIN004892,513.00,RLSS UK ENTERPRISES LTD T/A RLSS UK SHOP.
Adult and Health Services,Head of Adults,Third Party Payments,478101,Purchase of Care,05/08/2021,3898929-I-21-1308879,"2,480.43",ROC FAMILY SUPPORT LTD.
Children and Young Peoples Services,Head of Childrens Social Care,Third Party Payments,486020,Service level agreements E486,05/08/2021,3898929-PIG_102893,"7,465.05",ROC FAMILY SUPPORT LTD.
Adult and Health Services,Head of Adults,Third Party Payments,478101,Purchase of Care,05/08/2021,3898930-I-21-1308692,"1,296.76",ROC SOLID LTD.
Adult and Health Services,Head of Adults,Third Party Payments,470101,Purchase of Care,05/08/2021,3898931-I-21-1309157,"72,401.20",ROSEBERRY CARE CENTRES GB LTD.
Adult and Health Services,Head of Adults,Third Party Payments,470101,Purchase of Care,05/08/2021,3898931-I-21-1309263,"2,562.30",ROSEBERRY CARE CENTRES GB LTD.
Adult and Health Services,Head of Adults,Third Party Payments,472101,Purchase of Care,05/08/2021,3898932-I-21-1196112,914.67,ROSEMONT CARE (MEDWAY) LTD.
Adult and Health Services,Head of Adults,Third Party Payments,472101,Purchase of Care,05/08/2021,3898932-I-21-1308869,"1,608.56",ROSEMONT CARE (MEDWAY) LTD.
Adult and Health Services,Head of Adults,Third Party Payments,470101,Purchase of Care,05/08/2021,3898933-I-21-1309179,"9,701.44",ROSEMOUNT TRUST.
Resources BK0010,Legal & Democratic Services,Supplies and Services,340001,Postages E340,05/08/2021,3899271-9063341584,538.16,ROYAL MAIL GROUP PLC.
Children and Young Peoples Services,Head of Childrens Social Care,Third Party Payments,425023,Rendered by Voluntary Organisations,05/08/2021,3898934-PIG_102911,"22,600.00",S/C 200000 CAMBIAN CHILDCARE LTD.
Adult and Health Services,Head of Adults,Third Party Payments,470101,Purchase of Care,05/08/2021,3898935-I-21-1309032,"5,839.52",SAINT JOHN OF GOD HOSPITALLER SERVICES.
Adult and Health Services,Head of Adults,Third Party Payments,478101,Purchase of Care,05/08/2021,3898936-I-21-1308865,"1,144.52",SALVATION ARMY HOUSING ASSOCIATION (SAHA).
Adult and Health Services,Head of Adults,Third Party Payments,470101,Purchase of Care,05/08/2021,3898941-I-21-1309146,"3,491.62",SANCTUARY CARE (ENGLAND) LTD.
Adult and Health Services,Head of Adults,Third Party Payments,474101,Purchase of Care,05/08/2021,3898939-I-21-1313338,"25,616.42",SANCTUARY CARE (ENGLAND) LTD.
Adult and Health Services,Head of Adults,Third Party Payments,474101,Purchase of Care,05/08/2021,3898940-I-21-1309161,"5,274.40",SANCTUARY CARE (ENGLAND) LTD.
Adult and Health Services,Head of Adults,Third Party Payments,470101,Purchase of Care,05/08/2021,3898938-I-21-1309043,"7,242.56",SANCTUARY CARE (ENGLAND) LTD.
Adult and Health Services,Head of Adults,Third Party Payments,470101,Purchase of Care,05/08/2021,3898939-I-21-1309284,"41,108.48",SANCTUARY CARE (ENGLAND) LTD.
Adult and Health Services,Head of Adults,Third Party Payments,474101,Purchase of Care,05/08/2021,3898941-I-21-1309019,"88,902.23",SANCTUARY CARE (ENGLAND) LTD.
Adult and Health Services,Head of Adults,Third Party Payments,474101,Purchase of Care,05/08/2021,3898943-I-21-1309015,"143,111.30",SANCTUARY CARE (ENGLAND) LTD.
Adult and Health Services,Head of Adults,Third Party Payments,470101,Purchase of Care,05/08/2021,3898942-I-21-1309234,"70,971.46",SANCTUARY CARE (ENGLAND) LTD.
Adult and Health Services,Head of Adults,Third Party Payments,470101,Purchase of Care,05/08/2021,3898937-I-21-1309145,"4,656.00",SANCTUARY CARE (ENGLAND) LTD.
Adult and Health Services,Head of Adults,Third Party Payments,474101,Purchase of Care,05/08/2021,3898945-I-21-1309012,"1,640.66",SEAHAM CARE LTD.
Adult and Health Services,Head of Adults,Third Party Payments,474101,Purchase of Care,05/08/2021,3898945-I-21-1309114,"54,291.92",SEAHAM CARE LTD.
Adult and Health Services,Head of Adults,Third Party Payments,474101,Purchase of Care,05/08/2021,3898946-I-21-1309328,"59,330.28",SEAHAM CARE LTD.
Adult and Health Services,Head of Adults,Third Party Payments,472101,Purchase of Care,05/08/2021,3898947-I-21-1308834,"42,029.01",SECOND TO NONE CARE LTD.
Children and Young Peoples Services,Head of Childrens Social Care,Third Party Payments,440062,Other third party payments E440,05/08/2021,3898947-PIG_102923,"2,142.00",SECOND TO NONE CARE LTD.
Adult and Health Services,Head of Adults,Third Party Payments,470101,Purchase of Care,05/08/2021,3898948-I-21-1309291,"21,217.80",SELF (NORTH EAST) LTD.
Adult and Health Services,Head of Adults,Third Party Payments,470101,Purchase of Care,05/08/2021,3898949-I-21-1309073,"6,678.12",SENSE.
Adult and Health Services,Head of Adults,Third Party Payments,474101,Purchase of Care,05/08/2021,3898950-I-21-1309170,"2,444.00",SEYMOUR HOUSE HARTLEPOOL LTD.
Adult and Health Services,Head of Adults,Third Party Payments,474101,Purchase of Care,05/08/2021,3898950-I-21-1309227,"2,521.14",SEYMOUR HOUSE HARTLEPOOL LTD.
Adult and Health Services,Head of Adults,Third Party Payments,474101,Purchase of Care,05/08/2021,3898951-I-21-1309083,"110,960.87",SHAFTESBURY CARE GROUP LTD.
Adult and Health Services,Head of Adults,Third Party Payments,473101,Purchase of Care,05/08/2021,3898952-I-21-1308965,"12,274.90",SHAW TRUST GARDEN PROJECT.*
Adult and Health Services,Head of Adults,Third Party Payments,472101,Purchase of Care,05/08/2021,3898953-I-21-1308777,"18,521.70",SHEENA MILES CARE SERVICES LTD.
Children and Young Peoples Services,Head of Childrens Social Care,Third Party Payments,486020,Service level agreements E486,05/08/2021,3898953-PIG_102894,"2,284.65",SHEENA MILES CARE SERVICES LTD.
Adult and Health Services,Head of Adults,Third Party Payments,470101,Purchase of Care,05/08/2021,3898954-I-21-1309277,"39,724.02",SHERBURN HOUSE CHARITY.
Adult and Health Services,Head of Adults,Third Party Payments,470101,Purchase of Care,05/08/2021,3898955-I-21-1309255,"24,253.60",SHOTLEY PARK HOMES FOR THE ELDERLY LTD.
Adult and Health Services,Head of Adults,Third Party Payments,470101,Purchase of Care,05/08/2021,3898955-I-21-1309148,"2,078.88",SHOTLEY PARK HOMES FOR THE ELDERLY LTD.
Adult and Health Services,Head of Adults,Third Party Payments,470101,Purchase of Care,05/08/2021,3898956-I-21-1309269,"5,200.00",SIGNATURE AT ASCOT GRANGE CARE HOME.
Adult and Health Services,Head of Adults,Third Party Payments,470101,Purchase of Care,05/08/2021,3898958-I-21-1309287,"7,057.36",SLW LTD.
Adult and Health Services,Head of Adults,Third Party Payments,474101,Purchase of Care,05/08/2021,3898959-I-21-1309069,"2,670.88",SOLEHAWK LTD T/A ASHTON COURT NURSING HOME.
Adult and Health Services,Head of Adults,Third Party Payments,474101,Purchase of Care,05/08/2021,3898960-I-21-1309122,"1,753.20",SOLEHAWK LTD T/A CRAIGIELEA CARE HOME.
Adult and Health Services,Head of Adults,Third Party Payments,470101,Purchase of Care,05/08/2021,3898961-I-21-1309332,"22,021.00",SOVEREIGN CARE (NORTH EAST) LTD.
Dedicated Schools Grant BG0015,DSG High Needs Block,Third Party Payments,425005,Rendered by Voluntary Organisations,05/08/2021,3898962-PIG_102291,"3,307.32",SPARK OF GENIUS (NORTH EAST LLP).
Adult and Health Services,Head of Adults,Third Party Payments,470101,Purchase of Care,05/08/2021,3898963-I-21-1309217,"9,920.40",SPECIALITY CARE (REHAB) LTD.
Adult and Health Services,Head of Adults,Third Party Payments,474101,Purchase of Care,05/08/2021,3898964-I-21-1313336,"6,119.80",SPYNIE CARE HOME.
Adult and Health Services,Head of Adults,Third Party Payments,470101,Purchase of Care,05/08/2021,3898965-I-21-1309266,880.93,ST ANDREWS MPS LTD.
Adult and Health Services,Head of Adults,Third Party Payments,474101,Purchase of Care,05/08/2021,3898965-I-21-1309124,"65,554.48",ST ANDREWS MPS LTD.
Adult and Health Services,Head of Adults,Third Party Payments,478101,Purchase of Care,05/08/2021,3898966-I-21-1308676,"15,745.08",ST ANNES COMMUNITY SERVICES.
Adult and Health Services,Head of Adults,Third Party Payments,478101,Purchase of Care,05/08/2021,3898966-I-21-1308794,"10,180.80",ST ANNES COMMUNITY SERVICES.
Adult and Health Services,Head of Adults,Third Party Payments,478101,Purchase of Care,05/08/2021,3898966-I-21-1308803,"10,180.80",ST ANNES COMMUNITY SERVICES.
Adult and Health Services,Head of Adults,Third Party Payments,478101,Purchase of Care,05/08/2021,3898966-I-21-1308804,"4,875.24",ST ANNES COMMUNITY SERVICES.
Adult and Health Services,Head of Adults,Third Party Payments,478101,Purchase of Care,05/08/2021,3898966-I-21-1308845,"15,271.20",ST ANNES COMMUNITY SERVICES.
Adult and Health Services,Head of Adults,Third Party Payments,478101,Purchase of Care,05/08/2021,3898966-I-21-1308896,"4,875.24",ST ANNES COMMUNITY SERVICES.
Adult and Health Services,Head of Adults,Third Party Payments,478101,Purchase of Care,05/08/2021,3898966-I-21-1308928,"10,180.80",ST ANNES COMMUNITY SERVICES.
Adult and Health Services,Head of Adults,Third Party Payments,478101,Purchase of Care,05/08/2021,3898966-I-21-1308931,"10,180.80",ST ANNES COMMUNITY SERVICES.
Adult and Health Services,Head of Adults,Third Party Payments,478101,Purchase of Care,05/08/2021,3898966-I-21-1308978,"13,899.12",ST ANNES COMMUNITY SERVICES.
Adult and Health Services,Head of Adults,Third Party Payments,478101,Purchase of Care,05/08/2021,3898966-I-21-1308870,"7,910.40",ST ANNES COMMUNITY SERVICES.
Adult and Health Services,Head of Adults,Third Party Payments,478101,Purchase of Care,05/08/2021,3898966-I-21-1308955,"25,840.64",ST ANNES COMMUNITY SERVICES.
Adult and Health Services,Head of Adults,Third Party Payments,478101,Purchase of Care,05/08/2021,3898966-I-21-1308993,"8,075.20",ST ANNES COMMUNITY SERVICES.
Children and Young Peoples Services,Head of Childrens Social Care,Third Party Payments,425040,Rendered by Voluntary Organisations,05/08/2021,3898967-PIG_102274,"1,516.79",ST CUTHBERTS CARE.
Adult and Health Services,Head of Adults,Third Party Payments,470101,Purchase of Care,05/08/2021,3898969-I-21-1309021,"2,722.00",ST CUTHBERTS CARE.
Adult and Health Services,Head of Adults,Third Party Payments,470101,Purchase of Care,05/08/2021,3898968-I-21-1309256,"2,892.11",ST CUTHBERTS CARE.
Adult and Health Services,Head of Adults,Third Party Payments,470101,Purchase of Care,05/08/2021,3898970-I-21-1309254,"2,204.00",ST MARTIN`S CARE LTD.
Adult and Health Services,Head of Adults,Third Party Payments,474101,Purchase of Care,05/08/2021,3898971-I-21-1309215,"2,360.00",ST MARTIN`S CARE LTD.
Adult and Health Services,Head of Adults,Third Party Payments,470101,Purchase of Care,05/08/2021,3898973-I-21-1309275,"108,956.54",ST PHILIPS CARE LTD.
Adult and Health Services,Head of Adults,Third Party Payments,470101,Purchase of Care,05/08/2021,3898972-I-21-1309070,"67,435.92",ST PHILIPS CARE LTD.
Adult and Health Services,Head of Adults,Third Party Payments,470101,Purchase of Care,05/08/2021,3898972-I-21-1309303,664.30,ST PHILIPS CARE LTD.
Adult and Health Services,Head of Adults,Third Party Payments,474101,Purchase of Care,05/08/2021,3898974-I-21-1309036,"5,800.44",STAINTON LODGE CARE CENTRE.
Neighbourhoods and Climate Change,Environmental Services,Supplies and Services,338078,Services,05/08/2021,3899285-17330,"7,434.30",STEADFAST SECURITY SOLUTIONS LTD.
"Regeneration, Economy and Growth",Culture Sport and Tourism,Third Party Payments,430100,Rendered by Private Contractors,05/08/2021,3899285-17350,"4,779.00",STEADFAST SECURITY SOLUTIONS LTD.
Children and Young Peoples Services,Head of Early Help Inclusion & Vulnerable Children.,Supplies and Services,338078,Services,05/08/2021,3899285-17328,"17,844.32",STEADFAST SECURITY SOLUTIONS LTD.
Neighbourhoods and Climate Change,Environmental Services,Third Party Payments,430100,Rendered by Private Contractors,05/08/2021,3899289-7626,"8,624.03",STONE TECHNICAL SERVICES LTD.
Adult and Health Services,Head of Adults,Third Party Payments,474101,Purchase of Care,05/08/2021,3898979-I-21-1309123,"29,146.64",SUNNY OKUKPOLOR HUMPHREYS.
Adult and Health Services,Head of Adults,Third Party Payments,472101,Purchase of Care,05/08/2021,3898980-I-21-1308878,"75,466.88",SUPPORTIVE SRC LTD.
Adult and Health Services,Head of Adults,Third Party Payments,470101,Purchase of Care,05/08/2021,3898981-I-21-1309278,"6,388.20",SWANTON CARE & COMMUNITY (AUTISM NORTH) LTD.
Adult and Health Services,Head of Adults,Third Party Payments,470101,Purchase of Care,05/08/2021,3898982-I-21-1309334,"23,844.16",SWANTON CARE & COMMUNITY (AUTISM NORTH) LTD.
Adult and Health Services,Head of Adults,Third Party Payments,470101,Purchase of Care,05/08/2021,3898984-I-21-1309132,"5,467.08",SWANTON CARE & COMMUNITY (AUTISM NORTH) LTD.
Adult and Health Services,Head of Adults,Third Party Payments,470101,Purchase of Care,05/08/2021,3898985-I-21-1309092,"45,454.72",SWANTON CARE & COMMUNITY (AUTISM NORTH) LTD.
Adult and Health Services,Head of Adults,Third Party Payments,470101,Purchase of Care,05/08/2021,3898986-I-21-1309143,"6,978.32",SWANTON CARE & COMMUNITY (AUTISM NORTH) LTD.
Adult and Health Services,Head of Adults,Third Party Payments,470101,Purchase of Care,05/08/2021,3898983-I-21-1309164,"8,222.04",SWANTON CARE & COMMUNITY (AUTISM NORTH) LTD.
Children and Young Peoples Services,Head of Childrens Social Care,Third Party Payments,425040,Rendered by Voluntary Organisations,05/08/2021,3898987-PIG_102270,"37,051.48",SWIIS FOSTER CARE LTD.
Children and Young Peoples Services,Head of Childrens Social Care,Supplies and Services,338045,Services,05/08/2021,3899291-66479,935.58,SWINBURNE SNOWBALL & JACKSON.
Adult and Health Services,Head of Adults,Third Party Payments,474101,Purchase of Care,05/08/2021,3898988-I-21-1309077,"114,480.04",TAMARIS HEALTHCARE (ENGLAND) LTD.
Adult and Health Services,Head of Adults,Third Party Payments,470101,Purchase of Care,05/08/2021,3898991-I-21-1309310,"117,575.42",TAMARIS HEALTHCARE (ENGLAND) LTD.
Adult and Health Services,Head of Adults,Third Party Payments,479140,Purchase of Care,05/08/2021,3898989-SUSTAINABILITYPAYMENT16/5,"1,166.30",TAMARIS HEALTHCARE (ENGLAND) LTD.
Adult and Health Services,Head of Adults,Third Party Payments,479140,Purchase of Care,05/08/2021,3898994-SUSTAINABILITYPAYMENT16/1,"3,722.69",TAMARIS HEALTHCARE (ENGLAND) LTD.
Adult and Health Services,Head of Adults,Third Party Payments,474101,Purchase of Care,05/08/2021,3898994-I-21-1309065,"80,569.44",TAMARIS HEALTHCARE (ENGLAND) LTD.
Adult and Health Services,Head of Adults,Third Party Payments,470101,Purchase of Care,05/08/2021,3898988-CAS-07-2021-147,823.77,TAMARIS HEALTHCARE (ENGLAND) LTD.
Adult and Health Services,Head of Adults,Third Party Payments,474101,Purchase of Care,05/08/2021,3898989-I-21-1309312,"47,311.58",TAMARIS HEALTHCARE (ENGLAND) LTD.
Adult and Health Services,Head of Adults,Third Party Payments,474101,Purchase of Care,05/08/2021,3898992-I-21-1309082,"13,513.33",TAMARIS HEALTHCARE (ENGLAND) LTD.
Adult and Health Services,Head of Adults,Third Party Payments,470101,Purchase of Care,05/08/2021,3898990-I-21-1309129,"2,254.92",TAMARIS HEALTHCARE (ENGLAND) LTD.
Neighbourhoods and Climate Change,Technical Services CM0300,Supplies and Services,304221,Equipment and Materials,05/08/2021,3899292-9043754868,977.50,TARMAC TRADING LTD.
Neighbourhoods and Climate Change,Technical Services CM0300,Supplies and Services,304221,Equipment and Materials,05/08/2021,3899292-9043809584,788.40,TARMAC TRADING LTD.
Neighbourhoods and Climate Change,Technical Services CM0300,Supplies and Services,304221,Equipment and Materials,05/08/2021,3899292-9043853149,"1,221.25",TARMAC TRADING LTD.
Neighbourhoods and Climate Change,Technical Services CM0300,Supplies and Services,304221,Equipment and Materials,05/08/2021,3899292-9043885851,980.61,TARMAC TRADING LTD.
Children and Young Peoples Services,Head of Childrens Social Care,Third Party Payments,425040,Rendered by Voluntary Organisations,05/08/2021,3898995-PIG_102918,"223,520.56",TEAM FOSTERING.
Neighbourhoods and Climate Change,Partnerships & Community Engagement Div.,Supplies and Services,384086,Miscellaneous Expenses,05/08/2021,3899294-VOUCHERBELR03-21,900.00,TEESDALE OPERATIC SOCIETY CIC.
Neighbourhoods and Climate Change,Environmental Services,Supplies and Services,384606,Miscellaneous Expenses,05/08/2021,3899298-RED-08-2021-032,877.54,THE FARMER NETWORK LTD.
Adult and Health Services,Head of Adults,Third Party Payments,470101,Purchase of Care,05/08/2021,3898996-I-21-1309141,"17,150.76",THE FIELDS CARE HOME.
Children and Young Peoples Services,Head of Childrens Social Care,Third Party Payments,425040,Rendered by Voluntary Organisations,05/08/2021,3898997-PIG_102271,"8,876.40",THE FOSTERING COMPANY NORTH EAST LTD.
Adult and Health Services,Head of Adults,Third Party Payments,470101,Purchase of Care,05/08/2021,3898998-I-21-1309067,"67,158.88",THE HAWTHORNS LODGE LTD.
Adult and Health Services,Head of Adults,Third Party Payments,472111,Purchase of Care,05/08/2021,3898999-I-21-1313315,597.77,THE HUMAN SUPPORT GROUP LTD.
Adult and Health Services,Head of Adults,Third Party Payments,472101,Purchase of Care,05/08/2021,3898999-I-21-1308853,"2,547.09",THE HUMAN SUPPORT GROUP LTD.
Adult and Health Services,Head of Adults,Third Party Payments,472101,Purchase of Care,05/08/2021,3898999-I-21-1308781,"107,158.45",THE HUMAN SUPPORT GROUP LTD.
Adult and Health Services,Head of Adults,Third Party Payments,478101,Purchase of Care,05/08/2021,3899000-I-21-1308962,"13,995.00",THE INTEGRATION TRUST LTD.
Adult and Health Services,Head of Adults,Third Party Payments,470101,Purchase of Care,05/08/2021,3899001-I-21-1309044,"18,190.20",THE ORDER OF THE GOOD & PERPETUAL SUCCOUR.
Adult and Health Services,Head of Adults,Third Party Payments,470101,Purchase of Care,05/08/2021,3899002-I-21-1309158,"8,656.31",THE PERCY HEDLEY FOUNDATION.
Adult and Health Services,Head of Adults,Third Party Payments,470101,Purchase of Care,05/08/2021,3899003-I-21-1309268,"2,850.56",THE SALVATION ARMY T/A VILLA ADASTRA CARE HOME.
Adult and Health Services,Head of Adults,Third Party Payments,478151,Purchase of Care,05/08/2021,3899004-NTX-INV-0000000234,"1,428.00",THERA NORTH TRADING LTD.
Adult and Health Services,Head of Adults,Third Party Payments,478101,Purchase of Care,05/08/2021,3899004-I-21-1308798,"27,849.00",THERA NORTH TRADING LTD.
Adult and Health Services,Head of Adults,Third Party Payments,473101,Purchase of Care,05/08/2021,3899006-I-21-1308757,"14,943.20",THOMPSON & HOWE LTD.
Adult and Health Services,Head of Adults,Third Party Payments,473101,Purchase of Care,05/08/2021,3899006-I-21-1308773,"17,072.00",THOMPSON & HOWE LTD.
Adult and Health Services,Head of Adults,Third Party Payments,473101,Purchase of Care,05/08/2021,3899006-I-21-1308696,"30,061.52",THOMPSON & HOWE LTD.
Adult and Health Services,Head of Adults,Third Party Payments,473101,Purchase of Care,05/08/2021,3899006-I-21-1308924,"20,701.36",THOMPSON & HOWE LTD.
Adult and Health Services,Head of Adults,Third Party Payments,473101,Purchase of Care,05/08/2021,3899006-I-21-1308935,"29,833.54",THOMPSON & HOWE LTD.
Adult and Health Services,Head of Adults,Third Party Payments,473101,Purchase of Care,05/08/2021,3899006-I-21-1308947,"11,313.80",THOMPSON & HOWE LTD.
Adult and Health Services,Head of Adults,Third Party Payments,473101,Purchase of Care,05/08/2021,3899006-I-21-1308716,"11,828.44",THOMPSON & HOWE LTD.
Adult and Health Services,Head of Adults,Third Party Payments,473101,Purchase of Care,05/08/2021,3899006-I-21-1308971,"35,118.28",THOMPSON & HOWE LTD.
Adult and Health Services,Head of Adults,Third Party Payments,473101,Purchase of Care,05/08/2021,3899007-I-21-1308883,"1,972.80",THORNBECK COLLEGE.
Children and Young Peoples Services,Head of Childrens Social Care,Third Party Payments,440046,Other third party payments E440,05/08/2021,3899302-5457267,781.48,THORNBURY NURSING SERVICES.
Children and Young Peoples Services,Head of Childrens Social Care,Third Party Payments,440046,Other third party payments E440,05/08/2021,3899302-5457268,907.06,THORNBURY NURSING SERVICES.
Children and Young Peoples Services,Head of Childrens Social Care,Third Party Payments,440046,Other third party payments E440,05/08/2021,3899302-5457269,781.48,THORNBURY NURSING SERVICES.
Children and Young Peoples Services,Head of Childrens Social Care,Third Party Payments,440046,Other third party payments E440,05/08/2021,3899302-5457270,826.63,THORNBURY NURSING SERVICES.
Children and Young Peoples Services,Head of Childrens Social Care,Third Party Payments,440046,Other third party payments E440,05/08/2021,3899302-5457271,781.48,THORNBURY NURSING SERVICES.
Adult and Health Services,Commissioning inc Supporting People,Supplies and Services,377015,County Durham Development,05/08/2021,3899303-2593,"2,993.50",THREE MOTION MEDIA LTD.
Adult and Health Services,Head of Adults,Third Party Payments,470101,Purchase of Care,05/08/2021,3899008-I-21-1309281,"2,360.00",TL CARE LTD.
Adult and Health Services,Head of Adults,Third Party Payments,472101,Purchase of Care,05/08/2021,3899009-I-21-1308998,"18,887.80",TLC COMMUNITY SERVICES.
Adult and Health Services,Head of Adults,Third Party Payments,470101,Purchase of Care,05/08/2021,3899010-I-21-1309035,"75,968.00",TRIMS GYM LTD.
Adult and Health Services,Head of Adults,Third Party Payments,470101,Purchase of Care,05/08/2021,3899011-I-21-1309293,"7,982.24",TRUST CARE MANAGEMENT LTD.
Neighbourhoods and Climate Change,Technical Services CM0300,Supplies and Services,304221,Equipment and Materials,05/08/2021,3899308-224293,"1,847.36",TYNEDALE ROADSTONE LTD.
Children and Young Peoples Services,Head of Childrens Social Care,Third Party Payments,425040,Rendered by Voluntary Organisations,05/08/2021,3899013-PIG_100506,"7,980.00",UK FOSTERING LTD.
Children and Young Peoples Services,Head of Childrens Social Care,Third Party Payments,425040,Rendered by Voluntary Organisations,05/08/2021,3899013-PIG_102898,"16,464.52",UK FOSTERING LTD.
Children and Young Peoples Services,Head of Childrens Social Care,Third Party Payments,425040,Rendered by Voluntary Organisations,05/08/2021,3899013-PIG_95604,"6,384.00",UK FOSTERING LTD.
Children and Young Peoples Services,Head of Childrens Social Care,Third Party Payments,425040,Rendered by Voluntary Organisations,05/08/2021,3899013-PIG_97444,"6,384.00",UK FOSTERING LTD.
Adult and Health Services,Head of Adults,Third Party Payments,474101,Purchase of Care,05/08/2021,3899014-I-21-1309289,"3,804.04",UNDERWOOD HALL LTD.
Resources BK0010,Digital and Customer Services,Supplies and Services,342033,Computers and Communications,05/08/2021,3899310-R-65554,"1,012.70",UPNORTH ENGINEERING SERVICES LTD.
Adult and Health Services,Head of Adults,Third Party Payments,470101,Purchase of Care,05/08/2021,3899015-I-21-1309176,"18,065.24",VALDIGARTH RESIDENTIAL CARE HOME.
Adult and Health Services,Head of Adults,Third Party Payments,474101,Purchase of Care,05/08/2021,3899016-I-21-1309205,"5,686.40",VICTORIA HOUSE.
Adult and Health Services,Head of Adults,Third Party Payments,472101,Purchase of Care,05/08/2021,3899017-I-21-1308743,"27,537.88",VILLAGE CARE LTD.
Neighbourhoods and Climate Change,Environmental Services,Third Party Payments,430100,Rendered by Private Contractors,05/08/2021,3899312-INV-43662,580.00,VISTECH SERVICES LTD.
Children and Young Peoples Services,Head of Childrens Social Care,Third Party Payments,425021,Rendered by Voluntary Organisations,05/08/2021,3899018-PIG_102292,"51,862.40",VITA NOVA NE LTD.
Adult and Health Services,Head of Adults,Third Party Payments,473101,Purchase of Care,05/08/2021,3899019-I-21-1308660,"7,200.20",VOIDSERVICES LTD.
Adult and Health Services,Head of Adults,Third Party Payments,470101,Purchase of Care,05/08/2021,3899021-I-21-1309094,"5,577.04",VOYAGE 1 LTD.
Adult and Health Services,Head of Adults,Third Party Payments,470101,Purchase of Care,05/08/2021,3899023-I-21-1309257,"10,762.24",VOYAGE 1 LTD.
Adult and Health Services,Head of Adults,Third Party Payments,470101,Purchase of Care,05/08/2021,3899020-I-21-1309335,"19,119.36",VOYAGE 1 LTD.
Adult and Health Services,Head of Adults,Third Party Payments,470101,Purchase of Care,05/08/2021,3899022-I-21-1309239,"15,826.20",VOYAGE 1 LTD.
Adult and Health Services,Head of Adults,Third Party Payments,470101,Purchase of Care,05/08/2021,3899024-I-21-1309001,"6,800.00",VOYAGE 1 LTD.
Adult and Health Services,Head of Adults,Third Party Payments,478101,Purchase of Care,05/08/2021,3899025-I-21-1308956,600.00,WADDINGTON STREET CENTRE LTD.
Adult and Health Services,Head of Adults,Third Party Payments,473101,Purchase of Care,05/08/2021,3899026-I-21-1308808,"13,557.33",WEAR 1 CARE LTD.
Adult and Health Services,Central/Other,Supplies and Services,338043,Services,05/08/2021,3899315-02028053,"2,032.00",WEIGHTMANS LLP.
Adult and Health Services,Head of Adults,Third Party Payments,470101,Purchase of Care,05/08/2021,3899027-I-21-1309149,"2,424.00",WELLBURN CARE HOMES LTD.
Adult and Health Services,Head of Adults,Third Party Payments,470101,Purchase of Care,05/08/2021,3899028-I-21-1309228,"2,533.28",WELLBURN CARE HOMES LTD.
"Regeneration, Economy and Growth",Corporate Property and Land,Supplies and Services,304221,Equipment and Materials,05/08/2021,3899316-0000292165,822.23,WESSEX LIFT CO LTD.
Adult and Health Services,Head of Adults,Third Party Payments,470101,Purchase of Care,05/08/2021,3899029-I-21-1309192,"6,660.48",WEST CUMBRIA CARE & SUPPORT.
Adult and Health Services,Head of Adults,Third Party Payments,474101,Purchase of Care,05/08/2021,3899030-I-21-1309119,"52,285.64",WEST HOUSE CARE HOME LTD.
Adult and Health Services,Head of Adults,Third Party Payments,479140,Purchase of Care,05/08/2021,3899031-SUSTAINABILITYPAYMENT16/22,"4,305.56",WEST LODGE CARE HOMES LTD.
Adult and Health Services,Head of Adults,Third Party Payments,474101,Purchase of Care,05/08/2021,3899031-I-21-1309135,"90,464.86",WEST LODGE CARE HOMES LTD.
Adult and Health Services,Head of Adults,Third Party Payments,470101,Purchase of Care,05/08/2021,3899033-I-21-1309078,"59,134.04",WILLIAMS & SPENCELEY LTD.
Adult and Health Services,Head of Adults,Third Party Payments,470101,Purchase of Care,05/08/2021,3899034-I-21-1309048,"2,576.00",WILLOW VIEW CARE LTD.
"Regeneration, Economy and Growth",Corporate Property and Land,Third Party Payments,430100,Rendered by Private Contractors,05/08/2021,3899317-54081,"1,987.67",WILLOWCRETE MANUFACTURING COMPANY LTD (MFG).
Children and Young Peoples Services,Head of Childrens Social Care,Third Party Payments,425021,Rendered by Voluntary Organisations,05/08/2021,3899035-PIG_102887,"15,769.72",WITHERSLACK GROUP LTD T/A ASHBROOKE SCHOOL.
Dedicated Schools Grant BG0015,DSG High Needs Block,Third Party Payments,425005,Rendered by Voluntary Organisations,05/08/2021,3899035-PIG_102303,"46,804.67",WITHERSLACK GROUP LTD T/A ASHBROOKE SCHOOL.
Dedicated Schools Grant BG0015,DSG High Needs Block,Third Party Payments,425005,Rendered by Voluntary Organisations,05/08/2021,3899036-PIG_102299,"23,298.31",WITHERSLACK GROUP LTD T/A HARTWELL SCHOOL.
Children and Young Peoples Services,Head of Childrens Social Care,Third Party Payments,425021,Rendered by Voluntary Organisations,05/08/2021,3899037-PIG_102296,"29,249.04",WITHERSLACK GROUP LTD.
Children and Young Peoples Services,Head of Childrens Social Care,Third Party Payments,425021,Rendered by Voluntary Organisations,05/08/2021,3899037-PIG_102298,"28,712.72",WITHERSLACK GROUP LTD.
Children and Young Peoples Services,Head of Childrens Social Care,Third Party Payments,425021,Rendered by Voluntary Organisations,05/08/2021,3899037-PIG_102302,"15,334.72",WITHERSLACK GROUP LTD.
Dedicated Schools Grant BG0015,DSG High Needs Block,Third Party Payments,425005,Rendered by Voluntary Organisations,05/08/2021,3899037-PIG_102295,"6,419.16",WITHERSLACK GROUP LTD.
Dedicated Schools Grant BG0015,DSG High Needs Block,Third Party Payments,425005,Rendered by Voluntary Organisations,05/08/2021,3899037-PIG_102297,"10,361.96",WITHERSLACK GROUP LTD.
Dedicated Schools Grant BG0015,DSG High Needs Block,Third Party Payments,425005,Rendered by Voluntary Organisations,05/08/2021,3899037-PIG_102304,"6,572.04",WITHERSLACK GROUP LTD.
Children and Young Peoples Services,Head of Childrens Social Care,Third Party Payments,425021,Rendered by Voluntary Organisations,05/08/2021,3899038-PIG_102300,"6,611.12",WITHERSLACK GROUP T/A CEDAR HOUSE.
Dedicated Schools Grant BG0015,DSG High Needs Block,Third Party Payments,425005,Rendered by Voluntary Organisations,05/08/2021,3899038-PIG_102301,"15,025.88",WITHERSLACK GROUP T/A CEDAR HOUSE.
"Regeneration, Economy and Growth",Corporate Property and Land,Supplies and Services,304221,Equipment and Materials,05/08/2021,3899320-76685171,767.62,WOLSELEY UK LTD.
Adult and Health Services,Head of Adults,Third Party Payments,473101,Purchase of Care,05/08/2021,3899039-I-21-1308708,"7,487.20",WOODCRAFT FOR LANDSCAPES CIC.
Neighbourhoods and Climate Change,Community Protection,Third Party Payments,430100,Rendered by Private Contractors,05/08/2021,3899322-1705,855.00,YOU`RE SECURE NORTHEAST.
Children and Young Peoples Services,Head of Childrens Social Care,Third Party Payments,425021,Rendered by Voluntary Organisations,05/08/2021,3899040-PIG_102293,"14,410.00",YOUNG FOUNDATIONS LTD.
Dedicated Schools Grant BG0015,DSG High Needs Block,Third Party Payments,425005,Rendered by Voluntary Organisations,05/08/2021,3899041-PIG_102294,"5,257.56",YOUNG FOUNDATIONS LTD.
Adult and Health Services,Head of Adults,Third Party Payments,478101,Purchase of Care,05/08/2021,3899042-I-21-1308685,"17,385.20",YS SERVICES LTD T/A EMBRACING CARE.
Adult and Health Services,Head of Adults,Third Party Payments,478101,Purchase of Care,05/08/2021,3899042-I-21-1308730,"7,560.00",YS SERVICES LTD T/A EMBRACING CARE.
Adult and Health Services,Head of Adults,Third Party Payments,478101,Purchase of Care,05/08/2021,3899042-I-21-1308731,"5,762.40",YS SERVICES LTD T/A EMBRACING CARE.
Adult and Health Services,Head of Adults,Third Party Payments,478101,Purchase of Care,05/08/2021,3899042-I-21-1308733,"8,976.80",YS SERVICES LTD T/A EMBRACING CARE.
Adult and Health Services,Head of Adults,Third Party Payments,478101,Purchase of Care,05/08/2021,3899042-I-21-1308816,"15,216.60",YS SERVICES LTD T/A EMBRACING CARE.
Adult and Health Services,Head of Adults,Third Party Payments,478101,Purchase of Care,05/08/2021,3899042-I-21-1308817,"7,683.84",YS SERVICES LTD T/A EMBRACING CARE.
Adult and Health Services,Head of Adults,Third Party Payments,478101,Purchase of Care,05/08/2021,3899042-I-21-1308860,"9,500.40",YS SERVICES LTD T/A EMBRACING CARE.
Adult and Health Services,Head of Adults,Third Party Payments,478101,Purchase of Care,05/08/2021,3899042-I-21-1308908,"10,455.20",YS SERVICES LTD T/A EMBRACING CARE.
Adult and Health Services,Head of Adults,Third Party Payments,478101,Purchase of Care,05/08/2021,3899042-I-21-1308942,"7,653.60",YS SERVICES LTD T/A EMBRACING CARE.
Adult and Health Services,Head of Adults,Third Party Payments,478101,Purchase of Care,05/08/2021,3899042-I-21-1308986,"4,937.76",YS SERVICES LTD T/A EMBRACING CARE.
Adult and Health Services,Head of Adults,Third Party Payments,478101,Purchase of Care,05/08/2021,3899042-I-21-1308684,"7,683.84",YS SERVICES LTD T/A EMBRACING CARE.
Adult and Health Services,Head of Adults,Third Party Payments,478101,Purchase of Care,05/08/2021,3899042-I-21-1308686,"9,716.00",YS SERVICES LTD T/A EMBRACING CARE.
